﻿Department family,Entity,Date of payment,Expense type,Expense area,Supplier,Transaction number,Amount in Sterling,Supplier VAT Registration Number
Department of Health,Guys and St Thomas NHS Foundation Trust,21/01/2022,(81900) Lab Equipment Purchase,(id:111406) Pathology,VIAPATH ANALYTICS LLP,id:14801694 ,29769.26,
Department of Health,Guys and St Thomas NHS Foundation Trust,28/01/2022,(81275) Medical Surgical Supplies & Equipment,(id:42134) Pathology,GRIFOLS UK,id:14820154   ,3281.25,
Department of Health,Guys and St Thomas NHS Foundation Trust,07/01/2022,(89600) Non-Healthcare from other NHS bodies,(id:42134) Pathology,NHS BLOOD AND TRANSPLANT,id:14717426,1383.6,
Department of Health,Guys and St Thomas NHS Foundation Trust,07/01/2022,(89600) Non-Healthcare from other NHS bodies,(id:42134) Pathology,NHS BLOOD AND TRANSPLANT,id:14717436,232790.92,
Department of Health,Guys and St Thomas NHS Foundation Trust,07/01/2022,(84650) Establishment,(id:4988419) TAP,MSI GROUP LTD,id:14764414   ,2376,
Department of Health,Guys and St Thomas NHS Foundation Trust,14/01/2022,(82800) Bedding & Linen,(id:41907) TAP,NHS SUPPLY CHAIN (MAIDSTONE),id:14721243   ,15.07,
Department of Health,Guys and St Thomas NHS Foundation Trust,21/01/2022,(82800) Bedding & Linen,(id:41907) TAP,NHS SUPPLY CHAIN (MAIDSTONE),id:14760334   ,170.14,
Department of Health,Guys and St Thomas NHS Foundation Trust,14/01/2022,(81200) Medical Surgical Supplies & Equipment,(id:41907) TAP,NHS SUPPLY CHAIN (MAIDSTONE),id:14721243 ,908.09,
Department of Health,Guys and St Thomas NHS Foundation Trust,14/01/2022,(81200) Medical Surgical Supplies & Equipment,(id:41907) TAP,NHS SUPPLY CHAIN (MAIDSTONE),id:14751854 ,914.17,
Department of Health,Guys and St Thomas NHS Foundation Trust,14/01/2022,(82600) Uniforms & Clothing,(id:41907) TAP,NHS SUPPLY CHAIN (MAIDSTONE),id:14721243    ,4.32,
Department of Health,Guys and St Thomas NHS Foundation Trust,14/01/2022,(82800) Bedding & Linen,(id:41906) TAP,NHS SUPPLY CHAIN (MAIDSTONE),id:14780246   ,1165.46,
Department of Health,Guys and St Thomas NHS Foundation Trust,14/01/2022,(81200) Medical Surgical Supplies & Equipment,(id:41906) TAP,NHS SUPPLY CHAIN (MAIDSTONE),id:14780246 ,2245.12,
Department of Health,Guys and St Thomas NHS Foundation Trust,14/01/2022,(82600) Uniforms & Clothing,(id:41906) TAP,NHS SUPPLY CHAIN (MAIDSTONE),id:14721243    ,54,
Department of Health,Guys and St Thomas NHS Foundation Trust,14/01/2022,(82000) Provisions & Kitchens,(id:41906) TAP,NHS SUPPLY CHAIN (MAIDSTONE),id:14721243  ,21.54,
Department of Health,Guys and St Thomas NHS Foundation Trust,28/01/2022,(82000) Provisions & Kitchens,(id:41906) TAP,NHS SUPPLY CHAIN (MAIDSTONE),id:14776441  ,149.8,
Department of Health,Guys and St Thomas NHS Foundation Trust,14/01/2022,(82800) Bedding & Linen,(id:41905) TAP,NHS SUPPLY CHAIN (MAIDSTONE),id:14721243   ,11.16,
Department of Health,Guys and St Thomas NHS Foundation Trust,21/01/2022,(82800) Bedding & Linen,(id:41905) TAP,NHS SUPPLY CHAIN (MAIDSTONE),id:14760334   ,7.44,
Department of Health,Guys and St Thomas NHS Foundation Trust,14/01/2022,(81200) Medical Surgical Supplies & Equipment,(id:41905) TAP,AMBU LIMITED,id:14776756  ,1908,
Department of Health,Guys and St Thomas NHS Foundation Trust,14/01/2022,(82600) Uniforms & Clothing,(id:41905) TAP,NHS SUPPLY CHAIN (MAIDSTONE),id:14751854    ,47.52,
Department of Health,Guys and St Thomas NHS Foundation Trust,28/01/2022,(82600) Uniforms & Clothing,(id:41905) TAP,NHS SUPPLY CHAIN (MAIDSTONE),id:14742162    ,51.29,
Department of Health,Guys and St Thomas NHS Foundation Trust,28/01/2022,(83400) Office Equipment,(id:41905) TAP,NHS SUPPLY CHAIN (MAIDSTONE),id:14776441  ,1.07,
Department of Health,Guys and St Thomas NHS Foundation Trust,21/01/2022,(50200) Consultants,(id:41905) TAP,KINGS COLLEGE LONDON:03529700,id:14793289 ,2546.59,
Department of Health,Guys and St Thomas NHS Foundation Trust,14/01/2022,(83400) Office Equipment,(id:850419) TAP,NHS SUPPLY CHAIN (MAIDSTONE),id:14780246 ,234.86,
Department of Health,Guys and St Thomas NHS Foundation Trust,28/01/2022,(83400) Office Equipment,(id:850419) TAP,NHS SUPPLY CHAIN (MAIDSTONE),id:14742162 ,901.16,
Department of Health,Guys and St Thomas NHS Foundation Trust,14/01/2022,(82700) Uniforms & Clothing,(id:41918) TAP,NHS SUPPLY CHAIN (MAIDSTONE),id:14721243    ,170.4,
Department of Health,Guys and St Thomas NHS Foundation Trust,28/01/2022,(83400) Office Equipment,(id:41918) TAP,NHS SUPPLY CHAIN (MAIDSTONE),id:14742162  ,316.51,
Department of Health,Guys and St Thomas NHS Foundation Trust,14/01/2022,(81200) Medical Surgical Supplies & Equipment,(id:41918) TAP,NHS SUPPLY CHAIN (MAIDSTONE),id:14780246 ,2295.04,
Department of Health,Guys and St Thomas NHS Foundation Trust,07/01/2022,(81100) Dressings,(id:41918) TAP,ELIS UK LIMITED,id:14736174  ,1673.5,
Department of Health,Guys and St Thomas NHS Foundation Trust,14/01/2022,(81275) Medical Surgical Supplies & Equipment,(id:41918) TAP,NHS SUPPLY CHAIN (MAIDSTONE),id:14780246 ,28.92,
Department of Health,Guys and St Thomas NHS Foundation Trust,14/01/2022,(82600) Uniforms & Clothing,(id:41916) TAP,NHS SUPPLY CHAIN (MAIDSTONE),id:14721243    ,84.36,
Department of Health,Guys and St Thomas NHS Foundation Trust,21/01/2022,(81100) Dressings,(id:41916) TAP,NHS SUPPLY CHAIN (MAIDSTONE),id:14760334    ,89,
Department of Health,Guys and St Thomas NHS Foundation Trust,14/01/2022,(81200) Medical Surgical Supplies & Equipment,(id:41916) TAP,TOFFELN (BRISTOL),id:14776515  ,703.2,
Department of Health,Guys and St Thomas NHS Foundation Trust,21/01/2022,(81200) Medical Surgical Supplies & Equipment,(id:41916) TAP,NHS SUPPLY CHAIN (MAIDSTONE),id:14760334 ,261.4,
Department of Health,Guys and St Thomas NHS Foundation Trust,28/01/2022,(83400) Office Equipment,(id:41916) TAP,NHS SUPPLY CHAIN (MAIDSTONE),id:14742162  ,496.03,
Department of Health,Guys and St Thomas NHS Foundation Trust,28/01/2022,(83400) Office Equipment,(id:41916) TAP,NHS SUPPLY CHAIN (MAIDSTONE),id:14776441  ,17.12,
Department of Health,Guys and St Thomas NHS Foundation Trust,28/01/2022,(81700) Lab Equipment Purchase,(id:4851419) TAP,NHS SUPPLY CHAIN (MAIDSTONE),id:14742162    ,53.4,
Department of Health,Guys and St Thomas NHS Foundation Trust,14/01/2022,(81200) Medical Surgical Supplies & Equipment,(id:41924) TAP,NHS SUPPLY CHAIN (MAIDSTONE),id:14721243 ,218.74,
Department of Health,Guys and St Thomas NHS Foundation Trust,14/01/2022,(81200) Medical Surgical Supplies & Equipment,(id:41922) TAP,NHS SUPPLY CHAIN (MAIDSTONE),id:14721243 ,9.14,
Department of Health,Guys and St Thomas NHS Foundation Trust,14/01/2022,(81700) Lab Equipment Purchase,(id:41921) TAP,NHS SUPPLY CHAIN (MAIDSTONE),id:14780246 ,5.42,
Department of Health,Guys and St Thomas NHS Foundation Trust,21/01/2022,(82600) Uniforms & Clothing,(id:41883) TAP,NHS SUPPLY CHAIN (MAIDSTONE),id:14760334    ,145.01,
Department of Health,Guys and St Thomas NHS Foundation Trust,21/01/2022,(82600) Uniforms & Clothing,(id:41883) TAP,TOFFELN (BRISTOL),id:14795242,4771.2,
Department of Health,Guys and St Thomas NHS Foundation Trust,14/01/2022,(81100) Dressings,(id:41883) TAP,NHS SUPPLY CHAIN (MAIDSTONE),id:14751854    ,954.49,
Department of Health,Guys and St Thomas NHS Foundation Trust,14/01/2022,(81100) Dressings,(id:41883) TAP,ELIS UK LIMITED,id:14779073  ,946.73,
Department of Health,Guys and St Thomas NHS Foundation Trust,14/01/2022,(81200) Medical Surgical Supplies & Equipment,(id:2549419) TAP,NHS SUPPLY CHAIN (MAIDSTONE),id:14751854    ,292.63,
Department of Health,Guys and St Thomas NHS Foundation Trust,14/01/2022,(81200) Medical Surgical Supplies & Equipment,(id:2549419) TAP,NHS SUPPLY CHAIN (MAIDSTONE),id:14721243    ,557.74,
Department of Health,Guys and St Thomas NHS Foundation Trust,14/01/2022,(81200) Medical Surgical Supplies & Equipment,(id:2549419) TAP,NHS SUPPLY CHAIN (MAIDSTONE),id:14780246    ,354.72,
Department of Health,Guys and St Thomas NHS Foundation Trust,28/01/2022,(81200) Medical Surgical Supplies & Equipment,(id:2549419) TAP,NHS SUPPLY CHAIN (MAIDSTONE),id:14776441    ,117.93,
Department of Health,Guys and St Thomas NHS Foundation Trust,14/01/2022,(83400) Office Equipment,(id:2549419) TAP,NHS SUPPLY CHAIN (MAIDSTONE),id:14751854,12.66,
Department of Health,Guys and St Thomas NHS Foundation Trust,21/01/2022,(82800) Bedding & Linen,(id:2549419) TAP,NHS SUPPLY CHAIN (MAIDSTONE),id:14760334 ,3.52,
Department of Health,Guys and St Thomas NHS Foundation Trust,14/01/2022,(81100) Dressings,(id:2549419) TAP,NHS SUPPLY CHAIN (MAIDSTONE),id:14780246  ,0.55,
Department of Health,Guys and St Thomas NHS Foundation Trust,28/01/2022,(81100) Dressings,(id:2549419) TAP,NHS SUPPLY CHAIN (MAIDSTONE),id:14776441  ,0.58,
Department of Health,Guys and St Thomas NHS Foundation Trust,14/01/2022,(82600) Uniforms & Clothing,(id:41897) TAP,NHS SUPPLY CHAIN (MAIDSTONE),id:14780246    ,153.97,
Department of Health,Guys and St Thomas NHS Foundation Trust,14/01/2022,(81200) Medical Surgical Supplies & Equipment,(id:41897) TAP,365 HEALTHCARE LTD,id:14780499 ,557.09,
Department of Health,Guys and St Thomas NHS Foundation Trust,14/01/2022,(81100) Dressings,(id:41897) TAP,NHS SUPPLY CHAIN (MAIDSTONE),id:14751854    ,634.01,
Department of Health,Guys and St Thomas NHS Foundation Trust,14/01/2022,(81225) Medical Surgical Supplies & Equipment,(id:41897) TAP,NHS SUPPLY CHAIN (MAIDSTONE),id:14721243 ,147.22,
Department of Health,Guys and St Thomas NHS Foundation Trust,28/01/2022,(81230) Medical Surgical Supplies & Equipment,(id:41894) TAP,NHS SUPPLY CHAIN (MAIDSTONE),id:14742162 ,62.7,
Department of Health,Guys and St Thomas NHS Foundation Trust,28/01/2022,(81200) Medical Surgical Supplies & Equipment,(id:41894) TAP,NHS SUPPLY CHAIN (MAIDSTONE),id:14742162 ,783.73,
Department of Health,Guys and St Thomas NHS Foundation Trust,14/01/2022,(81200) Medical Surgical Supplies & Equipment,(id:41892) TAP,NHS SUPPLY CHAIN (MAIDSTONE),id:14780246 ,16.1,
Department of Health,Guys and St Thomas NHS Foundation Trust,14/01/2022,(81200) Medical Surgical Supplies & Equipment,(id:41892) TAP,NHS SUPPLY CHAIN (MAIDSTONE),id:14751854 ,4.1,
Department of Health,Guys and St Thomas NHS Foundation Trust,14/01/2022,(83500) Furniture & Fittings,(id:41896) TAP,1ST BIOTECH LIMITED,id:14787242  ,57.72,
Department of Health,Guys and St Thomas NHS Foundation Trust,14/01/2022,(81200) Medical Surgical Supplies & Equipment,(id:5182419) Gastrointestinal Medicine & Surgery,LAWMED LTD,id:14787014,1240.2,
Department of Health,Guys and St Thomas NHS Foundation Trust,28/01/2022,(81200) Medical Surgical Supplies & Equipment,(id:5182419) Gastrointestinal Medicine & Surgery,LAWMED LTD,id:14828614,808.2,
Department of Health,Guys and St Thomas NHS Foundation Trust,14/01/2022,(82700) Uniforms & Clothing,(id:41958) Gastrointestinal Medicine & Surgery,NHS SUPPLY CHAIN (MAIDSTONE),id:14751854  ,78,
Department of Health,Guys and St Thomas NHS Foundation Trust,14/01/2022,(83400) Office Equipment,(id:41958) Gastrointestinal Medicine & Surgery,NHS SUPPLY CHAIN (MAIDSTONE),id:14721243,78.66,
Department of Health,Guys and St Thomas NHS Foundation Trust,21/01/2022,(83400) Office Equipment,(id:41958) Gastrointestinal Medicine & Surgery,NHS SUPPLY CHAIN (MAIDSTONE),id:14760334,52.32,
Department of Health,Guys and St Thomas NHS Foundation Trust,28/01/2022,(82800) Bedding & Linen,(id:41958) Gastrointestinal Medicine & Surgery,NHS SUPPLY CHAIN (MAIDSTONE),id:14776441 ,17.65,
Department of Health,Guys and St Thomas NHS Foundation Trust,14/01/2022,(81200) Medical Surgical Supplies & Equipment,(id:41958) Gastrointestinal Medicine & Surgery,NHS SUPPLY CHAIN (MAIDSTONE),id:14751854    ,1055.28,
Department of Health,Guys and St Thomas NHS Foundation Trust,14/01/2022,(81200) Medical Surgical Supplies & Equipment,(id:41958) Gastrointestinal Medicine & Surgery,NHS SUPPLY CHAIN (MAIDSTONE),id:14721243    ,868.09,
Department of Health,Guys and St Thomas NHS Foundation Trust,14/01/2022,(81100) Dressings,(id:41958) Gastrointestinal Medicine & Surgery,NHS SUPPLY CHAIN (MAIDSTONE),id:14780246  ,554.08,
Department of Health,Guys and St Thomas NHS Foundation Trust,14/01/2022,(50522) Unqualified Nursing Staff,(id:41958) Gastrointestinal Medicine & Surgery,MSI GROUP LTD,id:14788802 ,536.38,
Department of Health,Guys and St Thomas NHS Foundation Trust,21/01/2022,(50522) Unqualified Nursing Staff,(id:41958) Gastrointestinal Medicine & Surgery,CARE PROVIDERS HEALTHCARE,id:14805319    ,805.31,
Department of Health,Guys and St Thomas NHS Foundation Trust,21/01/2022,(50522) Unqualified Nursing Staff,(id:41958) Gastrointestinal Medicine & Surgery,CARE PROVIDERS HEALTHCARE,id:14805436    ,273.47,
Department of Health,Guys and St Thomas NHS Foundation Trust,14/01/2022,(81275) Medical Surgical Supplies & Equipment,(id:41958) Gastrointestinal Medicine & Surgery,NHS SUPPLY CHAIN (MAIDSTONE),id:14780246    ,14.46,
Department of Health,Guys and St Thomas NHS Foundation Trust,14/01/2022,(81700) Lab Equipment Purchase,(id:41958) Gastrointestinal Medicine & Surgery,NHS SUPPLY CHAIN (MAIDSTONE),id:14751854    ,5.9,
Department of Health,Guys and St Thomas NHS Foundation Trust,21/01/2022,(81700) Lab Equipment Purchase,(id:41958) Gastrointestinal Medicine & Surgery,NHS SUPPLY CHAIN (MAIDSTONE),id:14760334    ,19.4,
Department of Health,Guys and St Thomas NHS Foundation Trust,21/01/2022,(82000) Provisions & Kitchens,(id:41955) Gastrointestinal Medicine & Surgery,TALAR MADE ORTHOTICS LTD,id:14797779    ,28.52,
Department of Health,Guys and St Thomas NHS Foundation Trust,28/01/2022,(82700) Uniforms & Clothing,(id:41954) Gastrointestinal Medicine & Surgery,NHS SUPPLY CHAIN (MAIDSTONE),id:14776441  ,31.68,
Department of Health,Guys and St Thomas NHS Foundation Trust,28/01/2022,(83400) Office Equipment,(id:41954) Gastrointestinal Medicine & Surgery,NHS SUPPLY CHAIN (MAIDSTONE),id:14776441,110.11,
Department of Health,Guys and St Thomas NHS Foundation Trust,14/01/2022,(82800) Bedding & Linen,(id:41954) Gastrointestinal Medicine & Surgery,NHS SUPPLY CHAIN (MAIDSTONE),id:14751854 ,193.12,
Department of Health,Guys and St Thomas NHS Foundation Trust,07/01/2022,(50522) Unqualified Nursing Staff,(id:41954) Gastrointestinal Medicine & Surgery,MSI GROUP LTD,id:14768859 ,274.97,
Department of Health,Guys and St Thomas NHS Foundation Trust,28/01/2022,(50522) Unqualified Nursing Staff,(id:41954) Gastrointestinal Medicine & Surgery,CARE PROVIDERS HEALTHCARE,id:14830179    ,288.57,
Department of Health,Guys and St Thomas NHS Foundation Trust,14/01/2022,(50552) Qualified Nursing Staff,(id:41954) Gastrointestinal Medicine & Surgery,CARE PROVIDERS HEALTHCARE,id:14788516 ,1435.06,
Department of Health,Guys and St Thomas NHS Foundation Trust,14/01/2022,(81225) Medical Surgical Supplies & Equipment,(id:41954) Gastrointestinal Medicine & Surgery,NHS SUPPLY CHAIN (MAIDSTONE),id:14780246    ,1965.52,
Department of Health,Guys and St Thomas NHS Foundation Trust,14/01/2022,(81100) Dressings,(id:41951) Gastrointestinal Medicine & Surgery,NHS SUPPLY CHAIN (MAIDSTONE),id:14780246  ,3.3,
Department of Health,Guys and St Thomas NHS Foundation Trust,07/01/2022,(81200) Medical Surgical Supplies & Equipment,(id:41949) Gastrointestinal Medicine & Surgery,JOHNSON & JOHNSON MEDICAL LTD,id:14728194   ,1542.34,
Department of Health,Guys and St Thomas NHS Foundation Trust,28/01/2022,(81200) Medical Surgical Supplies & Equipment,(id:41949) Gastrointestinal Medicine & Surgery,JOHNSON & JOHNSON MEDICAL LTD,id:14786456   ,689.27,
Department of Health,Guys and St Thomas NHS Foundation Trust,07/01/2022,(81000) Surgical Appliances,(id:41944) Gastrointestinal Medicine & Surgery,MEDI UK LTD,id:14760335    ,158.09,
Department of Health,Guys and St Thomas NHS Foundation Trust,07/01/2022,(81000) Surgical Appliances,(id:41944) Gastrointestinal Medicine & Surgery,MEDI UK LTD,id:14760094    ,278.49,
Department of Health,Guys and St Thomas NHS Foundation Trust,28/01/2022,(81100) Dressings,(id:4740419) Gastrointestinal Medicine & Surgery,NHS SUPPLY CHAIN (MAIDSTONE),id:14742162,127.51,
Department of Health,Guys and St Thomas NHS Foundation Trust,28/01/2022,(81700) Lab Equipment Purchase,(id:2367419) Gastrointestinal Medicine & Surgery,NHS SUPPLY CHAIN (MAIDSTONE),id:14776441  ,8.47,
Department of Health,Guys and St Thomas NHS Foundation Trust,07/01/2022,(50522) Unqualified Nursing Staff,(id:2367419) Gastrointestinal Medicine & Surgery,CARE PROVIDERS HEALTHCARE,id:14768906  ,269.1,
Department of Health,Guys and St Thomas NHS Foundation Trust,28/01/2022,(82800) Bedding & Linen,(id:2367419) Gastrointestinal Medicine & Surgery,NHS SUPPLY CHAIN (MAIDSTONE),id:14776441    ,125.43,
Department of Health,Guys and St Thomas NHS Foundation Trust,21/01/2022,(81200) Medical Surgical Supplies & Equipment,(id:2367419) Gastrointestinal Medicine & Surgery,NHS SUPPLY CHAIN (MAIDSTONE),id:14760334  ,239.67,
Department of Health,Guys and St Thomas NHS Foundation Trust,21/01/2022,(81100) Dressings,(id:2367419) Gastrointestinal Medicine & Surgery,NHS SUPPLY CHAIN (MAIDSTONE),id:14760334,145.52,
Department of Health,Guys and St Thomas NHS Foundation Trust,14/01/2022,(50552) Qualified Nursing Staff,(id:2367419) Gastrointestinal Medicine & Surgery,CONTINENTAL NURSE LTD,id:14788756   ,327,
Department of Health,Guys and St Thomas NHS Foundation Trust,14/01/2022,(83400) Office Equipment,(id:41957) Gastrointestinal Medicine & Surgery,NHS SUPPLY CHAIN (MAIDSTONE),id:14721243,196.66,
Department of Health,Guys and St Thomas NHS Foundation Trust,14/01/2022,(81200) Medical Surgical Supplies & Equipment,(id:41942) Gastrointestinal Medicine & Surgery,NHS SUPPLY CHAIN (MAIDSTONE),id:14721243    ,152.94,
Department of Health,Guys and St Thomas NHS Foundation Trust,14/01/2022,(83400) Office Equipment,(id:41942) Gastrointestinal Medicine & Surgery,NHS SUPPLY CHAIN (MAIDSTONE),id:14721243,249.84,
Department of Health,Guys and St Thomas NHS Foundation Trust,14/01/2022,(82000) Provisions & Kitchens,(id:41942) Gastrointestinal Medicine & Surgery,NHS SUPPLY CHAIN (MAIDSTONE),id:14721243,5.18,
Department of Health,Guys and St Thomas NHS Foundation Trust,28/01/2022,(82800) Bedding & Linen,(id:41917) Gastrointestinal Medicine & Surgery,NHS SUPPLY CHAIN (MAIDSTONE),id:14742162 ,426.87,
Department of Health,Guys and St Thomas NHS Foundation Trust,21/01/2022,(82700) Uniforms & Clothing,(id:41917) Gastrointestinal Medicine & Surgery,NHS SUPPLY CHAIN (MAIDSTONE),id:14760334  ,165.81,
Department of Health,Guys and St Thomas NHS Foundation Trust,28/01/2022,(82700) Uniforms & Clothing,(id:41917) Gastrointestinal Medicine & Surgery,NHS SUPPLY CHAIN (MAIDSTONE),id:14742162  ,94.75,
Department of Health,Guys and St Thomas NHS Foundation Trust,28/01/2022,(81235) Medical Surgical Supplies & Equipment,(id:41917) Gastrointestinal Medicine & Surgery,BOSTON SCIENTIFIC LTD,id:14806814 ,2364.84,
Department of Health,Guys and St Thomas NHS Foundation Trust,28/01/2022,(81235) Medical Surgical Supplies & Equipment,(id:41917) Gastrointestinal Medicine & Surgery,BOSTON SCIENTIFIC LTD,id:14775009 ,1081.01,
Department of Health,Guys and St Thomas NHS Foundation Trust,07/01/2022,(81200) Medical Surgical Supplies & Equipment,(id:41917) Gastrointestinal Medicine & Surgery,BOSTON SCIENTIFIC LTD,id:14722208 ,4729.54,
Department of Health,Guys and St Thomas NHS Foundation Trust,07/01/2022,(81200) Medical Surgical Supplies & Equipment,(id:41917) Gastrointestinal Medicine & Surgery,BOSTON SCIENTIFIC LTD,id:14744068 ,3480,
Department of Health,Guys and St Thomas NHS Foundation Trust,14/01/2022,(81200) Medical Surgical Supplies & Equipment,(id:41917) Gastrointestinal Medicine & Surgery,AAH PHARMACEUTICALS LTD,id:14731746    ,1162.8,
Department of Health,Guys and St Thomas NHS Foundation Trust,21/01/2022,(81200) Medical Surgical Supplies & Equipment,(id:41917) Gastrointestinal Medicine & Surgery,BOSTON SCIENTIFIC LTD,id:14755005 ,675.65,
Department of Health,Guys and St Thomas NHS Foundation Trust,21/01/2022,(81200) Medical Surgical Supplies & Equipment,(id:41917) Gastrointestinal Medicine & Surgery,BOSTON SCIENTIFIC LTD,id:14755002 ,788.22,
Department of Health,Guys and St Thomas NHS Foundation Trust,21/01/2022,(81200) Medical Surgical Supplies & Equipment,(id:41917) Gastrointestinal Medicine & Surgery,OLYMPUS KEYMED,id:14800120   ,1148.4,
Department of Health,Guys and St Thomas NHS Foundation Trust,28/01/2022,(81200) Medical Surgical Supplies & Equipment,(id:41917) Gastrointestinal Medicine & Surgery,BOSTON SCIENTIFIC LTD,id:14724494 ,1124.52,
Department of Health,Guys and St Thomas NHS Foundation Trust,28/01/2022,(81200) Medical Surgical Supplies & Equipment,(id:41917) Gastrointestinal Medicine & Surgery,BOSTON SCIENTIFIC LTD,id:14752899 ,3480,
Department of Health,Guys and St Thomas NHS Foundation Trust,21/01/2022,(83410) Office Equipment,(id:41917) Gastrointestinal Medicine & Surgery,RICOH UK LTD,id:14797285 ,507.16,
Department of Health,Guys and St Thomas NHS Foundation Trust,14/01/2022,(81700) Lab Equipment Purchase,(id:41917) Gastrointestinal Medicine & Surgery,NHS SUPPLY CHAIN (MAIDSTONE),id:14721243    ,38.64,
Department of Health,Guys and St Thomas NHS Foundation Trust,14/01/2022,(81255) Medical Surgical Supplies & Equipment,(id:41917) Gastrointestinal Medicine & Surgery,NHS SUPPLY CHAIN (MAIDSTONE),id:14721243    ,276,
Department of Health,Guys and St Thomas NHS Foundation Trust,14/01/2022,(82600) Uniforms & Clothing,(id:2534420) Gastrointestinal Medicine & Surgery,1ST BIOTECH LIMITED,id:14787240    ,852.6,
Department of Health,Guys and St Thomas NHS Foundation Trust,28/01/2022,(89640) Non-Healthcare from NHS Trusts,(id:3363419) Cancer Strategy,DARTFORD AND GRAVESHAM NHS TRUST,id:14829394,1187,
Department of Health,Guys and St Thomas NHS Foundation Trust,14/01/2022,(83400) Office Equipment,(id:42423) Transplant Renal and Urology,NHS SUPPLY CHAIN (MAIDSTONE),id:14721243  ,10.92,
Department of Health,Guys and St Thomas NHS Foundation Trust,28/01/2022,(81200) Medical Surgical Supplies & Equipment,(id:42423) Transplant Renal and Urology,NHS SUPPLY CHAIN (MAIDSTONE),id:14742162 ,47.83,
Department of Health,Guys and St Thomas NHS Foundation Trust,14/01/2022,(81200) Medical Surgical Supplies & Equipment,(id:42419) Transplant Renal and Urology,NHS SUPPLY CHAIN (MAIDSTONE),id:14780246 ,664.01,
Department of Health,Guys and St Thomas NHS Foundation Trust,28/01/2022,(83400) Office Equipment,(id:42419) Transplant Renal and Urology,NHS SUPPLY CHAIN (MAIDSTONE),id:14742162  ,119.17,
Department of Health,Guys and St Thomas NHS Foundation Trust,21/01/2022,(81255) Medical Surgical Supplies & Equipment,(id:42419) Transplant Renal and Urology,NHS SUPPLY CHAIN (MAIDSTONE),id:14760334 ,4.32,
Department of Health,Guys and St Thomas NHS Foundation Trust,07/01/2022,(81200) Medical Surgical Supplies & Equipment,(id:42450) Transplant Renal and Urology,STRYKER UK LTD,id:14712200,705.6,
Department of Health,Guys and St Thomas NHS Foundation Trust,07/01/2022,(81200) Medical Surgical Supplies & Equipment,(id:42450) Transplant Renal and Urology,MEDTRONIC LTD,id:14708319 ,465.59,
Department of Health,Guys and St Thomas NHS Foundation Trust,28/01/2022,(81200) Medical Surgical Supplies & Equipment,(id:42450) Transplant Renal and Urology,MEDTRONIC LTD,id:14778252 ,931.18,
Department of Health,Guys and St Thomas NHS Foundation Trust,14/01/2022,(81200) Medical Surgical Supplies & Equipment,(id:42449) Transplant Renal and Urology,NHS SUPPLY CHAIN (MAIDSTONE),id:14780246 ,972,
Department of Health,Guys and St Thomas NHS Foundation Trust,21/01/2022,(81200) Medical Surgical Supplies & Equipment,(id:42449) Transplant Renal and Urology,NHS SUPPLY CHAIN (MAIDSTONE),id:14760334 ,51.84,
Department of Health,Guys and St Thomas NHS Foundation Trust,21/01/2022,(81200) Medical Surgical Supplies & Equipment,(id:42449) Transplant Renal and Urology,COOK UK LTD,id:14752976   ,641.16,
Department of Health,Guys and St Thomas NHS Foundation Trust,28/01/2022,(83400) Office Equipment,(id:42449) Transplant Renal and Urology,NHS SUPPLY CHAIN (MAIDSTONE),id:14776441  ,48.58,
Department of Health,Guys and St Thomas NHS Foundation Trust,21/01/2022,(81400) Medical Surgical Supplies & Equipment,(id:42449) Transplant Renal and Urology,NHS SUPPLY CHAIN (MAIDSTONE),id:14760334 ,63.24,
Department of Health,Guys and St Thomas NHS Foundation Trust,14/01/2022,(50552) Qualified Nursing Staff,(id:42449) Transplant Renal and Urology,CONTINENTAL NURSE LTD,id:14788696  ,1452.68,
Department of Health,Guys and St Thomas NHS Foundation Trust,14/01/2022,(81225) Medical Surgical Supplies & Equipment,(id:42449) Transplant Renal and Urology,NHS SUPPLY CHAIN (MAIDSTONE),id:14721243 ,76.61,
Department of Health,Guys and St Thomas NHS Foundation Trust,21/01/2022,(83400) Office Equipment,(id:42447) Transplant Renal and Urology,NHS SUPPLY CHAIN (MAIDSTONE),id:14760334  ,203.61,
Department of Health,Guys and St Thomas NHS Foundation Trust,14/01/2022,(82800) Bedding & Linen,(id:42447) Transplant Renal and Urology,NHS SUPPLY CHAIN (MAIDSTONE),id:14751854   ,202.91,
Department of Health,Guys and St Thomas NHS Foundation Trust,21/01/2022,(81100) Dressings,(id:42447) Transplant Renal and Urology,NHS SUPPLY CHAIN (MAIDSTONE),id:14760334    ,7.62,
Department of Health,Guys and St Thomas NHS Foundation Trust,14/01/2022,(81225) Medical Surgical Supplies & Equipment,(id:42447) Transplant Renal and Urology,NHS SUPPLY CHAIN (MAIDSTONE),id:14751854 ,12.48,
Department of Health,Guys and St Thomas NHS Foundation Trust,14/01/2022,(81100) Dressings,(id:42446) Transplant Renal and Urology,NHS SUPPLY CHAIN (MAIDSTONE),id:14751854    ,301.2,
Department of Health,Guys and St Thomas NHS Foundation Trust,07/01/2022,(81200) Medical Surgical Supplies & Equipment,(id:42446) Transplant Renal and Urology,BOSTON SCIENTIFIC LTD,id:14733899   ,537.24,
Department of Health,Guys and St Thomas NHS Foundation Trust,07/01/2022,(81200) Medical Surgical Supplies & Equipment,(id:42446) Transplant Renal and Urology,MERCIAN SURGICAL SUPPLY CO LTD,id:14759355    ,2257.2,
Department of Health,Guys and St Thomas NHS Foundation Trust,07/01/2022,(81200) Medical Surgical Supplies & Equipment,(id:42446) Transplant Renal and Urology,MEDTRONIC LTD,id:14708322 ,3350.4,
Department of Health,Guys and St Thomas NHS Foundation Trust,14/01/2022,(81200) Medical Surgical Supplies & Equipment,(id:42446) Transplant Renal and Urology,BOSTON SCIENTIFIC LTD,id:14722310   ,5493.26,
Department of Health,Guys and St Thomas NHS Foundation Trust,28/01/2022,(81200) Medical Surgical Supplies & Equipment,(id:42446) Transplant Renal and Urology,NHS SUPPLY CHAIN (MAIDSTONE),id:14742162 ,5898.1,
Department of Health,Guys and St Thomas NHS Foundation Trust,28/01/2022,(83400) Office Equipment,(id:42446) Transplant Renal and Urology,NHS SUPPLY CHAIN (MAIDSTONE),id:14776441  ,193.94,
Department of Health,Guys and St Thomas NHS Foundation Trust,07/01/2022,(81200) Medical Surgical Supplies & Equipment,(id:42444) Transplant Renal and Urology,OLYMPUS KEYMED,id:14751895,1122,
Department of Health,Guys and St Thomas NHS Foundation Trust,14/01/2022,(81235) Medical Surgical Supplies & Equipment,(id:42444) Transplant Renal and Urology,BOSTON SCIENTIFIC LTD,id:14765113   ,198.72,
Department of Health,Guys and St Thomas NHS Foundation Trust,14/01/2022,(82000) Provisions & Kitchens,(id:42443) Transplant Renal and Urology,NHS SUPPLY CHAIN (MAIDSTONE),id:14780246  ,10.55,
Department of Health,Guys and St Thomas NHS Foundation Trust,14/01/2022,(82600) Uniforms & Clothing,(id:42443) Transplant Renal and Urology,NHS SUPPLY CHAIN (MAIDSTONE),id:14780246    ,42.1,
Department of Health,Guys and St Thomas NHS Foundation Trust,14/01/2022,(82800) Bedding & Linen,(id:42443) Transplant Renal and Urology,NHS SUPPLY CHAIN (MAIDSTONE),id:14721243   ,188.9,
Department of Health,Guys and St Thomas NHS Foundation Trust,14/01/2022,(81100) Dressings,(id:42443) Transplant Renal and Urology,NHS SUPPLY CHAIN (MAIDSTONE),id:14751854    ,81.09,
Department of Health,Guys and St Thomas NHS Foundation Trust,28/01/2022,(81100) Dressings,(id:42443) Transplant Renal and Urology,NHS SUPPLY CHAIN (MAIDSTONE),id:14776441    ,168.21,
Department of Health,Guys and St Thomas NHS Foundation Trust,14/01/2022,(81200) Medical Surgical Supplies & Equipment,(id:42443) Transplant Renal and Urology,NHS SUPPLY CHAIN (MAIDSTONE),id:14751854 ,1514.16,
Department of Health,Guys and St Thomas NHS Foundation Trust,14/01/2022,(81200) Medical Surgical Supplies & Equipment,(id:42443) Transplant Renal and Urology,NHS SUPPLY CHAIN (MAIDSTONE),id:14721243 ,714.23,
Department of Health,Guys and St Thomas NHS Foundation Trust,14/01/2022,(81200) Medical Surgical Supplies & Equipment,(id:42443) Transplant Renal and Urology,3M UNITED KINGDOM PLC,id:14601733   ,538.8,
Department of Health,Guys and St Thomas NHS Foundation Trust,14/01/2022,(83400) Office Equipment,(id:42443) Transplant Renal and Urology,NHS SUPPLY CHAIN (MAIDSTONE),id:14751854  ,72.68,
Department of Health,Guys and St Thomas NHS Foundation Trust,14/01/2022,(81700) Lab Equipment Purchase,(id:42443) Transplant Renal and Urology,NHS SUPPLY CHAIN (MAIDSTONE),id:14721243 ,10.68,
Department of Health,Guys and St Thomas NHS Foundation Trust,21/01/2022,(82700) Uniforms & Clothing,(id:42442) Transplant Renal and Urology,NHS SUPPLY CHAIN (MAIDSTONE),id:14760334    ,43.68,
Department of Health,Guys and St Thomas NHS Foundation Trust,14/01/2022,(82800) Bedding & Linen,(id:42442) Transplant Renal and Urology,NHS SUPPLY CHAIN (MAIDSTONE),id:14780246   ,178.1,
Department of Health,Guys and St Thomas NHS Foundation Trust,14/01/2022,(81100) Dressings,(id:42442) Transplant Renal and Urology,NHS SUPPLY CHAIN (MAIDSTONE),id:14780246    ,301,
Department of Health,Guys and St Thomas NHS Foundation Trust,28/01/2022,(83400) Office Equipment,(id:42442) Transplant Renal and Urology,NHS SUPPLY CHAIN (MAIDSTONE),id:14742162  ,172.05,
Department of Health,Guys and St Thomas NHS Foundation Trust,28/01/2022,(81700) Lab Equipment Purchase,(id:42442) Transplant Renal and Urology,NHS SUPPLY CHAIN (MAIDSTONE),id:14742162 ,13.8,
Department of Health,Guys and St Thomas NHS Foundation Trust,14/01/2022,(81200) Medical Surgical Supplies & Equipment,(id:42439) Transplant Renal and Urology,INTUITIVE SURGICAL LTD,id:14779214  ,18764.4,
Department of Health,Guys and St Thomas NHS Foundation Trust,21/01/2022,(81200) Medical Surgical Supplies & Equipment,(id:42439) Transplant Renal and Urology,STRYKER UK LTD,id:14793440,6138.72,
Department of Health,Guys and St Thomas NHS Foundation Trust,21/01/2022,(81400) Medical Surgical Supplies & Equipment,(id:42439) Transplant Renal and Urology,INTUITIVE SURGICAL LTD,id:14778701  ,147500,
Department of Health,Guys and St Thomas NHS Foundation Trust,14/01/2022,(81200) Medical Surgical Supplies & Equipment,(id:2653419) Transplant Renal and Urology,NHS SUPPLY CHAIN (MAIDSTONE),id:14751854    ,93.84,
Department of Health,Guys and St Thomas NHS Foundation Trust,21/01/2022,(81200) Medical Surgical Supplies & Equipment,(id:2653419) Transplant Renal and Urology,KIMAL PLC,id:14782418   ,700.06,
Department of Health,Guys and St Thomas NHS Foundation Trust,07/01/2022,(83400) Office Equipment,(id:42436) Transplant Renal and Urology,NXSTAGE MEDICAL UK LIMITED,id:14762675    ,600,
Department of Health,Guys and St Thomas NHS Foundation Trust,14/01/2022,(82600) Uniforms & Clothing,(id:42435) Transplant Renal and Urology,NHS SUPPLY CHAIN (MAIDSTONE),id:14751854    ,50.52,
Department of Health,Guys and St Thomas NHS Foundation Trust,21/01/2022,(83500) Furniture & Fittings,(id:42435) Transplant Renal and Urology,MEDSTROM LTD,id:14800086    ,1260,
Department of Health,Guys and St Thomas NHS Foundation Trust,07/01/2022,(50522) Unqualified Nursing Staff,(id:42435) Transplant Renal and Urology,GLOBE LOCUMS LTD,id:14769183,195.4,
Department of Health,Guys and St Thomas NHS Foundation Trust,14/01/2022,(81100) Dressings,(id:42435) Transplant Renal and Urology,NHS SUPPLY CHAIN (MAIDSTONE),id:14721243    ,602.57,
Department of Health,Guys and St Thomas NHS Foundation Trust,28/01/2022,(83400) Office Equipment,(id:42435) Transplant Renal and Urology,NHS SUPPLY CHAIN (MAIDSTONE),id:14742162  ,6.74,
Department of Health,Guys and St Thomas NHS Foundation Trust,14/01/2022,(50552) Qualified Nursing Staff,(id:42435) Transplant Renal and Urology,MEDICSPRO LTD,id:14788301,792.12,
Department of Health,Guys and St Thomas NHS Foundation Trust,14/01/2022,(83610) IT Costs,(id:42435) Transplant Renal and Urology,RDP HEALTH LTD,id:14776567    ,840,
Department of Health,Guys and St Thomas NHS Foundation Trust,21/01/2022,(81200) Medical Surgical Supplies & Equipment,(id:42433) Transplant Renal and Urology,TELEFLEX MEDICAL,id:14722398   ,2137.5,
Department of Health,Guys and St Thomas NHS Foundation Trust,21/01/2022,(81200) Medical Surgical Supplies & Equipment,(id:42433) Transplant Renal and Urology,TELEFLEX MEDICAL,id:14722272   ,1401.3,
Department of Health,Guys and St Thomas NHS Foundation Trust,14/01/2022,(82600) Uniforms & Clothing,(id:42428) Transplant Renal and Urology,NHS SUPPLY CHAIN (MAIDSTONE),id:14780246    ,25.28,
Department of Health,Guys and St Thomas NHS Foundation Trust,14/01/2022,(82800) Bedding & Linen,(id:42428) Transplant Renal and Urology,NHS SUPPLY CHAIN (MAIDSTONE),id:14780246   ,60.71,
Department of Health,Guys and St Thomas NHS Foundation Trust,28/01/2022,(81200) Medical Surgical Supplies & Equipment,(id:42428) Transplant Renal and Urology,NHS SUPPLY CHAIN (MAIDSTONE),id:14742162 ,137.16,
Department of Health,Guys and St Thomas NHS Foundation Trust,28/01/2022,(83400) Office Equipment,(id:42428) Transplant Renal and Urology,NHS SUPPLY CHAIN (MAIDSTONE),id:14742162  ,8.77,
Department of Health,Guys and St Thomas NHS Foundation Trust,28/01/2022,(81700) Lab Equipment Purchase,(id:42428) Transplant Renal and Urology,NHS SUPPLY CHAIN (MAIDSTONE),id:14776441 ,178.74,
Department of Health,Guys and St Thomas NHS Foundation Trust,07/01/2022,(81200) Medical Surgical Supplies & Equipment,(id:42420) Transplant Renal and Urology,FRESENIUS MEDICAL CARE UK LTD,id:14719474,3616.2,
Department of Health,Guys and St Thomas NHS Foundation Trust,14/01/2022,(82800) Bedding & Linen,(id:42420) Transplant Renal and Urology,NHS SUPPLY CHAIN (MAIDSTONE),id:14751854   ,449.47,
Department of Health,Guys and St Thomas NHS Foundation Trust,28/01/2022,(82800) Bedding & Linen,(id:42420) Transplant Renal and Urology,NHS SUPPLY CHAIN (MAIDSTONE),id:14776441   ,257.09,
Department of Health,Guys and St Thomas NHS Foundation Trust,14/01/2022,(81100) Dressings,(id:42420) Transplant Renal and Urology,NHS SUPPLY CHAIN (MAIDSTONE),id:14721243    ,378.12,
Department of Health,Guys and St Thomas NHS Foundation Trust,28/01/2022,(81100) Dressings,(id:42420) Transplant Renal and Urology,365 HEALTHCARE LTD,id:14826014    ,622.8,
Department of Health,Guys and St Thomas NHS Foundation Trust,14/01/2022,(81700) Lab Equipment Purchase,(id:42438) Transplant Renal and Urology,NHS SUPPLY CHAIN (MAIDSTONE),id:14780246 ,6.36,
Department of Health,Guys and St Thomas NHS Foundation Trust,28/01/2022,(81700) Lab Equipment Purchase,(id:42438) Transplant Renal and Urology,NHS SUPPLY CHAIN (MAIDSTONE),id:14742162 ,369.6,
Department of Health,Guys and St Thomas NHS Foundation Trust,14/01/2022,(50562) Qualified Nursing Staff,(id:42438) Transplant Renal and Urology,GLOBE LOCUMS LTD,id:14788386  ,824.15,
Department of Health,Guys and St Thomas NHS Foundation Trust,21/01/2022,(84600) Establishment,(id:42425) Transplant Renal and Urology,CLARITY TRAVEL MANAGEMENT,id:14797434   ,-125.64,
Department of Health,Guys and St Thomas NHS Foundation Trust,07/01/2022,(81200) Medical Surgical Supplies & Equipment,(id:42422) Transplant Renal and Urology,NXSTAGE MEDICAL UK LIMITED,id:14764074   ,2037.22,
Department of Health,Guys and St Thomas NHS Foundation Trust,07/01/2022,(81200) Medical Surgical Supplies & Equipment,(id:42422) Transplant Renal and Urology,NXSTAGE MEDICAL UK LIMITED,id:14560575   ,1302.34,
Department of Health,Guys and St Thomas NHS Foundation Trust,07/01/2022,(81200) Medical Surgical Supplies & Equipment,(id:42422) Transplant Renal and Urology,NXSTAGE MEDICAL UK LIMITED,id:13521856   ,2321.66,
Department of Health,Guys and St Thomas NHS Foundation Trust,07/01/2022,(81200) Medical Surgical Supplies & Equipment,(id:42422) Transplant Renal and Urology,NXSTAGE MEDICAL UK LIMITED,id:14561034   ,664.15,
Department of Health,Guys and St Thomas NHS Foundation Trust,07/01/2022,(81200) Medical Surgical Supplies & Equipment,(id:42422) Transplant Renal and Urology,NXSTAGE MEDICAL UK LIMITED,id:14561439   ,664.15,
Department of Health,Guys and St Thomas NHS Foundation Trust,07/01/2022,(81200) Medical Surgical Supplies & Equipment,(id:42422) Transplant Renal and Urology,NXSTAGE MEDICAL UK LIMITED,id:14762234   ,748.32,
Department of Health,Guys and St Thomas NHS Foundation Trust,07/01/2022,(81200) Medical Surgical Supplies & Equipment,(id:42422) Transplant Renal and Urology,NXSTAGE MEDICAL UK LIMITED,id:14765213   ,748.32,
Department of Health,Guys and St Thomas NHS Foundation Trust,07/01/2022,(81200) Medical Surgical Supplies & Equipment,(id:42422) Transplant Renal and Urology,NXSTAGE MEDICAL UK LIMITED,id:14293794   ,769.3,
Department of Health,Guys and St Thomas NHS Foundation Trust,07/01/2022,(81200) Medical Surgical Supplies & Equipment,(id:42422) Transplant Renal and Urology,NXSTAGE MEDICAL UK LIMITED,id:14562909   ,866.15,
Department of Health,Guys and St Thomas NHS Foundation Trust,07/01/2022,(81200) Medical Surgical Supplies & Equipment,(id:42422) Transplant Renal and Urology,NXSTAGE MEDICAL UK LIMITED,id:14762755   ,866.15,
Department of Health,Guys and St Thomas NHS Foundation Trust,07/01/2022,(81200) Medical Surgical Supplies & Equipment,(id:42422) Transplant Renal and Urology,NXSTAGE MEDICAL UK LIMITED,id:13887139   ,893.4,
Department of Health,Guys and St Thomas NHS Foundation Trust,07/01/2022,(81200) Medical Surgical Supplies & Equipment,(id:42422) Transplant Renal and Urology,NXSTAGE MEDICAL UK LIMITED,id:13517434   ,893.4,
Department of Health,Guys and St Thomas NHS Foundation Trust,07/01/2022,(81200) Medical Surgical Supplies & Equipment,(id:42422) Transplant Renal and Urology,NXSTAGE MEDICAL UK LIMITED,id:13870712   ,893.4,
Department of Health,Guys and St Thomas NHS Foundation Trust,07/01/2022,(81200) Medical Surgical Supplies & Equipment,(id:42422) Transplant Renal and Urology,NXSTAGE MEDICAL UK LIMITED,id:14763015   ,1116,
Department of Health,Guys and St Thomas NHS Foundation Trust,07/01/2022,(81200) Medical Surgical Supplies & Equipment,(id:42422) Transplant Renal and Urology,NXSTAGE MEDICAL UK LIMITED,id:14512974   ,1346.64,
Department of Health,Guys and St Thomas NHS Foundation Trust,07/01/2022,(81200) Medical Surgical Supplies & Equipment,(id:42422) Transplant Renal and Urology,NXSTAGE MEDICAL UK LIMITED,id:14512994   ,1346.64,
Department of Health,Guys and St Thomas NHS Foundation Trust,07/01/2022,(81200) Medical Surgical Supplies & Equipment,(id:42422) Transplant Renal and Urology,NXSTAGE MEDICAL UK LIMITED,id:14764154   ,-1636.8,
Department of Health,Guys and St Thomas NHS Foundation Trust,07/01/2022,(81200) Medical Surgical Supplies & Equipment,(id:42422) Transplant Renal and Urology,NXSTAGE MEDICAL UK LIMITED,id:14561394   ,1346.64,
Department of Health,Guys and St Thomas NHS Foundation Trust,14/01/2022,(81200) Medical Surgical Supplies & Equipment,(id:42422) Transplant Renal and Urology,NXSTAGE MEDICAL UK LIMITED,id:14777011   ,1451.42,
Department of Health,Guys and St Thomas NHS Foundation Trust,21/01/2022,(81200) Medical Surgical Supplies & Equipment,(id:42422) Transplant Renal and Urology,BAXTER HEALTHCARE LTD,id:14793321   ,751.56,
Department of Health,Guys and St Thomas NHS Foundation Trust,28/01/2022,(81200) Medical Surgical Supplies & Equipment,(id:42422) Transplant Renal and Urology,NXSTAGE MEDICAL UK LIMITED,id:14782776   ,1286.06,
Department of Health,Guys and St Thomas NHS Foundation Trust,28/01/2022,(81200) Medical Surgical Supplies & Equipment,(id:42422) Transplant Renal and Urology,NXSTAGE MEDICAL UK LIMITED,id:14782756   ,664.15,
Department of Health,Guys and St Thomas NHS Foundation Trust,28/01/2022,(81200) Medical Surgical Supplies & Equipment,(id:42422) Transplant Renal and Urology,NXSTAGE MEDICAL UK LIMITED,id:14762715   ,1178.31,
Department of Health,Guys and St Thomas NHS Foundation Trust,28/01/2022,(81200) Medical Surgical Supplies & Equipment,(id:42422) Transplant Renal and Urology,NXSTAGE MEDICAL UK LIMITED,id:14782768   ,1178.31,
Department of Health,Guys and St Thomas NHS Foundation Trust,28/01/2022,(81200) Medical Surgical Supplies & Equipment,(id:42422) Transplant Renal and Urology,NXSTAGE MEDICAL UK LIMITED,id:14782779   ,1395,
Department of Health,Guys and St Thomas NHS Foundation Trust,21/01/2022,(84600) Establishment,(id:42422) Transplant Renal and Urology,CLARITY TRAVEL MANAGEMENT,id:14797414   ,22.46,
Department of Health,Guys and St Thomas NHS Foundation Trust,21/01/2022,(81200) Medical Surgical Supplies & Equipment,(id:42421) Transplant Renal and Urology,BAXTER HEALTHCARE LTD,id:14687800   ,1483.69,
Department of Health,Guys and St Thomas NHS Foundation Trust,28/01/2022,(81200) Medical Surgical Supplies & Equipment,(id:42421) Transplant Renal and Urology,BAXTER HEALTHCARE LTD,id:14799710   ,675.7,
Department of Health,Guys and St Thomas NHS Foundation Trust,28/01/2022,(81200) Medical Surgical Supplies & Equipment,(id:884419) Surgery,NHS SUPPLY CHAIN (MAIDSTONE),id:14776441 ,91.34,
Department of Health,Guys and St Thomas NHS Foundation Trust,14/01/2022,(83400) Office Equipment,(id:42485) Surgery,NHS SUPPLY CHAIN (MAIDSTONE),id:14751854   ,241.33,
Department of Health,Guys and St Thomas NHS Foundation Trust,14/01/2022,(83400) Office Equipment,(id:42485) Surgery,NHS SUPPLY CHAIN (MAIDSTONE),id:14780246   ,30.62,
Department of Health,Guys and St Thomas NHS Foundation Trust,21/01/2022,(83400) Office Equipment,(id:42485) Surgery,NHS SUPPLY CHAIN (MAIDSTONE),id:14760334   ,19.98,
Department of Health,Guys and St Thomas NHS Foundation Trust,28/01/2022,(83400) Office Equipment,(id:42485) Surgery,NHS SUPPLY CHAIN (MAIDSTONE),id:14742162   ,83.3,
Department of Health,Guys and St Thomas NHS Foundation Trust,21/01/2022,(84656) Establishment,(id:42485) Surgery,DICT8 LIMITED,id:14741403 ,507.96,
Department of Health,Guys and St Thomas NHS Foundation Trust,21/01/2022,(84656) Establishment,(id:42485) Surgery,DICT8 LIMITED,id:14741401 ,786.12,
Department of Health,Guys and St Thomas NHS Foundation Trust,21/01/2022,(84656) Establishment,(id:42485) Surgery,DICT8 LIMITED,id:14706816 ,983.28,
Department of Health,Guys and St Thomas NHS Foundation Trust,14/01/2022,(81700) Lab Equipment Purchase,(id:42485) Surgery,NHS SUPPLY CHAIN (MAIDSTONE),id:14780246  ,53.4,
Department of Health,Guys and St Thomas NHS Foundation Trust,07/01/2022,(81000) Surgical Appliances,(id:42485) Surgery,MEDI UK LTD,id:14760214  ,215.92,
Department of Health,Guys and St Thomas NHS Foundation Trust,21/01/2022,(82000) Provisions & Kitchens,(id:42485) Surgery,TALAR MADE ORTHOTICS LTD,id:14797637  ,22.21,
Department of Health,Guys and St Thomas NHS Foundation Trust,14/01/2022,(81200) Medical Surgical Supplies & Equipment,(id:42485) Surgery,NHS SUPPLY CHAIN (MAIDSTONE),id:14780246  ,329.12,
Department of Health,Guys and St Thomas NHS Foundation Trust,28/01/2022,(81200) Medical Surgical Supplies & Equipment,(id:42485) Surgery,NHS SUPPLY CHAIN (MAIDSTONE),id:14742162  ,380.26,
Department of Health,Guys and St Thomas NHS Foundation Trust,07/01/2022,(81200) Medical Surgical Supplies & Equipment,(id:42484) Surgery,Q MEDICAL TECHNOLOGIES LTD,id:14722658    ,9916.8,
Department of Health,Guys and St Thomas NHS Foundation Trust,07/01/2022,(81200) Medical Surgical Supplies & Equipment,(id:42484) Surgery,JOINT OPERATIONS (UK) LLP,id:14747522,1164,
Department of Health,Guys and St Thomas NHS Foundation Trust,14/01/2022,(81200) Medical Surgical Supplies & Equipment,(id:42484) Surgery,SEBBIN UK LTD,id:14782228  ,621.65,
Department of Health,Guys and St Thomas NHS Foundation Trust,14/01/2022,(81200) Medical Surgical Supplies & Equipment,(id:42484) Surgery,ADVANTECH SURGICAL LTD,id:14774897   ,527.16,
Department of Health,Guys and St Thomas NHS Foundation Trust,21/01/2022,(81200) Medical Surgical Supplies & Equipment,(id:42484) Surgery,JOHNSON & JOHNSON MEDICAL LTD,id:14803926 ,-2819.34,
Department of Health,Guys and St Thomas NHS Foundation Trust,21/01/2022,(81200) Medical Surgical Supplies & Equipment,(id:42484) Surgery,HEALTHCARE 21 LTD,id:14786744   ,1533.6,
Department of Health,Guys and St Thomas NHS Foundation Trust,21/01/2022,(81200) Medical Surgical Supplies & Equipment,(id:42484) Surgery,HEALTHCARE 21 LTD,id:14786742   ,1704,
Department of Health,Guys and St Thomas NHS Foundation Trust,28/01/2022,(81200) Medical Surgical Supplies & Equipment,(id:42484) Surgery,HEALTHCARE 21 LTD,id:14736434   ,648,
Department of Health,Guys and St Thomas NHS Foundation Trust,28/01/2022,(82700) Uniforms & Clothing,(id:42482) Surgery,NHS SUPPLY CHAIN (MAIDSTONE),id:14776441,208.9,
Department of Health,Guys and St Thomas NHS Foundation Trust,14/01/2022,(81100) Dressings,(id:42481) Surgery,NHS SUPPLY CHAIN (MAIDSTONE),id:14780246,27.96,
Department of Health,Guys and St Thomas NHS Foundation Trust,07/01/2022,(81200) Medical Surgical Supplies & Equipment,(id:42467) Surgery,JOHNSON & JOHNSON MEDICAL LTD,id:14748233 ,1012.3,
Department of Health,Guys and St Thomas NHS Foundation Trust,07/01/2022,(81200) Medical Surgical Supplies & Equipment,(id:42467) Surgery,JOHNSON & JOHNSON MEDICAL LTD,id:14710608 ,1295.33,
Department of Health,Guys and St Thomas NHS Foundation Trust,07/01/2022,(81200) Medical Surgical Supplies & Equipment,(id:42467) Surgery,MEDLINE INDUSTRIES LTD,id:14740945   ,960,
Department of Health,Guys and St Thomas NHS Foundation Trust,07/01/2022,(81200) Medical Surgical Supplies & Equipment,(id:42467) Surgery,JOHNSON & JOHNSON MEDICAL LTD,id:14748090 ,686.89,
Department of Health,Guys and St Thomas NHS Foundation Trust,14/01/2022,(81200) Medical Surgical Supplies & Equipment,(id:42467) Surgery,NHS SUPPLY CHAIN (MAIDSTONE),id:14721243  ,485.67,
Department of Health,Guys and St Thomas NHS Foundation Trust,14/01/2022,(81200) Medical Surgical Supplies & Equipment,(id:42467) Surgery,JOHNSON & JOHNSON MEDICAL LTD,id:14752951 ,843.16,
Department of Health,Guys and St Thomas NHS Foundation Trust,21/01/2022,(81200) Medical Surgical Supplies & Equipment,(id:42467) Surgery,JOHNSON & JOHNSON MEDICAL LTD,id:14765444 ,859.93,
Department of Health,Guys and St Thomas NHS Foundation Trust,21/01/2022,(81200) Medical Surgical Supplies & Equipment,(id:42467) Surgery,JOHNSON & JOHNSON MEDICAL LTD,id:14765077 ,687.22,
Department of Health,Guys and St Thomas NHS Foundation Trust,21/01/2022,(81200) Medical Surgical Supplies & Equipment,(id:42467) Surgery,JOHNSON & JOHNSON MEDICAL LTD,id:14803945 ,-750,
Department of Health,Guys and St Thomas NHS Foundation Trust,28/01/2022,(81200) Medical Surgical Supplies & Equipment,(id:42467) Surgery,ZIMMER BIOMET UK LTD,id:14151529,1080,
Department of Health,Guys and St Thomas NHS Foundation Trust,21/01/2022,(83400) Office Equipment,(id:42467) Surgery,NHS SUPPLY CHAIN (MAIDSTONE),id:14760334   ,387.88,
Department of Health,Guys and St Thomas NHS Foundation Trust,14/01/2022,(81225) Medical Surgical Supplies & Equipment,(id:42467) Surgery,NHS SUPPLY CHAIN (MAIDSTONE),id:14721243  ,25.92,
Department of Health,Guys and St Thomas NHS Foundation Trust,21/01/2022,(81200) Medical Surgical Supplies & Equipment,(id:42466) Surgery,OPED UK LTD,id:14798594    ,1080,
Department of Health,Guys and St Thomas NHS Foundation Trust,21/01/2022,(81100) Dressings,(id:42466) Surgery,NHS SUPPLY CHAIN (MAIDSTONE),id:14760334,649.41,
Department of Health,Guys and St Thomas NHS Foundation Trust,14/01/2022,(81225) Medical Surgical Supplies & Equipment,(id:42466) Surgery,NHS SUPPLY CHAIN (MAIDSTONE),id:14751854  ,508.8,
Department of Health,Guys and St Thomas NHS Foundation Trust,28/01/2022,(81225) Medical Surgical Supplies & Equipment,(id:42466) Surgery,OSSUR UK LTD:42113800,id:14808405    ,900,
Department of Health,Guys and St Thomas NHS Foundation Trust,28/01/2022,(81225) Medical Surgical Supplies & Equipment,(id:42466) Surgery,OSSUR UK LTD:42113800,id:14808408    ,900,
Department of Health,Guys and St Thomas NHS Foundation Trust,21/01/2022,(82000) Provisions & Kitchens,(id:42465) Surgery,TALAR MADE ORTHOTICS LTD,id:14797723  ,110.58,
Department of Health,Guys and St Thomas NHS Foundation Trust,21/01/2022,(83400) Office Equipment,(id:42465) Surgery,NHS SUPPLY CHAIN (MAIDSTONE),id:14760334   ,80.65,
Department of Health,Guys and St Thomas NHS Foundation Trust,14/01/2022,(81200) Medical Surgical Supplies & Equipment,(id:42465) Surgery,NHS SUPPLY CHAIN (MAIDSTONE),id:14751854  ,1283.92,
Department of Health,Guys and St Thomas NHS Foundation Trust,14/01/2022,(81200) Medical Surgical Supplies & Equipment,(id:42464) Surgery,NHS SUPPLY CHAIN (MAIDSTONE),id:14780246  ,5.64,
Department of Health,Guys and St Thomas NHS Foundation Trust,21/01/2022,(82600) Uniforms & Clothing,(id:42463) Surgery,NHS SUPPLY CHAIN (MAIDSTONE),id:14760334,0.72,
Department of Health,Guys and St Thomas NHS Foundation Trust,28/01/2022,(82600) Uniforms & Clothing,(id:42463) Surgery,NHS SUPPLY CHAIN (MAIDSTONE),id:14776441,3.6,
Department of Health,Guys and St Thomas NHS Foundation Trust,14/01/2022,(81200) Medical Surgical Supplies & Equipment,(id:42463) Surgery,NHS SUPPLY CHAIN (MAIDSTONE),id:14751854  ,633.55,
Department of Health,Guys and St Thomas NHS Foundation Trust,14/01/2022,(81200) Medical Surgical Supplies & Equipment,(id:42463) Surgery,NHS SUPPLY CHAIN (MAIDSTONE),id:14721243  ,2975.81,
Department of Health,Guys and St Thomas NHS Foundation Trust,21/01/2022,(81200) Medical Surgical Supplies & Equipment,(id:42463) Surgery,NHS SUPPLY CHAIN (MAIDSTONE),id:14760334  ,20.59,
Department of Health,Guys and St Thomas NHS Foundation Trust,28/01/2022,(83400) Office Equipment,(id:42463) Surgery,NHS SUPPLY CHAIN (MAIDSTONE),id:14742162   ,2015.7,
Department of Health,Guys and St Thomas NHS Foundation Trust,14/01/2022,(81100) Dressings,(id:42463) Surgery,NHS SUPPLY CHAIN (MAIDSTONE),id:14721243,173,
Department of Health,Guys and St Thomas NHS Foundation Trust,14/01/2022,(81100) Dressings,(id:42463) Surgery,T J SMITH & NEPHEW LTD,id:14782160 ,907.2,
Department of Health,Guys and St Thomas NHS Foundation Trust,28/01/2022,(81200) Medical Surgical Supplies & Equipment,(id:42461) Surgery,NHS SUPPLY CHAIN (MAIDSTONE),id:14742162  ,20.88,
Department of Health,Guys and St Thomas NHS Foundation Trust,21/01/2022,(82000) Provisions & Kitchens,(id:42461) Surgery,TALAR MADE ORTHOTICS LTD,id:14797782  ,364.23,
Department of Health,Guys and St Thomas NHS Foundation Trust,21/01/2022,(82000) Provisions & Kitchens,(id:42461) Surgery,TALAR MADE ORTHOTICS LTD,id:14793474  ,831.94,
Department of Health,Guys and St Thomas NHS Foundation Trust,21/01/2022,(82000) Provisions & Kitchens,(id:42461) Surgery,TALAR MADE ORTHOTICS LTD,id:14797786  ,514.22,
Department of Health,Guys and St Thomas NHS Foundation Trust,21/01/2022,(82000) Provisions & Kitchens,(id:42461) Surgery,TALAR MADE ORTHOTICS LTD,id:14797789  ,476.24,
Department of Health,Guys and St Thomas NHS Foundation Trust,21/01/2022,(82000) Provisions & Kitchens,(id:42461) Surgery,TALAR MADE ORTHOTICS LTD,id:14797637  ,87.32,
Department of Health,Guys and St Thomas NHS Foundation Trust,21/01/2022,(82000) Provisions & Kitchens,(id:42461) Surgery,TALAR MADE ORTHOTICS LTD,id:14797779  ,175.51,
Department of Health,Guys and St Thomas NHS Foundation Trust,28/01/2022,(89270) Establishment,(id:42460) Surgery,INOMED NEUROCARE LIMITED,id:14813863,1675,
Department of Health,Guys and St Thomas NHS Foundation Trust,21/01/2022,(82000) Provisions & Kitchens,(id:42459) Surgery,TALAR MADE ORTHOTICS LTD,id:14797782  ,238.62,
Department of Health,Guys and St Thomas NHS Foundation Trust,28/01/2022,(81100) Dressings,(id:42459) Surgery,NHS SUPPLY CHAIN (MAIDSTONE),id:14742162,42.78,
Department of Health,Guys and St Thomas NHS Foundation Trust,28/01/2022,(81200) Medical Surgical Supplies & Equipment,(id:42459) Surgery,NHS SUPPLY CHAIN (MAIDSTONE),id:14776441  ,369.86,
Department of Health,Guys and St Thomas NHS Foundation Trust,07/01/2022,(81000) Surgical Appliances,(id:42459) Surgery,TALAR MADE ORTHOTICS LTD,id:14765281    ,238.62,
Department of Health,Guys and St Thomas NHS Foundation Trust,28/01/2022,(83400) Office Equipment,(id:42459) Surgery,NHS SUPPLY CHAIN (MAIDSTONE),id:14742162   ,171.72,
Department of Health,Guys and St Thomas NHS Foundation Trust,14/01/2022,(81700) Lab Equipment Purchase,(id:42459) Surgery,NHS SUPPLY CHAIN (MAIDSTONE),id:14721243  ,3.1,
Department of Health,Guys and St Thomas NHS Foundation Trust,21/01/2022,(81700) Lab Equipment Purchase,(id:42459) Surgery,NHS SUPPLY CHAIN (MAIDSTONE),id:14760334  ,24.62,
Department of Health,Guys and St Thomas NHS Foundation Trust,28/01/2022,(81700) Lab Equipment Purchase,(id:42459) Surgery,NHS SUPPLY CHAIN (MAIDSTONE),id:14742162  ,16.04,
Department of Health,Guys and St Thomas NHS Foundation Trust,14/01/2022,(82800) Bedding & Linen,(id:42458) Surgery,NHS SUPPLY CHAIN (MAIDSTONE),id:14751854    ,10.55,
Department of Health,Guys and St Thomas NHS Foundation Trust,28/01/2022,(81100) Dressings,(id:42458) Surgery,NHS SUPPLY CHAIN (MAIDSTONE),id:14742162,1152.58,
Department of Health,Guys and St Thomas NHS Foundation Trust,14/01/2022,(83500) Furniture & Fittings,(id:42458) Surgery,NHS SUPPLY CHAIN (MAIDSTONE),id:14751854    ,120,
Department of Health,Guys and St Thomas NHS Foundation Trust,28/01/2022,(81700) Lab Equipment Purchase,(id:42458) Surgery,NHS SUPPLY CHAIN (MAIDSTONE),id:14776441  ,9.67,
Department of Health,Guys and St Thomas NHS Foundation Trust,28/01/2022,(80205) Drug Costs,(id:42276) Haematology Cellular Pathology and Supporting Services,DJB LABCARE LTD,id:14825474,679.8,
Department of Health,Guys and St Thomas NHS Foundation Trust,14/01/2022,(81255) Medical Surgical Supplies & Equipment,(id:42270) Haematology Cellular Pathology and Supporting Services,NHS SUPPLY CHAIN (MAIDSTONE),id:14721243,0.67,
Department of Health,Guys and St Thomas NHS Foundation Trust,21/01/2022,(83400) Office Equipment,(id:42270) Haematology Cellular Pathology and Supporting Services,NHS SUPPLY CHAIN (MAIDSTONE),id:14760334 ,2.92,
Department of Health,Guys and St Thomas NHS Foundation Trust,28/01/2022,(83400) Office Equipment,(id:42270) Haematology Cellular Pathology and Supporting Services,NHS SUPPLY CHAIN (MAIDSTONE),id:14742162 ,351.74,
Department of Health,Guys and St Thomas NHS Foundation Trust,14/01/2022,(82000) Provisions & Kitchens,(id:42270) Haematology Cellular Pathology and Supporting Services,NHS SUPPLY CHAIN (MAIDSTONE),id:14721243 ,89.51,
Department of Health,Guys and St Thomas NHS Foundation Trust,21/01/2022,(82800) Bedding & Linen,(id:42270) Haematology Cellular Pathology and Supporting Services,NHS SUPPLY CHAIN (MAIDSTONE),id:14760334  ,48.81,
Department of Health,Guys and St Thomas NHS Foundation Trust,28/01/2022,(82800) Bedding & Linen,(id:42270) Haematology Cellular Pathology and Supporting Services,NHS SUPPLY CHAIN (MAIDSTONE),id:14776441  ,128.54,
Department of Health,Guys and St Thomas NHS Foundation Trust,14/01/2022,(81500) X Ray Equipment Purchase,(id:42270) Haematology Cellular Pathology and Supporting Services,GE HEALTHCARE (50652318),id:14780575  ,1036.61,
Department of Health,Guys and St Thomas NHS Foundation Trust,07/01/2022,(81000) Surgical Appliances,(id:42268) Haematology Cellular Pathology and Supporting Services,TALAR MADE ORTHOTICS LTD,id:14765287  ,43.66,
Department of Health,Guys and St Thomas NHS Foundation Trust,28/01/2022,(82700) Uniforms & Clothing,(id:42265) Haematology Cellular Pathology and Supporting Services,NHS SUPPLY CHAIN (MAIDSTONE),id:14742162   ,63.36,
Department of Health,Guys and St Thomas NHS Foundation Trust,14/01/2022,(82000) Provisions & Kitchens,(id:42265) Haematology Cellular Pathology and Supporting Services,NHS SUPPLY CHAIN (MAIDSTONE),id:14780246 ,39.1,
Department of Health,Guys and St Thomas NHS Foundation Trust,21/01/2022,(82000) Provisions & Kitchens,(id:42265) Haematology Cellular Pathology and Supporting Services,NHS SUPPLY CHAIN (MAIDSTONE),id:14760334 ,51.29,
Department of Health,Guys and St Thomas NHS Foundation Trust,14/01/2022,(81100) Dressings,(id:42265) Haematology Cellular Pathology and Supporting Services,NHS SUPPLY CHAIN (MAIDSTONE),id:14721243   ,203.09,
Department of Health,Guys and St Thomas NHS Foundation Trust,07/01/2022,(50522) Unqualified Nursing Staff,(id:42265) Haematology Cellular Pathology and Supporting Services,MSI GROUP LTD,id:14768822  ,604.32,
Department of Health,Guys and St Thomas NHS Foundation Trust,14/01/2022,(83400) Office Equipment,(id:42265) Haematology Cellular Pathology and Supporting Services,NHS SUPPLY CHAIN (MAIDSTONE),id:14780246 ,160.95,
Department of Health,Guys and St Thomas NHS Foundation Trust,14/01/2022,(81700) Lab Equipment Purchase,(id:42265) Haematology Cellular Pathology and Supporting Services,NHS SUPPLY CHAIN (MAIDSTONE),id:14721243,10.49,
Department of Health,Guys and St Thomas NHS Foundation Trust,21/01/2022,(81700) Lab Equipment Purchase,(id:42265) Haematology Cellular Pathology and Supporting Services,NHS SUPPLY CHAIN (MAIDSTONE),id:14760334,31.98,
Department of Health,Guys and St Thomas NHS Foundation Trust,28/01/2022,(81700) Lab Equipment Purchase,(id:42265) Haematology Cellular Pathology and Supporting Services,NHS SUPPLY CHAIN (MAIDSTONE),id:14776441,6.37,
Department of Health,Guys and St Thomas NHS Foundation Trust,28/01/2022,(81255) Medical Surgical Supplies & Equipment,(id:42265) Haematology Cellular Pathology and Supporting Services,NHS SUPPLY CHAIN (MAIDSTONE),id:14776441,2.82,
Department of Health,Guys and St Thomas NHS Foundation Trust,21/01/2022,(82600) Uniforms & Clothing,(id:42272) Haematology Cellular Pathology and Supporting Services,ARENA INSTRUMENTATION LTD,id:14789019 ,692.4,
Department of Health,Guys and St Thomas NHS Foundation Trust,14/01/2022,(81200) Medical Surgical Supplies & Equipment,(id:42272) Haematology Cellular Pathology and Supporting Services,NHS SUPPLY CHAIN (MAIDSTONE),id:14751854,307.79,
Department of Health,Guys and St Thomas NHS Foundation Trust,28/01/2022,(81200) Medical Surgical Supplies & Equipment,(id:42272) Haematology Cellular Pathology and Supporting Services,NHS SUPPLY CHAIN (MAIDSTONE),id:14742162,323.33,
Department of Health,Guys and St Thomas NHS Foundation Trust,14/01/2022,(81100) Dressings,(id:42272) Haematology Cellular Pathology and Supporting Services,NHS SUPPLY CHAIN (MAIDSTONE),id:14751854   ,11.12,
Department of Health,Guys and St Thomas NHS Foundation Trust,07/01/2022,(80205) Drug Costs,(id:42273) Haematology Cellular Pathology and Supporting Services,HEALTHNET HOMECARE (UK) LTD,id:14765221   ,7129.8,
Department of Health,Guys and St Thomas NHS Foundation Trust,14/01/2022,(80205) Drug Costs,(id:42273) Haematology Cellular Pathology and Supporting Services,HEALTHNET HOMECARE (UK) LTD,id:14765217   ,1279.2,
Department of Health,Guys and St Thomas NHS Foundation Trust,27/01/2022,(80205) Drug Costs,(id:42273) Haematology Cellular Pathology and Supporting Services,HEALTHCARE AT HOME LTD,id:14806077   ,3200,
Department of Health,Guys and St Thomas NHS Foundation Trust,27/01/2022,(80205) Drug Costs,(id:42273) Haematology Cellular Pathology and Supporting Services,HEALTHCARE AT HOME LTD,id:14806194   ,4800,
Department of Health,Guys and St Thomas NHS Foundation Trust,27/01/2022,(80205) Drug Costs,(id:42273) Haematology Cellular Pathology and Supporting Services,HEALTHCARE AT HOME LTD,id:14806231   ,6070.17,
Department of Health,Guys and St Thomas NHS Foundation Trust,27/01/2022,(80205) Drug Costs,(id:42273) Haematology Cellular Pathology and Supporting Services,HEALTHCARE AT HOME LTD,id:14806550   ,6730.17,
Department of Health,Guys and St Thomas NHS Foundation Trust,27/01/2022,(80205) Drug Costs,(id:42273) Haematology Cellular Pathology and Supporting Services,HEALTHCARE AT HOME LTD,id:14806096   ,6930.17,
Department of Health,Guys and St Thomas NHS Foundation Trust,27/01/2022,(80205) Drug Costs,(id:42273) Haematology Cellular Pathology and Supporting Services,HEALTHCARE AT HOME LTD,id:14806159   ,10130.17,
Department of Health,Guys and St Thomas NHS Foundation Trust,28/01/2022,(81100) Dressings,(id:42128) Haematology Cellular Pathology and Supporting Services,NHS SUPPLY CHAIN (MAIDSTONE),id:14742162   ,49.2,
Department of Health,Guys and St Thomas NHS Foundation Trust,07/01/2022,(54052) Technical Officers,(id:42128) Haematology Cellular Pathology and Supporting Services,TOTAL ASSIST RECRUITMENT LTD,id:14769073    ,1280.7,
Department of Health,Guys and St Thomas NHS Foundation Trust,21/01/2022,(54052) Technical Officers,(id:42128) Haematology Cellular Pathology and Supporting Services,TOTAL ASSIST RECRUITMENT LTD,id:14788504    ,512.28,
Department of Health,Guys and St Thomas NHS Foundation Trust,21/01/2022,(54052) Technical Officers,(id:42128) Haematology Cellular Pathology and Supporting Services,TOTAL ASSIST RECRUITMENT LTD,id:14800575    ,1024.56,
Department of Health,Guys and St Thomas NHS Foundation Trust,14/01/2022,(83400) Office Equipment,(id:42258) Oncology Services,NHS SUPPLY CHAIN (MAIDSTONE),id:14751854   ,3.34,
Department of Health,Guys and St Thomas NHS Foundation Trust,18/01/2022,(52062) Radiographers,(id:42258) Oncology Services,PRICEWATERHOUSECOOPERS LLP,id:14796155   ,1054.42,
Department of Health,Guys and St Thomas NHS Foundation Trust,28/01/2022,(89640) Non-Healthcare from NHS Trusts,(id:42258) Oncology Services,DARTFORD AND GRAVESHAM NHS TRUST,id:14360216,1187,
Department of Health,Guys and St Thomas NHS Foundation Trust,14/01/2022,(81500) X Ray Equipment Purchase,(id:42258) Oncology Services,ELEKTA LTD (CIS5),id:14778394 ,5417.45,
Department of Health,Guys and St Thomas NHS Foundation Trust,14/01/2022,(81500) X Ray Equipment Purchase,(id:42258) Oncology Services,VARIAN MEDICAL SYSTEMS UK LTD,id:14787267    ,43883.14,
Department of Health,Guys and St Thomas NHS Foundation Trust,21/01/2022,(81100) Dressings,(id:42258) Oncology Services,NHS SUPPLY CHAIN (MAIDSTONE),id:14760334,146.48,
Department of Health,Guys and St Thomas NHS Foundation Trust,28/01/2022,(82000) Provisions & Kitchens,(id:42258) Oncology Services,NHS SUPPLY CHAIN (MAIDSTONE),id:14742162   ,16.05,
Department of Health,Guys and St Thomas NHS Foundation Trust,28/01/2022,(50200) Consultants,(id:42257) Oncology Services,KINGS COLLEGE LONDON:03529700,id:14824945  ,25015.73,
Department of Health,Guys and St Thomas NHS Foundation Trust,21/01/2022,(89120) Other - Legal fees,(id:42257) Oncology Services,BEACHCROFT LLP OFFICE ACCOUNT,id:14795629,7500,
Department of Health,Guys and St Thomas NHS Foundation Trust,21/01/2022,(89000) Other - Training courses and conferences,(id:267405) Oncology Services,LYMPHOEDEMA TRAINING ACADEMY LTD,id:14748550    ,3100,
Department of Health,Guys and St Thomas NHS Foundation Trust,21/01/2022,(83410) Office Equipment,(id:42261) Oncology Services,RICOH UK LTD,id:14797257    ,428.92,
Department of Health,Guys and St Thomas NHS Foundation Trust,07/01/2022,(89440) Research and Development,(id:42261) Oncology Services,EXACT SCIENCES UK LTD,id:14748914  ,2700,
Department of Health,Guys and St Thomas NHS Foundation Trust,28/01/2022,(50470) Medical Training Grades,(id:42261) Oncology Services,KINGS COLLEGE LONDON:03529700,id:14799597,1577.54,
Department of Health,Guys and St Thomas NHS Foundation Trust,14/01/2022,(81200) Medical Surgical Supplies & Equipment,(id:42260) Oncology Services,NHS SUPPLY CHAIN (MAIDSTONE),id:14751854  ,8111.31,
Department of Health,Guys and St Thomas NHS Foundation Trust,14/01/2022,(81200) Medical Surgical Supplies & Equipment,(id:42260) Oncology Services,NHS SUPPLY CHAIN (MAIDSTONE),id:14780246  ,9898.86,
Department of Health,Guys and St Thomas NHS Foundation Trust,21/01/2022,(81200) Medical Surgical Supplies & Equipment,(id:42260) Oncology Services,NHS SUPPLY CHAIN (MAIDSTONE),id:14760334  ,4689.74,
Department of Health,Guys and St Thomas NHS Foundation Trust,28/01/2022,(82000) Provisions & Kitchens,(id:42260) Oncology Services,NHS SUPPLY CHAIN (MAIDSTONE),id:14776441   ,78.68,
Department of Health,Guys and St Thomas NHS Foundation Trust,14/01/2022,(81100) Dressings,(id:42260) Oncology Services,NHS SUPPLY CHAIN (MAIDSTONE),id:14721243,2861.27,
Department of Health,Guys and St Thomas NHS Foundation Trust,14/01/2022,(82000) Provisions & Kitchens,(id:42259) Oncology Services,NHS SUPPLY CHAIN (MAIDSTONE),id:14721243   ,700.55,
Department of Health,Guys and St Thomas NHS Foundation Trust,14/01/2022,(82600) Uniforms & Clothing,(id:42259) Oncology Services,NHS SUPPLY CHAIN (MAIDSTONE),id:14751854,88.44,
Department of Health,Guys and St Thomas NHS Foundation Trust,28/01/2022,(81275) Medical Surgical Supplies & Equipment,(id:42259) Oncology Services,NHS SUPPLY CHAIN (MAIDSTONE),id:14742162  ,28.92,
Department of Health,Guys and St Thomas NHS Foundation Trust,14/01/2022,(81100) Dressings,(id:42280) Surgical Oncology,NHS SUPPLY CHAIN (MAIDSTONE),id:14780246,174.54,
Department of Health,Guys and St Thomas NHS Foundation Trust,07/01/2022,(81200) Medical Surgical Supplies & Equipment,(id:42280) Surgical Oncology,JOHNSON & JOHNSON MEDICAL LTD,id:14710616 ,5339.05,
Department of Health,Guys and St Thomas NHS Foundation Trust,28/01/2022,(81200) Medical Surgical Supplies & Equipment,(id:42280) Surgical Oncology,STRYKER UK LTD,id:14808580 ,712.56,
Department of Health,Guys and St Thomas NHS Foundation Trust,28/01/2022,(81200) Medical Surgical Supplies & Equipment,(id:42280) Surgical Oncology,JOINT OPERATIONS (UK) LLP,id:14825294,6600,
Department of Health,Guys and St Thomas NHS Foundation Trust,28/01/2022,(82600) Uniforms & Clothing,(id:42280) Surgical Oncology,DICT8 LIMITED,id:14814235,695.88,
Department of Health,Guys and St Thomas NHS Foundation Trust,14/01/2022,(83400) Office Equipment,(id:243406) Surgical Oncology,NHS SUPPLY CHAIN (MAIDSTONE),id:14721243  ,18.33,
Department of Health,Guys and St Thomas NHS Foundation Trust,28/01/2022,(81100) Dressings,(id:243406) Surgical Oncology,NHS SUPPLY CHAIN (MAIDSTONE),id:14742162    ,29.46,
Department of Health,Guys and St Thomas NHS Foundation Trust,14/01/2022,(82800) Bedding & Linen,(id:243406) Surgical Oncology,NHS SUPPLY CHAIN (MAIDSTONE),id:14751854   ,140.74,
Department of Health,Guys and St Thomas NHS Foundation Trust,14/01/2022,(82800) Bedding & Linen,(id:243406) Surgical Oncology,NHS SUPPLY CHAIN (MAIDSTONE),id:14721243   ,145.4,
Department of Health,Guys and St Thomas NHS Foundation Trust,14/01/2022,(82000) Provisions & Kitchens,(id:42474) Surgical Oncology,CROWN WORKSPACE (FORMERLY PREMIER MOVES),id:14782240 ,1448,
Department of Health,Guys and St Thomas NHS Foundation Trust,14/01/2022,(81100) Dressings,(id:42474) Surgical Oncology,NHS SUPPLY CHAIN (MAIDSTONE),id:14721243,109.52,
Department of Health,Guys and St Thomas NHS Foundation Trust,21/01/2022,(81200) Medical Surgical Supplies & Equipment,(id:42474) Surgical Oncology,SOLUVOS MEDICAL BV,id:14795254  ,2100,
Department of Health,Guys and St Thomas NHS Foundation Trust,21/01/2022,(83400) Office Equipment,(id:42474) Surgical Oncology,NHS SUPPLY CHAIN (MAIDSTONE),id:14760334   ,160.56,
Department of Health,Guys and St Thomas NHS Foundation Trust,14/01/2022,(81100) Dressings,(id:42473) Surgical Oncology,NHS SUPPLY CHAIN (MAIDSTONE),id:14721243,64.62,
Department of Health,Guys and St Thomas NHS Foundation Trust,07/01/2022,(81200) Medical Surgical Supplies & Equipment,(id:42473) Surgical Oncology,JOHNSON & JOHNSON MEDICAL LTD,id:14724516 ,1054.75,
Department of Health,Guys and St Thomas NHS Foundation Trust,14/01/2022,(81200) Medical Surgical Supplies & Equipment,(id:42473) Surgical Oncology,NHS SUPPLY CHAIN (MAIDSTONE),id:14780246  ,3847.92,
Department of Health,Guys and St Thomas NHS Foundation Trust,14/01/2022,(81200) Medical Surgical Supplies & Equipment,(id:42473) Surgical Oncology,B.BRAUN MEDICAL LTD,id:14776054 ,890.81,
Department of Health,Guys and St Thomas NHS Foundation Trust,14/01/2022,(81200) Medical Surgical Supplies & Equipment,(id:42473) Surgical Oncology,MEDTRONIC LTD,id:14770013  ,619.2,
Department of Health,Guys and St Thomas NHS Foundation Trust,14/01/2022,(81200) Medical Surgical Supplies & Equipment,(id:42473) Surgical Oncology,JOHNSON & JOHNSON MEDICAL LTD,id:14750163 ,1272.1,
Department of Health,Guys and St Thomas NHS Foundation Trust,28/01/2022,(81200) Medical Surgical Supplies & Equipment,(id:42473) Surgical Oncology,CCMED LTD,id:14813117 ,867,
Department of Health,Guys and St Thomas NHS Foundation Trust,28/01/2022,(81200) Medical Surgical Supplies & Equipment,(id:42473) Surgical Oncology,SIGMACON (UK) LTD,id:14818715   ,834,
Department of Health,Guys and St Thomas NHS Foundation Trust,14/01/2022,(81200) Medical Surgical Supplies & Equipment,(id:42475) Surgical Oncology,NHS SUPPLY CHAIN (MAIDSTONE),id:14780246  ,90.3,
Department of Health,Guys and St Thomas NHS Foundation Trust,28/01/2022,(83400) Office Equipment,(id:42475) Surgical Oncology,NHS SUPPLY CHAIN (MAIDSTONE),id:14742162   ,1.94,
Department of Health,Guys and St Thomas NHS Foundation Trust,18/01/2022,(54052) Technical Officers,(id:42475) Surgical Oncology,PRICEWATERHOUSECOOPERS LLP,id:14796155   ,1204.46,
Department of Health,Guys and St Thomas NHS Foundation Trust,25/01/2022,(54052) Technical Officers,(id:42475) Surgical Oncology,PRICEWATERHOUSECOOPERS LLP,id:14812575   ,2039.84,
Department of Health,Guys and St Thomas NHS Foundation Trust,31/01/2022,(54052) Technical Officers,(id:42475) Surgical Oncology,PRICEWATERHOUSECOOPERS LLP,id:14843414   ,1019.53,
Department of Health,Guys and St Thomas NHS Foundation Trust,31/01/2022,(54062) Technical Officers,(id:42475) Surgical Oncology,PRICEWATERHOUSECOOPERS LLP,id:14843414   ,302.6,
Department of Health,Guys and St Thomas NHS Foundation Trust,07/01/2022,(81215) Medical Surgical Supplies & Equipment,(id:42475) Surgical Oncology,MED-EL UK LTD,id:14750684  ,718.25,
Department of Health,Guys and St Thomas NHS Foundation Trust,28/01/2022,(81215) Medical Surgical Supplies & Equipment,(id:42475) Surgical Oncology,ANN ARBOR PUBLISHERS,id:14741967,1564.2,
Department of Health,Guys and St Thomas NHS Foundation Trust,28/01/2022,(81215) Medical Surgical Supplies & Equipment,(id:42475) Surgical Oncology,COCHLEAR EUROPE LTD,id:14817116 ,5394,
Department of Health,Guys and St Thomas NHS Foundation Trust,28/01/2022,(81215) Medical Surgical Supplies & Equipment,(id:42475) Surgical Oncology,ADVANCED BIONICS SARL (AND UK LTD),id:14828920 ,5778,
Department of Health,Guys and St Thomas NHS Foundation Trust,28/01/2022,(81215) Medical Surgical Supplies & Equipment,(id:42475) Surgical Oncology,ADVANCED BIONICS SARL (AND UK LTD),id:14824814 ,6108,
Department of Health,Guys and St Thomas NHS Foundation Trust,28/01/2022,(81215) Medical Surgical Supplies & Equipment,(id:42475) Surgical Oncology,ADVANCED BIONICS SARL (AND UK LTD),id:14828890 ,6108,
Department of Health,Guys and St Thomas NHS Foundation Trust,28/01/2022,(81215) Medical Surgical Supplies & Equipment,(id:42475) Surgical Oncology,ADVANCED BIONICS SARL (AND UK LTD),id:14824635 ,6108,
Department of Health,Guys and St Thomas NHS Foundation Trust,28/01/2022,(81215) Medical Surgical Supplies & Equipment,(id:42475) Surgical Oncology,COCHLEAR EUROPE LTD,id:14818394 ,7168.8,
Department of Health,Guys and St Thomas NHS Foundation Trust,07/01/2022,(81225) Medical Surgical Supplies & Equipment,(id:42475) Surgical Oncology,MINERVA HEARING LTD,id:14750558 ,937.39,
Department of Health,Guys and St Thomas NHS Foundation Trust,14/01/2022,(81225) Medical Surgical Supplies & Equipment,(id:42475) Surgical Oncology,NHS SUPPLY CHAIN (MAIDSTONE),id:14721243  ,47978.89,
Department of Health,Guys and St Thomas NHS Foundation Trust,14/01/2022,(81700) Lab Equipment Purchase,(id:42286) Surgical Oncology,NHS SUPPLY CHAIN (MAIDSTONE),id:14751854  ,43.45,
Department of Health,Guys and St Thomas NHS Foundation Trust,28/01/2022,(83400) Office Equipment,(id:42286) Surgical Oncology,CONMED LINVATEC UK,id:14813882   ,5695.74,
Department of Health,Guys and St Thomas NHS Foundation Trust,21/01/2022,(81200) Medical Surgical Supplies & Equipment,(id:42286) Surgical Oncology,NHS SUPPLY CHAIN (MAIDSTONE),id:14760334  ,165,
Department of Health,Guys and St Thomas NHS Foundation Trust,21/01/2022,(81200) Medical Surgical Supplies & Equipment,(id:42286) Surgical Oncology,MEDTRONIC LTD,id:14765414  ,3687.77,
Department of Health,Guys and St Thomas NHS Foundation Trust,28/01/2022,(81200) Medical Surgical Supplies & Equipment,(id:42286) Surgical Oncology,MEDTRONIC LTD,id:14806875  ,986.54,
Department of Health,Guys and St Thomas NHS Foundation Trust,14/01/2022,(81200) Medical Surgical Supplies & Equipment,(id:42284) Surgical Oncology,NHS SUPPLY CHAIN (MAIDSTONE),id:14780246  ,678.75,
Department of Health,Guys and St Thomas NHS Foundation Trust,14/01/2022,(81275) Medical Surgical Supplies & Equipment,(id:42284) Surgical Oncology,NHS SUPPLY CHAIN (MAIDSTONE),id:14751854  ,14.46,
Department of Health,Guys and St Thomas NHS Foundation Trust,14/01/2022,(82700) Uniforms & Clothing,(id:42284) Surgical Oncology,NHS SUPPLY CHAIN (MAIDSTONE),id:14721243,116.88,
Department of Health,Guys and St Thomas NHS Foundation Trust,14/01/2022,(81255) Medical Surgical Supplies & Equipment,(id:42284) Surgical Oncology,NHS SUPPLY CHAIN (MAIDSTONE),id:14780246  ,3.12,
Department of Health,Guys and St Thomas NHS Foundation Trust,07/01/2022,(81200) Medical Surgical Supplies & Equipment,(id:42471) Surgical Oncology,SEVERN HEALTHCARE TECHNOLOGIES LTD,id:14727255 ,1902.66,
Department of Health,Guys and St Thomas NHS Foundation Trust,07/01/2022,(81200) Medical Surgical Supplies & Equipment,(id:42471) Surgical Oncology,SEVERN HEALTHCARE TECHNOLOGIES LTD,id:14736354 ,8132.76,
Department of Health,Guys and St Thomas NHS Foundation Trust,14/01/2022,(82700) Uniforms & Clothing,(id:42470) Surgical Oncology,NHS SUPPLY CHAIN (MAIDSTONE),id:14751854,31.68,
Department of Health,Guys and St Thomas NHS Foundation Trust,14/01/2022,(81100) Dressings,(id:42470) Surgical Oncology,NHS SUPPLY CHAIN (MAIDSTONE),id:14780246,1222.37,
Department of Health,Guys and St Thomas NHS Foundation Trust,14/01/2022,(81200) Medical Surgical Supplies & Equipment,(id:42470) Surgical Oncology,NHS SUPPLY CHAIN (MAIDSTONE),id:14751854  ,2490.63,
Department of Health,Guys and St Thomas NHS Foundation Trust,28/01/2022,(50552) Qualified Nursing Staff,(id:42470) Surgical Oncology,CARE PROVIDERS HEALTHCARE,id:14830326    ,723.28,
Department of Health,Guys and St Thomas NHS Foundation Trust,21/01/2022,(50522) Unqualified Nursing Staff,(id:42470) Surgical Oncology,GLOBE LOCUMS LTD,id:14800744 ,256.32,
Department of Health,Guys and St Thomas NHS Foundation Trust,14/01/2022,(83400) Office Equipment,(id:42470) Surgical Oncology,NHS SUPPLY CHAIN (MAIDSTONE),id:14721243   ,275.76,
Department of Health,Guys and St Thomas NHS Foundation Trust,14/01/2022,(83400) Office Equipment,(id:42470) Surgical Oncology,NHS SUPPLY CHAIN (MAIDSTONE),id:14780246   ,156.23,
Department of Health,Guys and St Thomas NHS Foundation Trust,21/01/2022,(81700) Lab Equipment Purchase,(id:42470) Surgical Oncology,NHS SUPPLY CHAIN (MAIDSTONE),id:14760334  ,25.77,
Department of Health,Guys and St Thomas NHS Foundation Trust,21/01/2022,(81225) Medical Surgical Supplies & Equipment,(id:2182419) Acute & General Medicine,NHS SUPPLY CHAIN (MAIDSTONE),id:14760334   ,92.55,
Department of Health,Guys and St Thomas NHS Foundation Trust,21/01/2022,(81230) Medical Surgical Supplies & Equipment,(id:2182419) Acute & General Medicine,NHS SUPPLY CHAIN (MAIDSTONE),id:14760334   ,281.86,
Department of Health,Guys and St Thomas NHS Foundation Trust,28/01/2022,(81230) Medical Surgical Supplies & Equipment,(id:2182419) Acute & General Medicine,NHS SUPPLY CHAIN (MAIDSTONE),id:14742162   ,228,
Department of Health,Guys and St Thomas NHS Foundation Trust,14/01/2022,(82700) Uniforms & Clothing,(id:2182419) Acute & General Medicine,NHS SUPPLY CHAIN (MAIDSTONE),id:14721243 ,143.12,
Department of Health,Guys and St Thomas NHS Foundation Trust,14/01/2022,(82800) Bedding & Linen,(id:2182419) Acute & General Medicine,NHS SUPPLY CHAIN (MAIDSTONE),id:14751854,42.72,
Department of Health,Guys and St Thomas NHS Foundation Trust,14/01/2022,(83400) Office Equipment,(id:2182419) Acute & General Medicine,NHS SUPPLY CHAIN (MAIDSTONE),id:14751854    ,274.34,
Department of Health,Guys and St Thomas NHS Foundation Trust,14/01/2022,(83400) Office Equipment,(id:2182419) Acute & General Medicine,NHS SUPPLY CHAIN (MAIDSTONE),id:14721243    ,376.98,
Department of Health,Guys and St Thomas NHS Foundation Trust,28/01/2022,(83400) Office Equipment,(id:2182419) Acute & General Medicine,NHS SUPPLY CHAIN (MAIDSTONE),id:14742162    ,350.36,
Department of Health,Guys and St Thomas NHS Foundation Trust,28/01/2022,(89570) Other – Other Operating Expenditure,(id:1307420) Acute & General Medicine,GSTT PROCUREMENT CARD,id:14830967 ,301.5,
Department of Health,Guys and St Thomas NHS Foundation Trust,14/01/2022,(82000) Provisions & Kitchens,(id:41860) Acute & General Medicine,NHS SUPPLY CHAIN (MAIDSTONE),id:14751854 ,135.36,
Department of Health,Guys and St Thomas NHS Foundation Trust,14/01/2022,(81100) Dressings,(id:41860) Acute & General Medicine,NHS SUPPLY CHAIN (MAIDSTONE),id:14780246   ,101.98,
Department of Health,Guys and St Thomas NHS Foundation Trust,07/01/2022,(50552) Qualified Nursing Staff,(id:41860) Acute & General Medicine,CONTINENTAL NURSE LTD,id:14769120 ,2890.8,
Department of Health,Guys and St Thomas NHS Foundation Trust,14/01/2022,(50552) Qualified Nursing Staff,(id:41860) Acute & General Medicine,MSI GROUP LTD,id:14788147    ,792.12,
Department of Health,Guys and St Thomas NHS Foundation Trust,21/01/2022,(50552) Qualified Nursing Staff,(id:41860) Acute & General Medicine,MSI GROUP LTD,id:14800722    ,373.58,
Department of Health,Guys and St Thomas NHS Foundation Trust,28/01/2022,(50552) Qualified Nursing Staff,(id:41860) Acute & General Medicine,MSI GROUP LTD,id:14830483    ,636.42,
Department of Health,Guys and St Thomas NHS Foundation Trust,07/01/2022,(50522) Unqualified Nursing Staff,(id:41860) Acute & General Medicine,MSI GROUP LTD,id:14768966  ,670.74,
Department of Health,Guys and St Thomas NHS Foundation Trust,14/01/2022,(81200) Medical Surgical Supplies & Equipment,(id:41860) Acute & General Medicine,NHS SUPPLY CHAIN (MAIDSTONE),id:14780246,623.45,
Department of Health,Guys and St Thomas NHS Foundation Trust,28/01/2022,(81200) Medical Surgical Supplies & Equipment,(id:41860) Acute & General Medicine,NHS SUPPLY CHAIN (MAIDSTONE),id:14776441,686.95,
Department of Health,Guys and St Thomas NHS Foundation Trust,21/01/2022,(81700) Lab Equipment Purchase,(id:41860) Acute & General Medicine,NHS SUPPLY CHAIN (MAIDSTONE),id:14760334,19.4,
Department of Health,Guys and St Thomas NHS Foundation Trust,14/01/2022,(83400) Office Equipment,(id:41859) Acute & General Medicine,NHS SUPPLY CHAIN (MAIDSTONE),id:14721243 ,188.19,
Department of Health,Guys and St Thomas NHS Foundation Trust,21/01/2022,(83400) Office Equipment,(id:41859) Acute & General Medicine,NHS SUPPLY CHAIN (MAIDSTONE),id:14760334 ,95.37,
Department of Health,Guys and St Thomas NHS Foundation Trust,28/01/2022,(83400) Office Equipment,(id:41859) Acute & General Medicine,NHS SUPPLY CHAIN (MAIDSTONE),id:14776441 ,85.27,
Department of Health,Guys and St Thomas NHS Foundation Trust,28/01/2022,(83400) Office Equipment,(id:41859) Acute & General Medicine,NHS SUPPLY CHAIN (MAIDSTONE),id:14742162 ,123.05,
Department of Health,Guys and St Thomas NHS Foundation Trust,28/01/2022,(81100) Dressings,(id:41859) Acute & General Medicine,NHS SUPPLY CHAIN (MAIDSTONE),id:14742162   ,205.82,
Department of Health,Guys and St Thomas NHS Foundation Trust,21/01/2022,(50552) Qualified Nursing Staff,(id:41859) Acute & General Medicine,CARE PROVIDERS HEALTHCARE,id:14805434  ,621.92,
Department of Health,Guys and St Thomas NHS Foundation Trust,21/01/2022,(50552) Qualified Nursing Staff,(id:41859) Acute & General Medicine,CARE PROVIDERS HEALTHCARE,id:14805435  ,621.92,
Department of Health,Guys and St Thomas NHS Foundation Trust,07/01/2022,(50522) Unqualified Nursing Staff,(id:41859) Acute & General Medicine,GLOBE LOCUMS LTD,id:14769183    ,195.4,
Department of Health,Guys and St Thomas NHS Foundation Trust,07/01/2022,(50522) Unqualified Nursing Staff,(id:41859) Acute & General Medicine,GLOBE LOCUMS LTD,id:14769209    ,667.81,
Department of Health,Guys and St Thomas NHS Foundation Trust,07/01/2022,(50522) Unqualified Nursing Staff,(id:41859) Acute & General Medicine,GLOBE LOCUMS LTD,id:14768947    ,537.21,
Department of Health,Guys and St Thomas NHS Foundation Trust,14/01/2022,(50522) Unqualified Nursing Staff,(id:41859) Acute & General Medicine,MSI GROUP LTD,id:14788100  ,304.44,
Department of Health,Guys and St Thomas NHS Foundation Trust,21/01/2022,(50522) Unqualified Nursing Staff,(id:41859) Acute & General Medicine,GLOBE LOCUMS LTD,id:14805350    ,239.23,
Department of Health,Guys and St Thomas NHS Foundation Trust,28/01/2022,(50522) Unqualified Nursing Staff,(id:41859) Acute & General Medicine,CARE PROVIDERS HEALTHCARE,id:14830478,505.85,
Department of Health,Guys and St Thomas NHS Foundation Trust,14/01/2022,(81225) Medical Surgical Supplies & Equipment,(id:41859) Acute & General Medicine,NHS SUPPLY CHAIN (MAIDSTONE),id:14751854,14.2,
Department of Health,Guys and St Thomas NHS Foundation Trust,14/01/2022,(82000) Provisions & Kitchens,(id:41858) Acute & General Medicine,NHS SUPPLY CHAIN (MAIDSTONE),id:14780246 ,14.94,
Department of Health,Guys and St Thomas NHS Foundation Trust,28/01/2022,(81100) Dressings,(id:41858) Acute & General Medicine,NHS SUPPLY CHAIN (MAIDSTONE),id:14776441   ,2004.22,
Department of Health,Guys and St Thomas NHS Foundation Trust,14/01/2022,(81700) Lab Equipment Purchase,(id:41858) Acute & General Medicine,NHS SUPPLY CHAIN (MAIDSTONE),id:14721243,13.59,
Department of Health,Guys and St Thomas NHS Foundation Trust,28/01/2022,(50200) Consultants,(id:41855) Acute & General Medicine,KINGS COLLEGE LONDON:03529700,id:14828966,1511.95,
Department of Health,Guys and St Thomas NHS Foundation Trust,07/01/2022,(81000) Surgical Appliances,(id:41872) Acute & General Medicine,TALAR MADE ORTHOTICS LTD,id:14765258  ,13.97,
Department of Health,Guys and St Thomas NHS Foundation Trust,21/01/2022,(50552) Qualified Nursing Staff,(id:41872) Acute & General Medicine,GLOBE LOCUMS LTD,id:14805355 ,334.36,
Department of Health,Guys and St Thomas NHS Foundation Trust,21/01/2022,(82000) Provisions & Kitchens,(id:41872) Acute & General Medicine,TALAR MADE ORTHOTICS LTD,id:14797694,16.48,
Department of Health,Guys and St Thomas NHS Foundation Trust,21/01/2022,(82000) Provisions & Kitchens,(id:41872) Acute & General Medicine,TALAR MADE ORTHOTICS LTD,id:14797725,110.58,
Department of Health,Guys and St Thomas NHS Foundation Trust,14/01/2022,(81200) Medical Surgical Supplies & Equipment,(id:41869) Acute & General Medicine,NHS SUPPLY CHAIN (MAIDSTONE),id:14751854,12309.68,
Department of Health,Guys and St Thomas NHS Foundation Trust,14/01/2022,(81200) Medical Surgical Supplies & Equipment,(id:41869) Acute & General Medicine,NHS SUPPLY CHAIN (MAIDSTONE),id:14721243,6168.13,
Department of Health,Guys and St Thomas NHS Foundation Trust,28/01/2022,(81100) Dressings,(id:41869) Acute & General Medicine,NHS SUPPLY CHAIN (MAIDSTONE),id:14776441   ,1422.42,
Department of Health,Guys and St Thomas NHS Foundation Trust,21/01/2022,(83410) Office Equipment,(id:41869) Acute & General Medicine,RICOH UK LTD,id:14797333  ,576.62,
Department of Health,Guys and St Thomas NHS Foundation Trust,28/01/2022,(81230) Medical Surgical Supplies & Equipment,(id:41869) Acute & General Medicine,NHS SUPPLY CHAIN (MAIDSTONE),id:14742162,141.84,
Department of Health,Guys and St Thomas NHS Foundation Trust,14/01/2022,(82600) Uniforms & Clothing,(id:41868) Acute & General Medicine,NHS SUPPLY CHAIN (MAIDSTONE),id:14780246   ,12.63,
Department of Health,Guys and St Thomas NHS Foundation Trust,28/01/2022,(81200) Medical Surgical Supplies & Equipment,(id:41868) Acute & General Medicine,NHS SUPPLY CHAIN (MAIDSTONE),id:14776441,523.16,
Department of Health,Guys and St Thomas NHS Foundation Trust,14/01/2022,(82700) Uniforms & Clothing,(id:41868) Acute & General Medicine,NHS SUPPLY CHAIN (MAIDSTONE),id:14780246   ,31.68,
Department of Health,Guys and St Thomas NHS Foundation Trust,14/01/2022,(81225) Medical Surgical Supplies & Equipment,(id:41868) Acute & General Medicine,NHS SUPPLY CHAIN (MAIDSTONE),id:14751854,79.2,
Department of Health,Guys and St Thomas NHS Foundation Trust,14/01/2022,(81700) Lab Equipment Purchase,(id:41868) Acute & General Medicine,NHS SUPPLY CHAIN (MAIDSTONE),id:14751854,18.58,
Department of Health,Guys and St Thomas NHS Foundation Trust,14/01/2022,(82600) Uniforms & Clothing,(id:41882) Acute & General Medicine,NHS SUPPLY CHAIN (MAIDSTONE),id:14721243   ,16.85,
Department of Health,Guys and St Thomas NHS Foundation Trust,14/01/2022,(82000) Provisions & Kitchens,(id:41882) Acute & General Medicine,NHS SUPPLY CHAIN (MAIDSTONE),id:14751854 ,23.52,
Department of Health,Guys and St Thomas NHS Foundation Trust,28/01/2022,(83400) Office Equipment,(id:41882) Acute & General Medicine,NHS SUPPLY CHAIN (MAIDSTONE),id:14742162 ,2.92,
Department of Health,Guys and St Thomas NHS Foundation Trust,14/01/2022,(82800) Bedding & Linen,(id:41882) Acute & General Medicine,NHS SUPPLY CHAIN (MAIDSTONE),id:14780246  ,169.64,
Department of Health,Guys and St Thomas NHS Foundation Trust,28/01/2022,(82800) Bedding & Linen,(id:41882) Acute & General Medicine,NHS SUPPLY CHAIN (MAIDSTONE),id:14776441  ,21.56,
Department of Health,Guys and St Thomas NHS Foundation Trust,14/01/2022,(81100) Dressings,(id:41882) Acute & General Medicine,NHS SUPPLY CHAIN (MAIDSTONE),id:14780246   ,6.07,
Department of Health,Guys and St Thomas NHS Foundation Trust,14/01/2022,(81275) Medical Surgical Supplies & Equipment,(id:41882) Acute & General Medicine,NHS SUPPLY CHAIN (MAIDSTONE),id:14721243,14.46,
Department of Health,Guys and St Thomas NHS Foundation Trust,21/01/2022,(81275) Medical Surgical Supplies & Equipment,(id:41882) Acute & General Medicine,NHS SUPPLY CHAIN (MAIDSTONE),id:14760334,14.46,
Department of Health,Guys and St Thomas NHS Foundation Trust,28/01/2022,(83400) Office Equipment,(id:41880) Acute & General Medicine,NHS SUPPLY CHAIN (MAIDSTONE),id:14742162 ,154.9,
Department of Health,Guys and St Thomas NHS Foundation Trust,14/01/2022,(82800) Bedding & Linen,(id:41880) Acute & General Medicine,NHS SUPPLY CHAIN (MAIDSTONE),id:14751854  ,172.52,
Department of Health,Guys and St Thomas NHS Foundation Trust,21/01/2022,(82800) Bedding & Linen,(id:41880) Acute & General Medicine,NHS SUPPLY CHAIN (MAIDSTONE),id:14760334  ,105.75,
Department of Health,Guys and St Thomas NHS Foundation Trust,28/01/2022,(82800) Bedding & Linen,(id:41880) Acute & General Medicine,NHS SUPPLY CHAIN (MAIDSTONE),id:14776441  ,121.7,
Department of Health,Guys and St Thomas NHS Foundation Trust,21/01/2022,(81100) Dressings,(id:41880) Acute & General Medicine,NHS SUPPLY CHAIN (MAIDSTONE),id:14760334   ,187.45,
Department of Health,Guys and St Thomas NHS Foundation Trust,28/01/2022,(81200) Medical Surgical Supplies & Equipment,(id:41880) Acute & General Medicine,NHS SUPPLY CHAIN (MAIDSTONE),id:14776441,500.19,
Department of Health,Guys and St Thomas NHS Foundation Trust,21/01/2022,(81225) Medical Surgical Supplies & Equipment,(id:41880) Acute & General Medicine,NHS SUPPLY CHAIN (MAIDSTONE),id:14760334,9.24,
Department of Health,Guys and St Thomas NHS Foundation Trust,14/01/2022,(50522) Unqualified Nursing Staff,(id:41880) Acute & General Medicine,GLOBE LOCUMS LTD,id:14788369    ,269.96,
Department of Health,Guys and St Thomas NHS Foundation Trust,14/01/2022,(50522) Unqualified Nursing Staff,(id:41880) Acute & General Medicine,GLOBE LOCUMS LTD,id:14788577    ,651.68,
Department of Health,Guys and St Thomas NHS Foundation Trust,14/01/2022,(82800) Bedding & Linen,(id:41879) Acute & General Medicine,NHS SUPPLY CHAIN (MAIDSTONE),id:14721243  ,249.98,
Department of Health,Guys and St Thomas NHS Foundation Trust,14/01/2022,(81100) Dressings,(id:41879) Acute & General Medicine,NHS SUPPLY CHAIN (MAIDSTONE),id:14721243   ,356.81,
Department of Health,Guys and St Thomas NHS Foundation Trust,28/01/2022,(81100) Dressings,(id:41879) Acute & General Medicine,NHS SUPPLY CHAIN (MAIDSTONE),id:14742162   ,72.62,
Department of Health,Guys and St Thomas NHS Foundation Trust,21/01/2022,(50522) Unqualified Nursing Staff,(id:41879) Acute & General Medicine,GLOBE LOCUMS LTD,id:14800371    ,539.15,
Department of Health,Guys and St Thomas NHS Foundation Trust,14/01/2022,(81225) Medical Surgical Supplies & Equipment,(id:41879) Acute & General Medicine,NHS SUPPLY CHAIN (MAIDSTONE),id:14751854,3.12,
Department of Health,Guys and St Thomas NHS Foundation Trust,28/01/2022,(81225) Medical Surgical Supplies & Equipment,(id:41879) Acute & General Medicine,NHS SUPPLY CHAIN (MAIDSTONE),id:14776441,15.23,
Department of Health,Guys and St Thomas NHS Foundation Trust,14/01/2022,(82000) Provisions & Kitchens,(id:41878) Acute & General Medicine,NHS SUPPLY CHAIN (MAIDSTONE),id:14780246 ,69.71,
Department of Health,Guys and St Thomas NHS Foundation Trust,14/01/2022,(83400) Office Equipment,(id:41878) Acute & General Medicine,NHS SUPPLY CHAIN (MAIDSTONE),id:14751854 ,73.66,
Department of Health,Guys and St Thomas NHS Foundation Trust,14/01/2022,(82800) Bedding & Linen,(id:41878) Acute & General Medicine,NHS SUPPLY CHAIN (MAIDSTONE),id:14751854  ,124.27,
Department of Health,Guys and St Thomas NHS Foundation Trust,28/01/2022,(82800) Bedding & Linen,(id:41878) Acute & General Medicine,NHS SUPPLY CHAIN (MAIDSTONE),id:14776441  ,208.4,
Department of Health,Guys and St Thomas NHS Foundation Trust,28/01/2022,(50532) Unqualified Nursing Staff,(id:41878) Acute & General Medicine,GLOBE LOCUMS LTD,id:14830083    ,272.6,
Department of Health,Guys and St Thomas NHS Foundation Trust,07/01/2022,(50522) Unqualified Nursing Staff,(id:41878) Acute & General Medicine,GLOBE LOCUMS LTD,id:14769182    ,256.84,
Department of Health,Guys and St Thomas NHS Foundation Trust,07/01/2022,(50522) Unqualified Nursing Staff,(id:41878) Acute & General Medicine,CARE PROVIDERS HEALTHCARE,id:14768906,269.1,
Department of Health,Guys and St Thomas NHS Foundation Trust,14/01/2022,(50522) Unqualified Nursing Staff,(id:41878) Acute & General Medicine,CARE PROVIDERS HEALTHCARE,id:14788629,258.37,
Department of Health,Guys and St Thomas NHS Foundation Trust,21/01/2022,(50522) Unqualified Nursing Staff,(id:41878) Acute & General Medicine,CARE PROVIDERS HEALTHCARE,id:14805399,531.84,
Department of Health,Guys and St Thomas NHS Foundation Trust,28/01/2022,(50522) Unqualified Nursing Staff,(id:41878) Acute & General Medicine,GLOBE LOCUMS LTD,id:14830084    ,272.31,
Department of Health,Guys and St Thomas NHS Foundation Trust,28/01/2022,(81700) Lab Equipment Purchase,(id:41878) Acute & General Medicine,NHS SUPPLY CHAIN (MAIDSTONE),id:14742162,8.47,
Department of Health,Guys and St Thomas NHS Foundation Trust,14/01/2022,(82000) Provisions & Kitchens,(id:41881) Acute & General Medicine,NHS SUPPLY CHAIN (MAIDSTONE),id:14780246 ,31.2,
Department of Health,Guys and St Thomas NHS Foundation Trust,28/01/2022,(83400) Office Equipment,(id:41881) Acute & General Medicine,NHS SUPPLY CHAIN (MAIDSTONE),id:14742162 ,8.82,
Department of Health,Guys and St Thomas NHS Foundation Trust,21/01/2022,(82800) Bedding & Linen,(id:41881) Acute & General Medicine,NHS SUPPLY CHAIN (MAIDSTONE),id:14760334  ,55.7,
Department of Health,Guys and St Thomas NHS Foundation Trust,21/01/2022,(50532) Unqualified Nursing Staff,(id:41881) Acute & General Medicine,GLOBE LOCUMS LTD,id:14800370    ,607.2,
Department of Health,Guys and St Thomas NHS Foundation Trust,21/01/2022,(81100) Dressings,(id:41881) Acute & General Medicine,NHS SUPPLY CHAIN (MAIDSTONE),id:14760334   ,138.53,
Department of Health,Guys and St Thomas NHS Foundation Trust,21/01/2022,(50552) Qualified Nursing Staff,(id:41881) Acute & General Medicine,PULSE HEALTHCARE LIMITED,id:14800361   ,1085.38,
Department of Health,Guys and St Thomas NHS Foundation Trust,07/01/2022,(50522) Unqualified Nursing Staff,(id:41881) Acute & General Medicine,GLOBE LOCUMS LTD,id:14769210    ,260.27,
Department of Health,Guys and St Thomas NHS Foundation Trust,07/01/2022,(50522) Unqualified Nursing Staff,(id:41881) Acute & General Medicine,GLOBE LOCUMS LTD,id:14769252    ,269.1,
Department of Health,Guys and St Thomas NHS Foundation Trust,14/01/2022,(50522) Unqualified Nursing Staff,(id:41881) Acute & General Medicine,MSI GROUP LTD,id:14788177  ,256.86,
Department of Health,Guys and St Thomas NHS Foundation Trust,14/01/2022,(50522) Unqualified Nursing Staff,(id:41881) Acute & General Medicine,MSI GROUP LTD,id:14788706  ,722.94,
Department of Health,Guys and St Thomas NHS Foundation Trust,28/01/2022,(50522) Unqualified Nursing Staff,(id:41881) Acute & General Medicine,GLOBE LOCUMS LTD,id:14830192    ,1110.08,
Department of Health,Guys and St Thomas NHS Foundation Trust,21/01/2022,(81200) Medical Surgical Supplies & Equipment,(id:41881) Acute & General Medicine,NHS SUPPLY CHAIN (MAIDSTONE),id:14760334,338.63,
Department of Health,Guys and St Thomas NHS Foundation Trust,28/01/2022,(81200) Medical Surgical Supplies & Equipment,(id:41881) Acute & General Medicine,NHS SUPPLY CHAIN (MAIDSTONE),id:14742162,715.61,
Department of Health,Guys and St Thomas NHS Foundation Trust,21/01/2022,(84600) Establishment,(id:1435419) Acute & General Medicine,CLARITY TRAVEL MANAGEMENT,id:14797434,459.14,
Department of Health,Guys and St Thomas NHS Foundation Trust,14/01/2022,(83500) Furniture & Fittings,(id:41968) Inpatient Services,OCURA HEALTHCARE FURNITURE,id:14776474,5024.88,
Department of Health,Guys and St Thomas NHS Foundation Trust,21/01/2022,(81200) Medical Surgical Supplies & Equipment,(id:42025) Dental Services,HENRY SCHEIN,id:14791894,771.65,
Department of Health,Guys and St Thomas NHS Foundation Trust,28/01/2022,(81200) Medical Surgical Supplies & Equipment,(id:42025) Dental Services,NHS SUPPLY CHAIN (MAIDSTONE),id:14776441    ,859.6,
Department of Health,Guys and St Thomas NHS Foundation Trust,07/01/2022,(81200) Medical Surgical Supplies & Equipment,(id:42037) Dental Services,3M UNITED KINGDOM PLC,id:14748705 ,861,
Department of Health,Guys and St Thomas NHS Foundation Trust,14/01/2022,(81200) Medical Surgical Supplies & Equipment,(id:42037) Dental Services,NHS SUPPLY CHAIN (MAIDSTONE),id:14751854    ,384.19,
Department of Health,Guys and St Thomas NHS Foundation Trust,14/01/2022,(81200) Medical Surgical Supplies & Equipment,(id:42037) Dental Services,HENRY SCHEIN,id:14788896,827.53,
Department of Health,Guys and St Thomas NHS Foundation Trust,14/01/2022,(81200) Medical Surgical Supplies & Equipment,(id:42037) Dental Services,3M UNITED KINGDOM PLC,id:14780954 ,926.1,
Department of Health,Guys and St Thomas NHS Foundation Trust,21/01/2022,(81200) Medical Surgical Supplies & Equipment,(id:42037) Dental Services,HENRY SCHEIN,id:14749986,869.6,
Department of Health,Guys and St Thomas NHS Foundation Trust,28/01/2022,(81200) Medical Surgical Supplies & Equipment,(id:42037) Dental Services,HENRY SCHEIN,id:14793214,794.89,
Department of Health,Guys and St Thomas NHS Foundation Trust,28/01/2022,(81200) Medical Surgical Supplies & Equipment,(id:42037) Dental Services,HENRY SCHEIN,id:14793179,941.52,
Department of Health,Guys and St Thomas NHS Foundation Trust,14/01/2022,(81100) Dressings,(id:42037) Dental Services,NHS SUPPLY CHAIN (MAIDSTONE),id:14721243  ,11.4,
Department of Health,Guys and St Thomas NHS Foundation Trust,14/01/2022,(83400) Office Equipment,(id:42037) Dental Services,NHS SUPPLY CHAIN (MAIDSTONE),id:14751854,13.82,
Department of Health,Guys and St Thomas NHS Foundation Trust,14/01/2022,(82600) Uniforms & Clothing,(id:42007) Dental Services,NHS SUPPLY CHAIN (MAIDSTONE),id:14751854  ,42.1,
Department of Health,Guys and St Thomas NHS Foundation Trust,28/01/2022,(82600) Uniforms & Clothing,(id:42007) Dental Services,NHS SUPPLY CHAIN (MAIDSTONE),id:14776441  ,21.05,
Department of Health,Guys and St Thomas NHS Foundation Trust,14/01/2022,(82800) Bedding & Linen,(id:42007) Dental Services,NHS SUPPLY CHAIN (MAIDSTONE),id:14721243 ,86.26,
Department of Health,Guys and St Thomas NHS Foundation Trust,14/01/2022,(81200) Medical Surgical Supplies & Equipment,(id:42007) Dental Services,NHS SUPPLY CHAIN (MAIDSTONE),id:14721243    ,1608.14,
Department of Health,Guys and St Thomas NHS Foundation Trust,28/01/2022,(81200) Medical Surgical Supplies & Equipment,(id:42007) Dental Services,NHS SUPPLY CHAIN (MAIDSTONE),id:14776441    ,842.44,
Department of Health,Guys and St Thomas NHS Foundation Trust,14/01/2022,(83400) Office Equipment,(id:42007) Dental Services,NHS SUPPLY CHAIN (MAIDSTONE),id:14751854,68.7,
Department of Health,Guys and St Thomas NHS Foundation Trust,28/01/2022,(50200) Consultants,(id:42015) Dental Services,KINGS COLLEGE LONDON:03529700,id:14634638    ,307.65,
Department of Health,Guys and St Thomas NHS Foundation Trust,14/01/2022,(50470) Medical Training Grades,(id:42033) Dental Services,EAST KENT HOSPITALS UNIVERSITY NHS FOUNDATION TRUST,id:14762155,3154.18,
Department of Health,Guys and St Thomas NHS Foundation Trust,28/01/2022,(83400) Office Equipment,(id:42027) Dental Services,NHS SUPPLY CHAIN (MAIDSTONE),id:14742162,71.61,
Department of Health,Guys and St Thomas NHS Foundation Trust,14/01/2022,(81200) Medical Surgical Supplies & Equipment,(id:42028) Dental Services,NHS SUPPLY CHAIN (MAIDSTONE),id:14780246    ,36.72,
Department of Health,Guys and St Thomas NHS Foundation Trust,14/01/2022,(82800) Bedding & Linen,(id:42028) Dental Services,NHS SUPPLY CHAIN (MAIDSTONE),id:14780246 ,64.69,
Department of Health,Guys and St Thomas NHS Foundation Trust,14/01/2022,(81200) Medical Surgical Supplies & Equipment,(id:2884419) Dental Services,NHS SUPPLY CHAIN (MAIDSTONE),id:14780246  ,10.04,
Department of Health,Guys and St Thomas NHS Foundation Trust,07/01/2022,(50343) Other Medical Grades,(id:42022) Dental Services,KINGS COLLEGE LONDON:03529700,id:14767158,8636,
Department of Health,Guys and St Thomas NHS Foundation Trust,28/01/2022,(50343) Other Medical Grades,(id:42022) Dental Services,KINGS COLLEGE LONDON:03529700,id:14634638,1561.54,
Department of Health,Guys and St Thomas NHS Foundation Trust,14/01/2022,(89000) Other - Training courses and conferences,(id:2959419) Dental Services,TOTAL MERCHANDISE LTD,id:14776307 ,9405.84,
Department of Health,Guys and St Thomas NHS Foundation Trust,14/01/2022,(82800) Bedding & Linen,(id:4622420) Dental Services,NHS SUPPLY CHAIN (MAIDSTONE),id:14751854    ,107.82,
Department of Health,Guys and St Thomas NHS Foundation Trust,14/01/2022,(81200) Medical Surgical Supplies & Equipment,(id:42035) Dental Services,DENTSPLY IH LTD,id:14782264  ,502.51,
Department of Health,Guys and St Thomas NHS Foundation Trust,14/01/2022,(81200) Medical Surgical Supplies & Equipment,(id:1634433) Dental Services,NHS SUPPLY CHAIN (MAIDSTONE),id:14780246  ,79.46,
Department of Health,Guys and St Thomas NHS Foundation Trust,14/01/2022,(83400) Office Equipment,(id:1634433) Dental Services,NHS SUPPLY CHAIN (MAIDSTONE),id:14780246   ,62.15,
Department of Health,Guys and St Thomas NHS Foundation Trust,28/01/2022,(82800) Bedding & Linen,(id:1634432) Dental Services,NHS SUPPLY CHAIN (MAIDSTONE),id:14776441    ,344.9,
Department of Health,Guys and St Thomas NHS Foundation Trust,21/01/2022,(81200) Medical Surgical Supplies & Equipment,(id:1634432) Dental Services,HENRY SCHEIN,id:14789885   ,846.53,
Department of Health,Guys and St Thomas NHS Foundation Trust,28/01/2022,(81200) Medical Surgical Supplies & Equipment,(id:1634432) Dental Services,HENRY SCHEIN,id:14816527   ,697.37,
Department of Health,Guys and St Thomas NHS Foundation Trust,14/01/2022,(82600) Uniforms & Clothing,(id:1634432) Dental Services,SWALLOW DENTAL SUPPLIES,id:14770854,643.8,
Department of Health,Guys and St Thomas NHS Foundation Trust,28/01/2022,(81100) Dressings,(id:1634432) Dental Services,NHS SUPPLY CHAIN (MAIDSTONE),id:14776441,345.74,
Department of Health,Guys and St Thomas NHS Foundation Trust,07/01/2022,(81200) Medical Surgical Supplies & Equipment,(id:1634429) Dental Services,HENRY SCHEIN,id:14746808   ,886.79,
Department of Health,Guys and St Thomas NHS Foundation Trust,14/01/2022,(81700) Lab Equipment Purchase,(id:5397419) Specialist Ambulatory Services,NHS SUPPLY CHAIN (MAIDSTONE),id:14780246  ,176.05,
Department of Health,Guys and St Thomas NHS Foundation Trust,07/01/2022,(81700) Lab Equipment Purchase,(id:641456) Specialist Ambulatory Services,LIFE TECHNOLOGIES LIMITED,id:14767954 ,15436.8,
Department of Health,Guys and St Thomas NHS Foundation Trust,14/01/2022,(83640) IT Costs,(id:334405) Specialist Ambulatory Services,EDINBURGH INNOVATIONS LTD,id:14776465,3704.4,
Department of Health,Guys and St Thomas NHS Foundation Trust,28/01/2022,(83400) Office Equipment,(id:4431419) Specialist Ambulatory Services,NHS SUPPLY CHAIN (MAIDSTONE),id:14776441   ,3.34,
Department of Health,Guys and St Thomas NHS Foundation Trust,14/01/2022,(81275) Medical Surgical Supplies & Equipment,(id:4431419) Specialist Ambulatory Services,NHS SUPPLY CHAIN (MAIDSTONE),id:14721243  ,21.84,
Department of Health,Guys and St Thomas NHS Foundation Trust,21/01/2022,(82000) Provisions & Kitchens,(id:42193) Specialist Ambulatory Services,TALAR MADE ORTHOTICS LTD,id:14797782    ,16.48,
Department of Health,Guys and St Thomas NHS Foundation Trust,21/01/2022,(50203) Consultants,(id:42193) Specialist Ambulatory Services,KINGS COLLEGE LONDON:03529700,id:14799894    ,11634.92,
Department of Health,Guys and St Thomas NHS Foundation Trust,28/01/2022,(50203) Consultants,(id:42193) Specialist Ambulatory Services,KINGS COLLEGE LONDON:03529700,id:14817218    ,10850.48,
Department of Health,Guys and St Thomas NHS Foundation Trust,28/01/2022,(81700) Lab Equipment Purchase,(id:42358) Specialist Ambulatory Services,NHS SUPPLY CHAIN (MAIDSTONE),id:14742162    ,34.8,
Department of Health,Guys and St Thomas NHS Foundation Trust,21/01/2022,(84600) Establishment,(id:42358) Specialist Ambulatory Services,CLARITY TRAVEL MANAGEMENT,id:14797414 ,72.04,
Department of Health,Guys and St Thomas NHS Foundation Trust,21/01/2022,(89595) Non-Healthcare from Foundation Trusts,(id:42354) Specialist Ambulatory Services,ST GEORGE'S UNIVERSITY HOSPITALS NHS FOUNDATION TRUST,id:14331671    ,650,
Department of Health,Guys and St Thomas NHS Foundation Trust,14/01/2022,(81200) Medical Surgical Supplies & Equipment,(id:3609419) Specialist Ambulatory Services,NHS SUPPLY CHAIN (MAIDSTONE),id:14751854  ,29.52,
Department of Health,Guys and St Thomas NHS Foundation Trust,14/01/2022,(81200) Medical Surgical Supplies & Equipment,(id:3607419) Specialist Ambulatory Services,NHS SUPPLY CHAIN (MAIDSTONE),id:14721243  ,140.3,
Department of Health,Guys and St Thomas NHS Foundation Trust,14/01/2022,(83400) Office Equipment,(id:255405) Specialist Ambulatory Services,NHS SUPPLY CHAIN (MAIDSTONE),id:14721243    ,13.33,
Department of Health,Guys and St Thomas NHS Foundation Trust,21/01/2022,(50200) Consultants,(id:42099) Specialist Ambulatory Services,KINGS COLLEGE LONDON:03529700,id:14799871    ,4813.31,
Department of Health,Guys and St Thomas NHS Foundation Trust,28/01/2022,(50200) Consultants,(id:42099) Specialist Ambulatory Services,KINGS COLLEGE LONDON:03529700,id:14828966    ,4258.15,
Department of Health,Guys and St Thomas NHS Foundation Trust,28/01/2022,(50200) Consultants,(id:42099) Specialist Ambulatory Services,KINGS COLLEGE LONDON:03529700,id:14817398    ,9656.87,
Department of Health,Guys and St Thomas NHS Foundation Trust,21/01/2022,(50203) Consultants,(id:42099) Specialist Ambulatory Services,KINGS COLLEGE LONDON:03529700,id:14800139    ,9279.54,
Department of Health,Guys and St Thomas NHS Foundation Trust,28/01/2022,(81100) Dressings,(id:42094) Specialist Ambulatory Services,NHS SUPPLY CHAIN (MAIDSTONE),id:14742162  ,1414.68,
Department of Health,Guys and St Thomas NHS Foundation Trust,14/01/2022,(81700) Lab Equipment Purchase,(id:42091) Specialist Ambulatory Services,NHS SUPPLY CHAIN (MAIDSTONE),id:14751854    ,160.2,
Department of Health,Guys and St Thomas NHS Foundation Trust,28/01/2022,(83400) Office Equipment,(id:42097) Specialist Ambulatory Services,NHS SUPPLY CHAIN (MAIDSTONE),id:14776441,12.62,
Department of Health,Guys and St Thomas NHS Foundation Trust,14/01/2022,(82800) Bedding & Linen,(id:42079) Specialist Ambulatory Services,NHS SUPPLY CHAIN (MAIDSTONE),id:14780246 ,21.56,
Department of Health,Guys and St Thomas NHS Foundation Trust,28/01/2022,(80010) Drug Costs,(id:42079) Specialist Ambulatory Services,THERAKOS (UK) LIMITED,id:14814554   ,-760.8,
Department of Health,Guys and St Thomas NHS Foundation Trust,28/01/2022,(80010) Drug Costs,(id:42079) Specialist Ambulatory Services,THERAKOS (UK) LIMITED,id:14814594   ,22572,
Department of Health,Guys and St Thomas NHS Foundation Trust,28/01/2022,(80010) Drug Costs,(id:42079) Specialist Ambulatory Services,THERAKOS (UK) LIMITED,id:14819194   ,22572,
Department of Health,Guys and St Thomas NHS Foundation Trust,14/01/2022,(81200) Medical Surgical Supplies & Equipment,(id:42066) Specialist Ambulatory Services,NHS SUPPLY CHAIN (MAIDSTONE),id:14751854    ,274.96,
Department of Health,Guys and St Thomas NHS Foundation Trust,21/01/2022,(84600) Establishment,(id:391419) Specialist Ambulatory Services,CLARITY TRAVEL MANAGEMENT,id:14797414,63.85,
Department of Health,Guys and St Thomas NHS Foundation Trust,14/01/2022,(83400) Office Equipment,(id:391417) Specialist Ambulatory Services,NHS SUPPLY CHAIN (MAIDSTONE),id:14721243    ,15.74,
Department of Health,Guys and St Thomas NHS Foundation Trust,14/01/2022,(81200) Medical Surgical Supplies & Equipment,(id:391417) Specialist Ambulatory Services,NHS SUPPLY CHAIN (MAIDSTONE),id:14751854   ,51.72,
Department of Health,Guys and St Thomas NHS Foundation Trust,14/01/2022,(81200) Medical Surgical Supplies & Equipment,(id:391417) Specialist Ambulatory Services,NHS SUPPLY CHAIN (MAIDSTONE),id:14780246   ,2.7,
Department of Health,Guys and St Thomas NHS Foundation Trust,14/01/2022,(81200) Medical Surgical Supplies & Equipment,(id:391417) Specialist Ambulatory Services,NHS SUPPLY CHAIN (MAIDSTONE),id:14721243   ,122.45,
Department of Health,Guys and St Thomas NHS Foundation Trust,28/01/2022,(81200) Medical Surgical Supplies & Equipment,(id:391417) Specialist Ambulatory Services,NHS SUPPLY CHAIN (MAIDSTONE),id:14776441   ,7.96,
Department of Health,Guys and St Thomas NHS Foundation Trust,14/01/2022,(81100) Dressings,(id:391417) Specialist Ambulatory Services,NHS SUPPLY CHAIN (MAIDSTONE),id:14780246 ,73.96,
Department of Health,Guys and St Thomas NHS Foundation Trust,14/01/2022,(81200) Medical Surgical Supplies & Equipment,(id:42064) Specialist Ambulatory Services,NHS SUPPLY CHAIN (MAIDSTONE),id:14751854    ,802.78,
Department of Health,Guys and St Thomas NHS Foundation Trust,14/01/2022,(81100) Dressings,(id:42064) Specialist Ambulatory Services,NHS SUPPLY CHAIN (MAIDSTONE),id:14780246  ,1.75,
Department of Health,Guys and St Thomas NHS Foundation Trust,14/01/2022,(81700) Lab Equipment Purchase,(id:42064) Specialist Ambulatory Services,NHS SUPPLY CHAIN (MAIDSTONE),id:14780246    ,157.98,
Department of Health,Guys and St Thomas NHS Foundation Trust,28/01/2022,(50200) Consultants,(id:42057) Specialist Ambulatory Services,KINGS COLLEGE LONDON:03529700,id:14828966    ,5755.18,
Department of Health,Guys and St Thomas NHS Foundation Trust,14/01/2022,(81200) Medical Surgical Supplies & Equipment,(id:42057) Specialist Ambulatory Services,NHS SUPPLY CHAIN (MAIDSTONE),id:14721243    ,132.62,
Department of Health,Guys and St Thomas NHS Foundation Trust,28/01/2022,(83500) Furniture & Fittings,(id:42050) Specialist Ambulatory Services,NHS SUPPLY CHAIN (MAIDSTONE),id:14742162 ,302.4,
Department of Health,Guys and St Thomas NHS Foundation Trust,14/01/2022,(81200) Medical Surgical Supplies & Equipment,(id:42050) Specialist Ambulatory Services,NHS SUPPLY CHAIN (MAIDSTONE),id:14751854    ,490.77,
Department of Health,Guys and St Thomas NHS Foundation Trust,28/01/2022,(89270) Establishment,(id:42050) Specialist Ambulatory Services,IMS MAXIMS,id:14828824 ,24427.7,
Department of Health,Guys and St Thomas NHS Foundation Trust,28/01/2022,(82000) Provisions & Kitchens,(id:42050) Specialist Ambulatory Services,NHS SUPPLY CHAIN (MAIDSTONE),id:14742162,11.2,
Department of Health,Guys and St Thomas NHS Foundation Trust,18/01/2022,(53672) Pharmacists,(id:2755419) Pharmacy,PRICEWATERHOUSECOOPERS LLP,id:14796154  ,2722.48,
Department of Health,Guys and St Thomas NHS Foundation Trust,18/01/2022,(53672) Pharmacists,(id:2755419) Pharmacy,PRICEWATERHOUSECOOPERS LLP,id:14796155  ,1349.16,
Department of Health,Guys and St Thomas NHS Foundation Trust,25/01/2022,(53672) Pharmacists,(id:42165) Pharmacy,PRICEWATERHOUSECOOPERS LLP,id:14812575    ,999.54,
Department of Health,Guys and St Thomas NHS Foundation Trust,14/01/2022,(81200) Medical Surgical Supplies & Equipment,(id:581409) Pharmacy,NHS SUPPLY CHAIN (MAIDSTONE),id:14721243,2450.39,
Department of Health,Guys and St Thomas NHS Foundation Trust,14/01/2022,(83400) Office Equipment,(id:581409) Pharmacy,NHS SUPPLY CHAIN (MAIDSTONE),id:14780246 ,30.53,
Department of Health,Guys and St Thomas NHS Foundation Trust,28/01/2022,(83400) Office Equipment,(id:581409) Pharmacy,MICRONCLEAN (FENLAND LAUNDRIES),id:14813877   ,1008.6,
Department of Health,Guys and St Thomas NHS Foundation Trust,25/01/2022,(54052) Technical Officers,(id:581409) Pharmacy,PRICEWATERHOUSECOOPERS LLP,id:14812575 ,1622.32,
Department of Health,Guys and St Thomas NHS Foundation Trust,18/01/2022,(53632) Pharmacists,(id:581409) Pharmacy,PRICEWATERHOUSECOOPERS LLP,id:14796155   ,465,
Department of Health,Guys and St Thomas NHS Foundation Trust,21/01/2022,(83640) IT Costs,(id:581409) Pharmacy,PHARMAGRAPH,id:14789088 ,6219,
Department of Health,Guys and St Thomas NHS Foundation Trust,07/01/2022,(89270) Establishment,(id:42159) Pharmacy,3CP,id:14768466,3360,
Department of Health,Guys and St Thomas NHS Foundation Trust,07/01/2022,(81200) Medical Surgical Supplies & Equipment,(id:42159) Pharmacy,RENACLINICAL LTD,id:14725861   ,102534,
Department of Health,Guys and St Thomas NHS Foundation Trust,28/01/2022,(81200) Medical Surgical Supplies & Equipment,(id:42159) Pharmacy,GSTT PROCUREMENT CARD,id:14830967   ,726.7,
Department of Health,Guys and St Thomas NHS Foundation Trust,28/01/2022,(81400) Medical Surgical Supplies & Equipment,(id:42159) Pharmacy,VWS (UK) LTD T/A VEOLIA WATER TECHNOLOGIES,id:14830824  ,2444,
Department of Health,Guys and St Thomas NHS Foundation Trust,25/01/2022,(54052) Technical Officers,(id:42159) Pharmacy,PRICEWATERHOUSECOOPERS LLP,id:14812575  ,1855.89,
Department of Health,Guys and St Thomas NHS Foundation Trust,28/01/2022,(55122) Admin & Clerical,(id:42159) Pharmacy,HYPER RECRUITMENT SOLUTIONS LTD,id:14800365    ,5964,
Department of Health,Guys and St Thomas NHS Foundation Trust,14/01/2022,(83400) Office Equipment,(id:42159) Pharmacy,NHS SUPPLY CHAIN (MAIDSTONE),id:14780246  ,8.1,
Department of Health,Guys and St Thomas NHS Foundation Trust,25/01/2022,(53672) Pharmacists,(id:42160) Pharmacy,PRICEWATERHOUSECOOPERS LLP,id:14812575    ,830.22,
Department of Health,Guys and St Thomas NHS Foundation Trust,31/01/2022,(53672) Pharmacists,(id:42160) Pharmacy,PRICEWATERHOUSECOOPERS LLP,id:14843414    ,551.83,
Department of Health,Guys and St Thomas NHS Foundation Trust,14/01/2022,(83400) Office Equipment,(id:42160) Pharmacy,NHS SUPPLY CHAIN (MAIDSTONE),id:14721243  ,6.47,
Department of Health,Guys and St Thomas NHS Foundation Trust,07/01/2022,(84655) Establishment,(id:478416) Medical Specialties,CLARION INTERPRETING LIMITED,id:14768557   ,3458.35,
Department of Health,Guys and St Thomas NHS Foundation Trust,07/01/2022,(84655) Establishment,(id:478416) Medical Specialties,CLARION INTERPRETING LIMITED,id:14768563   ,10464.4,
Department of Health,Guys and St Thomas NHS Foundation Trust,07/01/2022,(84655) Establishment,(id:478416) Medical Specialties,CLARION INTERPRETING LIMITED,id:14768565   ,12463,
Department of Health,Guys and St Thomas NHS Foundation Trust,28/01/2022,(84655) Establishment,(id:478416) Medical Specialties,SIGNIFICAN'T(UK) LTD (INTERPRETER NOW),id:14776876   ,882.5,
Department of Health,Guys and St Thomas NHS Foundation Trust,21/01/2022,(82000) Provisions & Kitchens,(id:42171) Medical Specialties,TALAR MADE ORTHOTICS LTD,id:14797789,43.65,
Department of Health,Guys and St Thomas NHS Foundation Trust,07/01/2022,(50552) Qualified Nursing Staff,(id:42217) Medical Specialties,CONTINENTAL NURSE LTD,id:14769251 ,2075.25,
Department of Health,Guys and St Thomas NHS Foundation Trust,14/01/2022,(50552) Qualified Nursing Staff,(id:42217) Medical Specialties,CONTINENTAL NURSE LTD,id:14788870 ,1847.24,
Department of Health,Guys and St Thomas NHS Foundation Trust,14/01/2022,(50552) Qualified Nursing Staff,(id:42217) Medical Specialties,CONTINENTAL NURSE LTD,id:14788778 ,1777.88,
Department of Health,Guys and St Thomas NHS Foundation Trust,14/01/2022,(50552) Qualified Nursing Staff,(id:42217) Medical Specialties,CONTINENTAL NURSE LTD,id:14788389 ,781.68,
Department of Health,Guys and St Thomas NHS Foundation Trust,18/01/2022,(51262) Dieticians,(id:42251) Medical Specialties,PRICEWATERHOUSECOOPERS LLP,id:14796154    ,5016.97,
Department of Health,Guys and St Thomas NHS Foundation Trust,28/01/2022,(82000) Provisions & Kitchens,(id:42250) Medical Specialties,AAH PHARMACEUTICALS LTD,id:14731736 ,1430.88,
Department of Health,Guys and St Thomas NHS Foundation Trust,14/01/2022,(81200) Medical Surgical Supplies & Equipment,(id:42223) Medical Specialties,BLINK MEDICAL LTD,id:14782900 ,4848,
Department of Health,Guys and St Thomas NHS Foundation Trust,21/01/2022,(81200) Medical Surgical Supplies & Equipment,(id:42223) Medical Specialties,NHS SUPPLY CHAIN (MAIDSTONE),id:14760334,784.5,
Department of Health,Guys and St Thomas NHS Foundation Trust,28/01/2022,(81200) Medical Surgical Supplies & Equipment,(id:42223) Medical Specialties,NHS SUPPLY CHAIN (MAIDSTONE),id:14776441,79.88,
Department of Health,Guys and St Thomas NHS Foundation Trust,28/01/2022,(89600) Non-Healthcare from other NHS bodies,(id:42223) Medical Specialties,NHS BLOOD AND TRANSPLANT,id:14717602,1353.72,
Department of Health,Guys and St Thomas NHS Foundation Trust,14/01/2022,(82000) Provisions & Kitchens,(id:42223) Medical Specialties,NHS SUPPLY CHAIN (MAIDSTONE),id:14751854 ,4.81,
Department of Health,Guys and St Thomas NHS Foundation Trust,14/01/2022,(83400) Office Equipment,(id:42221) Medical Specialties,NHS SUPPLY CHAIN (MAIDSTONE),id:14780246 ,147.61,
Department of Health,Guys and St Thomas NHS Foundation Trust,28/01/2022,(83400) Office Equipment,(id:42221) Medical Specialties,NHS SUPPLY CHAIN (MAIDSTONE),id:14776441 ,48.1,
Department of Health,Guys and St Thomas NHS Foundation Trust,14/01/2022,(82800) Bedding & Linen,(id:42221) Medical Specialties,Q MEDICAL TECHNOLOGIES LTD,id:14782661    ,1326.82,
Department of Health,Guys and St Thomas NHS Foundation Trust,14/01/2022,(81200) Medical Surgical Supplies & Equipment,(id:42221) Medical Specialties,BEAVER-VISITEC INTERNATIONAL (SALES) LTD,id:14774104   ,3904.1,
Department of Health,Guys and St Thomas NHS Foundation Trust,21/01/2022,(81200) Medical Surgical Supplies & Equipment,(id:42221) Medical Specialties,MISS OPHTHALMICS,id:14792814  ,2008.68,
Department of Health,Guys and St Thomas NHS Foundation Trust,21/01/2022,(81200) Medical Surgical Supplies & Equipment,(id:42221) Medical Specialties,NHS SUPPLY CHAIN (MAIDSTONE),id:14760334,2257.2,
Department of Health,Guys and St Thomas NHS Foundation Trust,21/01/2022,(81200) Medical Surgical Supplies & Equipment,(id:42221) Medical Specialties,ALCON EYE CARE UK LIMITED,id:14799754   ,1008,
Department of Health,Guys and St Thomas NHS Foundation Trust,28/01/2022,(81200) Medical Surgical Supplies & Equipment,(id:42221) Medical Specialties,JOHNSON & JOHNSON MEDICAL LTD,id:14775076    ,501.79,
Department of Health,Guys and St Thomas NHS Foundation Trust,21/01/2022,(82000) Provisions & Kitchens,(id:42213) Medical Specialties,TALAR MADE ORTHOTICS LTD,id:14797694,1062.17,
Department of Health,Guys and St Thomas NHS Foundation Trust,21/01/2022,(82000) Provisions & Kitchens,(id:42213) Medical Specialties,TALAR MADE ORTHOTICS LTD,id:14797723,146.76,
Department of Health,Guys and St Thomas NHS Foundation Trust,21/01/2022,(81200) Medical Surgical Supplies & Equipment,(id:42213) Medical Specialties,NHS SUPPLY CHAIN (MAIDSTONE),id:14760334,367.83,
Department of Health,Guys and St Thomas NHS Foundation Trust,14/01/2022,(81100) Dressings,(id:42213) Medical Specialties,NHS SUPPLY CHAIN (MAIDSTONE),id:14721243   ,2219.13,
Department of Health,Guys and St Thomas NHS Foundation Trust,28/01/2022,(50200) Consultants,(id:42213) Medical Specialties,KINGS COLLEGE LONDON:03529700,id:14817334,6471.14,
Department of Health,Guys and St Thomas NHS Foundation Trust,21/01/2022,(82000) Provisions & Kitchens,(id:42209) Medical Specialties,TALAR MADE ORTHOTICS LTD,id:14797774,144.75,
Department of Health,Guys and St Thomas NHS Foundation Trust,21/01/2022,(82000) Provisions & Kitchens,(id:42209) Medical Specialties,TALAR MADE ORTHOTICS LTD,id:14797721,154.24,
Department of Health,Guys and St Thomas NHS Foundation Trust,07/01/2022,(81200) Medical Surgical Supplies & Equipment,(id:42208) Medical Specialties,DEXCOM INTERNATIONAL LTD,id:14737254    ,600,
Department of Health,Guys and St Thomas NHS Foundation Trust,07/01/2022,(81200) Medical Surgical Supplies & Equipment,(id:42208) Medical Specialties,DEXCOM INTERNATIONAL LTD,id:14737294    ,600,
Department of Health,Guys and St Thomas NHS Foundation Trust,07/01/2022,(81200) Medical Surgical Supplies & Equipment,(id:42208) Medical Specialties,DEXCOM INTERNATIONAL LTD,id:14710349    ,600,
Department of Health,Guys and St Thomas NHS Foundation Trust,07/01/2022,(81200) Medical Surgical Supplies & Equipment,(id:42208) Medical Specialties,DEXCOM INTERNATIONAL LTD,id:14711755    ,600,
Department of Health,Guys and St Thomas NHS Foundation Trust,07/01/2022,(81200) Medical Surgical Supplies & Equipment,(id:42208) Medical Specialties,DEXCOM INTERNATIONAL LTD,id:14711032    ,793.5,
Department of Health,Guys and St Thomas NHS Foundation Trust,07/01/2022,(81200) Medical Surgical Supplies & Equipment,(id:42208) Medical Specialties,MEDTRONIC LTD,id:14724457,567,
Department of Health,Guys and St Thomas NHS Foundation Trust,07/01/2022,(81200) Medical Surgical Supplies & Equipment,(id:42208) Medical Specialties,DEXCOM INTERNATIONAL LTD,id:14710307    ,600,
Department of Health,Guys and St Thomas NHS Foundation Trust,07/01/2022,(81200) Medical Surgical Supplies & Equipment,(id:42208) Medical Specialties,DEXCOM INTERNATIONAL LTD,id:14737574    ,600,
Department of Health,Guys and St Thomas NHS Foundation Trust,07/01/2022,(81200) Medical Surgical Supplies & Equipment,(id:42208) Medical Specialties,DEXCOM INTERNATIONAL LTD,id:14737214    ,600,
Department of Health,Guys and St Thomas NHS Foundation Trust,07/01/2022,(81200) Medical Surgical Supplies & Equipment,(id:42208) Medical Specialties,DEXCOM INTERNATIONAL LTD,id:14710364    ,600,
Department of Health,Guys and St Thomas NHS Foundation Trust,07/01/2022,(81200) Medical Surgical Supplies & Equipment,(id:42208) Medical Specialties,DEXCOM INTERNATIONAL LTD,id:14710346    ,600,
Department of Health,Guys and St Thomas NHS Foundation Trust,07/01/2022,(81200) Medical Surgical Supplies & Equipment,(id:42208) Medical Specialties,DEXCOM INTERNATIONAL LTD,id:14710343    ,3600,
Department of Health,Guys and St Thomas NHS Foundation Trust,07/01/2022,(81200) Medical Surgical Supplies & Equipment,(id:42208) Medical Specialties,DEXCOM INTERNATIONAL LTD,id:14710376    ,7200,
Department of Health,Guys and St Thomas NHS Foundation Trust,21/01/2022,(81200) Medical Surgical Supplies & Equipment,(id:42208) Medical Specialties,MEDTRONIC LTD,id:14765155,567,
Department of Health,Guys and St Thomas NHS Foundation Trust,28/01/2022,(81200) Medical Surgical Supplies & Equipment,(id:42208) Medical Specialties,DEXCOM INTERNATIONAL LTD,id:14787962    ,600,
Department of Health,Guys and St Thomas NHS Foundation Trust,28/01/2022,(81200) Medical Surgical Supplies & Equipment,(id:42208) Medical Specialties,DEXCOM INTERNATIONAL LTD,id:14788002    ,600,
Department of Health,Guys and St Thomas NHS Foundation Trust,28/01/2022,(81200) Medical Surgical Supplies & Equipment,(id:42208) Medical Specialties,INSULET INTERNATIONAL LTD,id:14797016   ,712.08,
Department of Health,Guys and St Thomas NHS Foundation Trust,28/01/2022,(81200) Medical Surgical Supplies & Equipment,(id:42208) Medical Specialties,INSULET INTERNATIONAL LTD,id:14797021   ,712.08,
Department of Health,Guys and St Thomas NHS Foundation Trust,28/01/2022,(81200) Medical Surgical Supplies & Equipment,(id:42208) Medical Specialties,DEXCOM INTERNATIONAL LTD,id:14782195    ,600,
Department of Health,Guys and St Thomas NHS Foundation Trust,28/01/2022,(81200) Medical Surgical Supplies & Equipment,(id:42208) Medical Specialties,DEXCOM INTERNATIONAL LTD,id:14782966    ,600,
Department of Health,Guys and St Thomas NHS Foundation Trust,28/01/2022,(81200) Medical Surgical Supplies & Equipment,(id:42208) Medical Specialties,DEXCOM INTERNATIONAL LTD,id:14787931    ,600,
Department of Health,Guys and St Thomas NHS Foundation Trust,28/01/2022,(81200) Medical Surgical Supplies & Equipment,(id:42208) Medical Specialties,DEXCOM INTERNATIONAL LTD,id:14782214    ,600,
Department of Health,Guys and St Thomas NHS Foundation Trust,28/01/2022,(81200) Medical Surgical Supplies & Equipment,(id:42208) Medical Specialties,DEXCOM INTERNATIONAL LTD,id:14779067    ,600,
Department of Health,Guys and St Thomas NHS Foundation Trust,28/01/2022,(81200) Medical Surgical Supplies & Equipment,(id:42208) Medical Specialties,DEXCOM INTERNATIONAL LTD,id:14788032    ,600,
Department of Health,Guys and St Thomas NHS Foundation Trust,28/01/2022,(81200) Medical Surgical Supplies & Equipment,(id:42208) Medical Specialties,DEXCOM INTERNATIONAL LTD,id:14788034    ,600,
Department of Health,Guys and St Thomas NHS Foundation Trust,28/01/2022,(81200) Medical Surgical Supplies & Equipment,(id:42208) Medical Specialties,DEXCOM INTERNATIONAL LTD,id:14787947    ,600,
Department of Health,Guys and St Thomas NHS Foundation Trust,28/01/2022,(81200) Medical Surgical Supplies & Equipment,(id:42208) Medical Specialties,DEXCOM INTERNATIONAL LTD,id:14787993    ,600,
Department of Health,Guys and St Thomas NHS Foundation Trust,28/01/2022,(81200) Medical Surgical Supplies & Equipment,(id:42208) Medical Specialties,DEXCOM INTERNATIONAL LTD,id:14788030    ,600,
Department of Health,Guys and St Thomas NHS Foundation Trust,21/01/2022,(82000) Provisions & Kitchens,(id:42204) Medical Specialties,TALAR MADE ORTHOTICS LTD,id:14797778,13.95,
Department of Health,Guys and St Thomas NHS Foundation Trust,21/01/2022,(82000) Provisions & Kitchens,(id:42199) Medical Specialties,TALAR MADE ORTHOTICS LTD,id:14797724,17.46,
Department of Health,Guys and St Thomas NHS Foundation Trust,21/01/2022,(82000) Provisions & Kitchens,(id:42199) Medical Specialties,TALAR MADE ORTHOTICS LTD,id:14797775,29.4,
Department of Health,Guys and St Thomas NHS Foundation Trust,21/01/2022,(82000) Provisions & Kitchens,(id:42199) Medical Specialties,TALAR MADE ORTHOTICS LTD,id:14797782,87.31,
Department of Health,Guys and St Thomas NHS Foundation Trust,07/01/2022,(81200) Medical Surgical Supplies & Equipment,(id:41937) Medical Specialties,TPS HEALTHCARE GROUP,id:14755994   ,660,
Department of Health,Guys and St Thomas NHS Foundation Trust,14/01/2022,(81200) Medical Surgical Supplies & Equipment,(id:41937) Medical Specialties,TPS HEALTHCARE GROUP,id:14774276   ,660,
Department of Health,Guys and St Thomas NHS Foundation Trust,14/01/2022,(82800) Bedding & Linen,(id:41937) Medical Specialties,NHS SUPPLY CHAIN (MAIDSTONE),id:14780246  ,86.26,
Department of Health,Guys and St Thomas NHS Foundation Trust,21/01/2022,(81300) Medical Surgical Supplies & Equipment,(id:41937) Medical Specialties,ENEURA (UK) LTD,id:14805835   ,1612,
Department of Health,Guys and St Thomas NHS Foundation Trust,14/01/2022,(81225) Medical Surgical Supplies & Equipment,(id:42234) Therapies and Rehabilitation,NHS SUPPLY CHAIN (MAIDSTONE),id:14780246 ,113.4,
Department of Health,Guys and St Thomas NHS Foundation Trust,18/01/2022,(51872) Physiotherapists,(id:42234) Therapies and Rehabilitation,PRICEWATERHOUSECOOPERS LLP,id:14796155    ,6094.26,
Department of Health,Guys and St Thomas NHS Foundation Trust,18/01/2022,(51472) Occupational Therapists,(id:42240) Therapies and Rehabilitation,PRICEWATERHOUSECOOPERS LLP,id:14796155  ,2916.69,
Department of Health,Guys and St Thomas NHS Foundation Trust,31/01/2022,(51472) Occupational Therapists,(id:42240) Therapies and Rehabilitation,PRICEWATERHOUSECOOPERS LLP,id:14843414  ,8937.72,
Department of Health,Guys and St Thomas NHS Foundation Trust,28/01/2022,(81100) Dressings,(id:42239) Therapies and Rehabilitation,NHS SUPPLY CHAIN (MAIDSTONE),id:14742162    ,537.42,
Department of Health,Guys and St Thomas NHS Foundation Trust,28/01/2022,(82800) Bedding & Linen,(id:42239) Therapies and Rehabilitation,NHS SUPPLY CHAIN (MAIDSTONE),id:14742162   ,43.13,
Department of Health,Guys and St Thomas NHS Foundation Trust,14/01/2022,(83400) Office Equipment,(id:42239) Therapies and Rehabilitation,NHS SUPPLY CHAIN (MAIDSTONE),id:14721243  ,29.02,
Department of Health,Guys and St Thomas NHS Foundation Trust,28/01/2022,(83400) Office Equipment,(id:42239) Therapies and Rehabilitation,NHS SUPPLY CHAIN (MAIDSTONE),id:14742162  ,1.94,
Department of Health,Guys and St Thomas NHS Foundation Trust,28/01/2022,(81200) Medical Surgical Supplies & Equipment,(id:42239) Therapies and Rehabilitation,NHS SUPPLY CHAIN (MAIDSTONE),id:14742162 ,114.24,
Department of Health,Guys and St Thomas NHS Foundation Trust,28/01/2022,(82000) Provisions & Kitchens,(id:42239) Therapies and Rehabilitation,NHS SUPPLY CHAIN (MAIDSTONE),id:14742162  ,7.2,
Department of Health,Guys and St Thomas NHS Foundation Trust,14/01/2022,(81100) Dressings,(id:590530) Therapies and Rehabilitation,NHS SUPPLY CHAIN (MAIDSTONE),id:14780246   ,7.39,
Department of Health,Guys and St Thomas NHS Foundation Trust,14/01/2022,(81200) Medical Surgical Supplies & Equipment,(id:590530) Therapies and Rehabilitation,NHS SUPPLY CHAIN (MAIDSTONE),id:14721243,120.35,
Department of Health,Guys and St Thomas NHS Foundation Trust,28/01/2022,(81100) Dressings,(id:590490) Therapies and Rehabilitation,NHS SUPPLY CHAIN (MAIDSTONE),id:14742162   ,232.96,
Department of Health,Guys and St Thomas NHS Foundation Trust,21/01/2022,(82600) Uniforms & Clothing,(id:590490) Therapies and Rehabilitation,DISPOSABLE MEDICAL INSTRUMENTS LTD,id:14746478  ,642,
Department of Health,Guys and St Thomas NHS Foundation Trust,21/01/2022,(82000) Provisions & Kitchens,(id:42243) Therapies and Rehabilitation,TALAR MADE ORTHOTICS LTD,id:14797719 ,13.97,
Department of Health,Guys and St Thomas NHS Foundation Trust,14/01/2022,(83610) IT Costs,(id:590500) Therapies and Rehabilitation,SMARTBOX ASSISTIVE TECHNOLOGY LTD,id:14776580    ,2970,
Department of Health,Guys and St Thomas NHS Foundation Trust,07/01/2022,(81200) Medical Surgical Supplies & Equipment,(id:590499) Therapies and Rehabilitation,INVACARE LTD,id:14732634 ,3054,
Department of Health,Guys and St Thomas NHS Foundation Trust,28/01/2022,(81200) Medical Surgical Supplies & Equipment,(id:590499) Therapies and Rehabilitation,SUNRISE MEDICAL LIMITED,id:14808429,1387.26,
Department of Health,Guys and St Thomas NHS Foundation Trust,28/01/2022,(81200) Medical Surgical Supplies & Equipment,(id:590499) Therapies and Rehabilitation,INVACARE LTD,id:14810840 ,1551.6,
Department of Health,Guys and St Thomas NHS Foundation Trust,07/01/2022,(81225) Medical Surgical Supplies & Equipment,(id:590499) Therapies and Rehabilitation,INVACARE LTD,id:14760774 ,636,
Department of Health,Guys and St Thomas NHS Foundation Trust,07/01/2022,(81225) Medical Surgical Supplies & Equipment,(id:590499) Therapies and Rehabilitation,RMS (REHABILITATION MANUFACTURING SERVICES LTD),id:14712011 ,732,
Department of Health,Guys and St Thomas NHS Foundation Trust,28/01/2022,(81225) Medical Surgical Supplies & Equipment,(id:590499) Therapies and Rehabilitation,ACTIVE DESIGN LTD,id:14810510 ,1670.4,
Department of Health,Guys and St Thomas NHS Foundation Trust,14/01/2022,(83400) Office Equipment,(id:590498) Therapies and Rehabilitation,NHS SUPPLY CHAIN (MAIDSTONE),id:14780246 ,66.08,
Department of Health,Guys and St Thomas NHS Foundation Trust,28/01/2022,(81225) Medical Surgical Supplies & Equipment,(id:590498) Therapies and Rehabilitation,JANE SAUNDERS & MANNING LTD,id:14811874 ,670.88,
Department of Health,Guys and St Thomas NHS Foundation Trust,28/01/2022,(81225) Medical Surgical Supplies & Equipment,(id:590498) Therapies and Rehabilitation,JANE SAUNDERS & MANNING LTD,id:14811894 ,828.01,
Department of Health,Guys and St Thomas NHS Foundation Trust,14/01/2022,(81100) Dressings,(id:590498) Therapies and Rehabilitation,NHS SUPPLY CHAIN (MAIDSTONE),id:14780246   ,315,
Department of Health,Guys and St Thomas NHS Foundation Trust,14/01/2022,(81100) Dressings,(id:590496) Therapies and Rehabilitation,NHS SUPPLY CHAIN (MAIDSTONE),id:14780246   ,327.48,
Department of Health,Guys and St Thomas NHS Foundation Trust,14/01/2022,(81100) Dressings,(id:1042419) Therapies and Rehabilitation,NHS SUPPLY CHAIN (MAIDSTONE),id:14721243  ,194.35,
Department of Health,Guys and St Thomas NHS Foundation Trust,21/01/2022,(84600) Establishment,(id:2001419) Clinical Imaging & Med Physics,CLARITY TRAVEL MANAGEMENT,id:14797434    ,98.98,
Department of Health,Guys and St Thomas NHS Foundation Trust,28/01/2022,(81200) Medical Surgical Supplies & Equipment,(id:5001419) Clinical Imaging & Med Physics,GSTT PROCUREMENT CARD,id:14830967    ,11.17,
Department of Health,Guys and St Thomas NHS Foundation Trust,28/01/2022,(50200) Consultants,(id:42368) Clinical Imaging & Med Physics,KINGS COLLEGE LONDON:03529700,id:14817181    ,5143.78,
Department of Health,Guys and St Thomas NHS Foundation Trust,18/01/2022,(52072) Radiographers,(id:42368) Clinical Imaging & Med Physics,PRICEWATERHOUSECOOPERS LLP,id:14796154,13944.31,
Department of Health,Guys and St Thomas NHS Foundation Trust,18/01/2022,(52062) Radiographers,(id:42368) Clinical Imaging & Med Physics,PRICEWATERHOUSECOOPERS LLP,id:14796154,6454.11,
Department of Health,Guys and St Thomas NHS Foundation Trust,28/01/2022,(83400) Office Equipment,(id:42367) Clinical Imaging & Med Physics,NHS SUPPLY CHAIN (MAIDSTONE),id:14742162,324.54,
Department of Health,Guys and St Thomas NHS Foundation Trust,14/01/2022,(81400) Medical Surgical Supplies & Equipment,(id:42367) Clinical Imaging & Med Physics,PROTECTIVE WEAR SUPPLIES,id:14782315   ,497.4,
Department of Health,Guys and St Thomas NHS Foundation Trust,07/01/2022,(81200) Medical Surgical Supplies & Equipment,(id:42367) Clinical Imaging & Med Physics,COOK UK LTD,id:14712956 ,602.4,
Department of Health,Guys and St Thomas NHS Foundation Trust,07/01/2022,(81200) Medical Surgical Supplies & Equipment,(id:42367) Clinical Imaging & Med Physics,ABBOTT MEDICAL UK LTD,id:14757494 ,2460,
Department of Health,Guys and St Thomas NHS Foundation Trust,07/01/2022,(81200) Medical Surgical Supplies & Equipment,(id:42367) Clinical Imaging & Med Physics,BOSTON SCIENTIFIC LTD,id:14748199 ,2004,
Department of Health,Guys and St Thomas NHS Foundation Trust,07/01/2022,(81200) Medical Surgical Supplies & Equipment,(id:42367) Clinical Imaging & Med Physics,BOSTON SCIENTIFIC LTD,id:14748202 ,564,
Department of Health,Guys and St Thomas NHS Foundation Trust,07/01/2022,(81200) Medical Surgical Supplies & Equipment,(id:42367) Clinical Imaging & Med Physics,ABBOTT MEDICAL UK LTD,id:14757594 ,1140,
Department of Health,Guys and St Thomas NHS Foundation Trust,07/01/2022,(81200) Medical Surgical Supplies & Equipment,(id:42367) Clinical Imaging & Med Physics,BOSTON SCIENTIFIC LTD,id:14724479 ,1656,
Department of Health,Guys and St Thomas NHS Foundation Trust,07/01/2022,(81200) Medical Surgical Supplies & Equipment,(id:42367) Clinical Imaging & Med Physics,MEDTRONIC LTD,id:14728161    ,1920,
Department of Health,Guys and St Thomas NHS Foundation Trust,07/01/2022,(81200) Medical Surgical Supplies & Equipment,(id:42367) Clinical Imaging & Med Physics,VYGON (UK) LTD,id:14708332   ,1006.02,
Department of Health,Guys and St Thomas NHS Foundation Trust,07/01/2022,(81200) Medical Surgical Supplies & Equipment,(id:42367) Clinical Imaging & Med Physics,BOSTON SCIENTIFIC LTD,id:14748047 ,7200,
Department of Health,Guys and St Thomas NHS Foundation Trust,14/01/2022,(81200) Medical Surgical Supplies & Equipment,(id:42367) Clinical Imaging & Med Physics,AQUILANT LTD,id:14776920,1500,
Department of Health,Guys and St Thomas NHS Foundation Trust,14/01/2022,(81200) Medical Surgical Supplies & Equipment,(id:42367) Clinical Imaging & Med Physics,BOSTON SCIENTIFIC LTD,id:14752878 ,1518,
Department of Health,Guys and St Thomas NHS Foundation Trust,14/01/2022,(81200) Medical Surgical Supplies & Equipment,(id:42367) Clinical Imaging & Med Physics,ABBOTT MEDICAL UK LTD,id:14784399 ,540,
Department of Health,Guys and St Thomas NHS Foundation Trust,14/01/2022,(81200) Medical Surgical Supplies & Equipment,(id:42367) Clinical Imaging & Med Physics,AQUILANT LTD,id:14776933,1860,
Department of Health,Guys and St Thomas NHS Foundation Trust,21/01/2022,(81200) Medical Surgical Supplies & Equipment,(id:42367) Clinical Imaging & Med Physics,BARD LTD,id:14722411    ,49.4,
Department of Health,Guys and St Thomas NHS Foundation Trust,21/01/2022,(81200) Medical Surgical Supplies & Equipment,(id:42367) Clinical Imaging & Med Physics,BOSTON SCIENTIFIC LTD,id:14765395 ,5796,
Department of Health,Guys and St Thomas NHS Foundation Trust,28/01/2022,(81200) Medical Surgical Supplies & Equipment,(id:42367) Clinical Imaging & Med Physics,VYGON (UK) LTD,id:14806829   ,501.54,
Department of Health,Guys and St Thomas NHS Foundation Trust,28/01/2022,(81200) Medical Surgical Supplies & Equipment,(id:42367) Clinical Imaging & Med Physics,ABBOTT MEDICAL UK LTD,id:14784468 ,540,
Department of Health,Guys and St Thomas NHS Foundation Trust,07/01/2022,(81235) Medical Surgical Supplies & Equipment,(id:42367) Clinical Imaging & Med Physics,BOSTON SCIENTIFIC LTD,id:14712881 ,510,
Department of Health,Guys and St Thomas NHS Foundation Trust,19/01/2022,(81235) Medical Surgical Supplies & Equipment,(id:42367) Clinical Imaging & Med Physics,MEDALLIANCE S.A.,id:14782361 ,790,
Department of Health,Guys and St Thomas NHS Foundation Trust,21/01/2022,(81235) Medical Surgical Supplies & Equipment,(id:42367) Clinical Imaging & Med Physics,BARD LTD,id:14722411    ,917.82,
Department of Health,Guys and St Thomas NHS Foundation Trust,21/01/2022,(81230) Medical Surgical Supplies & Equipment,(id:42367) Clinical Imaging & Med Physics,COOK UK LTD,id:14744125 ,44.4,
Department of Health,Guys and St Thomas NHS Foundation Trust,14/01/2022,(81225) Medical Surgical Supplies & Equipment,(id:42367) Clinical Imaging & Med Physics,NHS SUPPLY CHAIN (MAIDSTONE),id:14780246    ,38.88,
Department of Health,Guys and St Thomas NHS Foundation Trust,14/01/2022,(81225) Medical Surgical Supplies & Equipment,(id:42367) Clinical Imaging & Med Physics,NHS SUPPLY CHAIN (MAIDSTONE),id:14721243    ,347.76,
Department of Health,Guys and St Thomas NHS Foundation Trust,14/01/2022,(81500) X Ray Equipment Purchase,(id:42367) Clinical Imaging & Med Physics,NHS SUPPLY CHAIN (MAIDSTONE),id:14780246  ,469.84,
Department of Health,Guys and St Thomas NHS Foundation Trust,14/01/2022,(82000) Provisions & Kitchens,(id:42366) Clinical Imaging & Med Physics,NHS SUPPLY CHAIN (MAIDSTONE),id:14780246,49.7,
Department of Health,Guys and St Thomas NHS Foundation Trust,14/01/2022,(82600) Uniforms & Clothing,(id:42366) Clinical Imaging & Med Physics,NHS SUPPLY CHAIN (MAIDSTONE),id:14751854  ,200.32,
Department of Health,Guys and St Thomas NHS Foundation Trust,14/01/2022,(81100) Dressings,(id:42366) Clinical Imaging & Med Physics,NHS SUPPLY CHAIN (MAIDSTONE),id:14780246  ,263.88,
Department of Health,Guys and St Thomas NHS Foundation Trust,07/01/2022,(81500) X Ray Equipment Purchase,(id:42366) Clinical Imaging & Med Physics,BAYER PLC,id:14754751 ,1420.8,
Department of Health,Guys and St Thomas NHS Foundation Trust,14/01/2022,(81500) X Ray Equipment Purchase,(id:42366) Clinical Imaging & Med Physics,BAYER PLC,id:14776341 ,1420.8,
Department of Health,Guys and St Thomas NHS Foundation Trust,14/01/2022,(81500) X Ray Equipment Purchase,(id:42366) Clinical Imaging & Med Physics,BAYER PLC,id:14776338 ,1680,
Department of Health,Guys and St Thomas NHS Foundation Trust,14/01/2022,(81500) X Ray Equipment Purchase,(id:42366) Clinical Imaging & Med Physics,NHS SUPPLY CHAIN (MAIDSTONE),id:14780246  ,1998,
Department of Health,Guys and St Thomas NHS Foundation Trust,21/01/2022,(81500) X Ray Equipment Purchase,(id:42366) Clinical Imaging & Med Physics,NHS SUPPLY CHAIN (MAIDSTONE),id:14760334  ,469.84,
Department of Health,Guys and St Thomas NHS Foundation Trust,14/01/2022,(81225) Medical Surgical Supplies & Equipment,(id:42366) Clinical Imaging & Med Physics,NHS SUPPLY CHAIN (MAIDSTONE),id:14780246    ,6.83,
Department of Health,Guys and St Thomas NHS Foundation Trust,14/01/2022,(83400) Office Equipment,(id:42372) Clinical Imaging & Med Physics,BAYER PLC,id:14776695    ,2112,
Department of Health,Guys and St Thomas NHS Foundation Trust,21/01/2022,(83400) Office Equipment,(id:42372) Clinical Imaging & Med Physics,DURBIN PLC,id:14795299   ,786,
Department of Health,Guys and St Thomas NHS Foundation Trust,21/01/2022,(83400) Office Equipment,(id:42372) Clinical Imaging & Med Physics,DURBIN PLC,id:14799611   ,680.85,
Department of Health,Guys and St Thomas NHS Foundation Trust,14/01/2022,(82800) Bedding & Linen,(id:42372) Clinical Imaging & Med Physics,NHS SUPPLY CHAIN (MAIDSTONE),id:14721243 ,43.13,
Department of Health,Guys and St Thomas NHS Foundation Trust,07/01/2022,(81275) Medical Surgical Supplies & Equipment,(id:42372) Clinical Imaging & Med Physics,GE HEALTHCARE (50652318),id:14751734   ,756,
Department of Health,Guys and St Thomas NHS Foundation Trust,14/01/2022,(81275) Medical Surgical Supplies & Equipment,(id:42372) Clinical Imaging & Med Physics,GE HEALTHCARE (50652318),id:14776977   ,756,
Department of Health,Guys and St Thomas NHS Foundation Trust,14/01/2022,(81275) Medical Surgical Supplies & Equipment,(id:42372) Clinical Imaging & Med Physics,GE HEALTHCARE (50652318),id:14782336   ,756,
Department of Health,Guys and St Thomas NHS Foundation Trust,21/01/2022,(84600) Establishment,(id:42382) Clinical Imaging & Med Physics,CLARITY TRAVEL MANAGEMENT,id:14797434 ,63.79,
Department of Health,Guys and St Thomas NHS Foundation Trust,14/01/2022,(81400) Medical Surgical Supplies & Equipment,(id:42379) Clinical Imaging & Med Physics,KCI MEDICAL LTD,id:14769499  ,500,
Department of Health,Guys and St Thomas NHS Foundation Trust,28/01/2022,(81400) Medical Surgical Supplies & Equipment,(id:42379) Clinical Imaging & Med Physics,TENACORE UK LTD,id:14725294  ,585,
Department of Health,Guys and St Thomas NHS Foundation Trust,28/01/2022,(81400) Medical Surgical Supplies & Equipment,(id:42379) Clinical Imaging & Med Physics,C FRANKLIN LTD,id:14815694   ,1804,
Department of Health,Guys and St Thomas NHS Foundation Trust,28/01/2022,(81400) Medical Surgical Supplies & Equipment,(id:42379) Clinical Imaging & Med Physics,KCI MEDICAL LTD,id:14784934  ,500.02,
Department of Health,Guys and St Thomas NHS Foundation Trust,14/01/2022,(81200) Medical Surgical Supplies & Equipment,(id:42379) Clinical Imaging & Med Physics,PHILIPS HEALTHCARE,id:14780395    ,4216.8,
Department of Health,Guys and St Thomas NHS Foundation Trust,28/01/2022,(81200) Medical Surgical Supplies & Equipment,(id:42379) Clinical Imaging & Med Physics,GSTT PROCUREMENT CARD,id:14830967 ,1210.8,
Department of Health,Guys and St Thomas NHS Foundation Trust,28/01/2022,(81200) Medical Surgical Supplies & Equipment,(id:42379) Clinical Imaging & Med Physics,TENACORE UK LTD,id:14816753  ,24,
Department of Health,Guys and St Thomas NHS Foundation Trust,14/01/2022,(83400) Office Equipment,(id:42378) Clinical Imaging & Med Physics,NHS SUPPLY CHAIN (MAIDSTONE),id:14721243,13.2,
Department of Health,Guys and St Thomas NHS Foundation Trust,07/01/2022,(81250) Medical Surgical Supplies & Equipment,(id:1348419) Clinical Imaging & Med Physics,AQUILANT LTD,id:14736414   ,2160,
Department of Health,Guys and St Thomas NHS Foundation Trust,07/01/2022,(81200) Medical Surgical Supplies & Equipment,(id:1348419) Clinical Imaging & Med Physics,AIR LIQUIDE LTD,id:14725941,1986.42,
Department of Health,Guys and St Thomas NHS Foundation Trust,28/01/2022,(81200) Medical Surgical Supplies & Equipment,(id:1348419) Clinical Imaging & Med Physics,NHS SUPPLY CHAIN (MAIDSTONE),id:14776441  ,4958.7,
Department of Health,Guys and St Thomas NHS Foundation Trust,28/01/2022,(81200) Medical Surgical Supplies & Equipment,(id:1348419) Clinical Imaging & Med Physics,NHS SUPPLY CHAIN (MAIDSTONE),id:14742162  ,1731.41,
Department of Health,Guys and St Thomas NHS Foundation Trust,28/01/2022,(81200) Medical Surgical Supplies & Equipment,(id:1348419) Clinical Imaging & Med Physics,BOSTON SCIENTIFIC LTD,id:14768025    ,1320,
Department of Health,Guys and St Thomas NHS Foundation Trust,28/01/2022,(81200) Medical Surgical Supplies & Equipment,(id:1348419) Clinical Imaging & Med Physics,BENTLEY INNOMED GMBH,id:14587314,1020,
Department of Health,Guys and St Thomas NHS Foundation Trust,28/01/2022,(81230) Medical Surgical Supplies & Equipment,(id:1348419) Clinical Imaging & Med Physics,NHS SUPPLY CHAIN (MAIDSTONE),id:14742162  ,554.4,
Department of Health,Guys and St Thomas NHS Foundation Trust,14/01/2022,(83400) Office Equipment,(id:1348419) Clinical Imaging & Med Physics,NHS SUPPLY CHAIN (MAIDSTONE),id:14721243   ,639.89,
Department of Health,Guys and St Thomas NHS Foundation Trust,14/01/2022,(82800) Bedding & Linen,(id:1348419) Clinical Imaging & Med Physics,NHS SUPPLY CHAIN (MAIDSTONE),id:14721243    ,646.13,
Department of Health,Guys and St Thomas NHS Foundation Trust,14/01/2022,(81275) Medical Surgical Supplies & Equipment,(id:1348419) Clinical Imaging & Med Physics,NHS SUPPLY CHAIN (MAIDSTONE),id:14751854  ,72.3,
Department of Health,Guys and St Thomas NHS Foundation Trust,14/01/2022,(83400) Office Equipment,(id:42255) Integrated Local Services,NHS SUPPLY CHAIN (MAIDSTONE),id:14780246,17.06,
Department of Health,Guys and St Thomas NHS Foundation Trust,28/01/2022,(83500) Furniture & Fittings,(id:590595) Integrated Local Services,NHS SUPPLY CHAIN (MAIDSTONE),id:14742162,1125.6,
Department of Health,Guys and St Thomas NHS Foundation Trust,21/01/2022,(83410) Office Equipment,(id:590584) Integrated Local Services,RICOH UK LTD,id:14797336,489.08,
Department of Health,Guys and St Thomas NHS Foundation Trust,14/01/2022,(82000) Provisions & Kitchens,(id:590469) Integrated Local Services,NHS SUPPLY CHAIN (MAIDSTONE),id:14721243    ,35.92,
Department of Health,Guys and St Thomas NHS Foundation Trust,14/01/2022,(83400) Office Equipment,(id:590469) Integrated Local Services,NHS SUPPLY CHAIN (MAIDSTONE),id:14751854    ,3.47,
Department of Health,Guys and St Thomas NHS Foundation Trust,07/01/2022,(83880) Building & Engineering,(id:590427) Integrated Local Services,OAKLAND SECURITY SYSTEMS LIMITED,id:14754074    ,4373,
Department of Health,Guys and St Thomas NHS Foundation Trust,28/01/2022,(83400) Office Equipment,(id:590579) Integrated Local Services,NHS SUPPLY CHAIN (MAIDSTONE),id:14742162    ,3.64,
Department of Health,Guys and St Thomas NHS Foundation Trust,14/01/2022,(83400) Office Equipment,(id:590563) Integrated Local Services,NHS SUPPLY CHAIN (MAIDSTONE),id:14780246    ,23.51,
Department of Health,Guys and St Thomas NHS Foundation Trust,07/01/2022,(50562) Qualified Nursing Staff,(id:1885424) Integrated Local Services,MSI GROUP LTD,id:14769272 ,771.6,
Department of Health,Guys and St Thomas NHS Foundation Trust,21/01/2022,(50562) Qualified Nursing Staff,(id:1885424) Integrated Local Services,MSI GROUP LTD,id:14800631 ,749.84,
Department of Health,Guys and St Thomas NHS Foundation Trust,14/01/2022,(81200) Medical Surgical Supplies & Equipment,(id:590492) Integrated Local Services,NHS SUPPLY CHAIN (MAIDSTONE),id:14721243   ,176.4,
Department of Health,Guys and St Thomas NHS Foundation Trust,28/01/2022,(81225) Medical Surgical Supplies & Equipment,(id:590492) Integrated Local Services,NHS SUPPLY CHAIN (MAIDSTONE),id:14742162   ,100.01,
Department of Health,Guys and St Thomas NHS Foundation Trust,21/01/2022,(83400) Office Equipment,(id:590522) Integrated Local Services,NHS SUPPLY CHAIN (MAIDSTONE),id:14760334    ,48.58,
Department of Health,Guys and St Thomas NHS Foundation Trust,14/01/2022,(81100) Dressings,(id:590522) Integrated Local Services,NHS SUPPLY CHAIN (MAIDSTONE),id:14780246 ,3.06,
Department of Health,Guys and St Thomas NHS Foundation Trust,14/01/2022,(81200) Medical Surgical Supplies & Equipment,(id:590521) Integrated Local Services,NHS SUPPLY CHAIN (MAIDSTONE),id:14721243   ,393.39,
Department of Health,Guys and St Thomas NHS Foundation Trust,28/01/2022,(81200) Medical Surgical Supplies & Equipment,(id:590521) Integrated Local Services,NHS SUPPLY CHAIN (MAIDSTONE),id:14776441   ,81.19,
Department of Health,Guys and St Thomas NHS Foundation Trust,14/01/2022,(82000) Provisions & Kitchens,(id:590520) Integrated Local Services,NHS SUPPLY CHAIN (MAIDSTONE),id:14721243    ,3.21,
Department of Health,Guys and St Thomas NHS Foundation Trust,14/01/2022,(81200) Medical Surgical Supplies & Equipment,(id:590473) Integrated Local Services,NHS SUPPLY CHAIN (MAIDSTONE),id:14751854   ,481.03,
Department of Health,Guys and St Thomas NHS Foundation Trust,28/01/2022,(81700) Lab Equipment Purchase,(id:590473) Integrated Local Services,NHS SUPPLY CHAIN (MAIDSTONE),id:14742162   ,290.21,
Department of Health,Guys and St Thomas NHS Foundation Trust,14/01/2022,(82000) Provisions & Kitchens,(id:590473) Integrated Local Services,NHS SUPPLY CHAIN (MAIDSTONE),id:14751854    ,9.66,
Department of Health,Guys and St Thomas NHS Foundation Trust,14/01/2022,(50552) Qualified Nursing Staff,(id:590471) Integrated Local Services,NURSING 2000 LTD,id:14788773    ,723.18,
Department of Health,Guys and St Thomas NHS Foundation Trust,14/01/2022,(81700) Lab Equipment Purchase,(id:590471) Integrated Local Services,NHS SUPPLY CHAIN (MAIDSTONE),id:14751854   ,155.13,
Department of Health,Guys and St Thomas NHS Foundation Trust,28/01/2022,(82600) Uniforms & Clothing,(id:590470) Integrated Local Services,NHS SUPPLY CHAIN (MAIDSTONE),id:14742162 ,26.88,
Department of Health,Guys and St Thomas NHS Foundation Trust,28/01/2022,(81100) Dressings,(id:590470) Integrated Local Services,NHS SUPPLY CHAIN (MAIDSTONE),id:14742162 ,544.11,
Department of Health,Guys and St Thomas NHS Foundation Trust,14/01/2022,(81200) Medical Surgical Supplies & Equipment,(id:590470) Integrated Local Services,NHS SUPPLY CHAIN (MAIDSTONE),id:14751854   ,159.62,
Department of Health,Guys and St Thomas NHS Foundation Trust,14/01/2022,(82800) Bedding & Linen,(id:590470) Integrated Local Services,NHS SUPPLY CHAIN (MAIDSTONE),id:14751854,131.91,
Department of Health,Guys and St Thomas NHS Foundation Trust,14/01/2022,(81700) Lab Equipment Purchase,(id:590535) Integrated Local Services,NHS SUPPLY CHAIN (MAIDSTONE),id:14721243   ,24.17,
Department of Health,Guys and St Thomas NHS Foundation Trust,28/01/2022,(81700) Lab Equipment Purchase,(id:590535) Integrated Local Services,NHS SUPPLY CHAIN (MAIDSTONE),id:14742162   ,24.17,
Department of Health,Guys and St Thomas NHS Foundation Trust,28/01/2022,(82800) Bedding & Linen,(id:590535) Integrated Local Services,NHS SUPPLY CHAIN (MAIDSTONE),id:14742162,2.3,
Department of Health,Guys and St Thomas NHS Foundation Trust,21/01/2022,(86300) Healthcare from non-NHS bodies,(id:590477) Integrated Local Services,NHS SUPPLY CHAIN (MAIDSTONE),id:14801340,6247.22,
Department of Health,Guys and St Thomas NHS Foundation Trust,21/01/2022,(86300) Healthcare from non-NHS bodies,(id:590477) Integrated Local Services,NHS SUPPLY CHAIN (MAIDSTONE),id:14801343,8468.93,
Department of Health,Guys and St Thomas NHS Foundation Trust,21/01/2022,(86300) Healthcare from non-NHS bodies,(id:590477) Integrated Local Services,NHS SUPPLY CHAIN (MAIDSTONE),id:14801342,11464.64,
Department of Health,Guys and St Thomas NHS Foundation Trust,21/01/2022,(50562) Qualified Nursing Staff,(id:590463) Integrated Local Services,COYLE PERSONNEL PLC,id:14800584 ,1750,
Department of Health,Guys and St Thomas NHS Foundation Trust,28/01/2022,(81255) Medical Surgical Supplies & Equipment,(id:590463) Integrated Local Services,NHS SUPPLY CHAIN (MAIDSTONE),id:14742162   ,5.88,
Department of Health,Guys and St Thomas NHS Foundation Trust,28/01/2022,(81200) Medical Surgical Supplies & Equipment,(id:590527) Integrated Local Services,NHS SUPPLY CHAIN (MAIDSTONE),id:14776441   ,67.2,
Department of Health,Guys and St Thomas NHS Foundation Trust,14/01/2022,(50202) Consultants,(id:590527) Integrated Local Services,HETHERINGTON GROUP PRACTICE,id:14779618,1860,
Department of Health,Guys and St Thomas NHS Foundation Trust,21/01/2022,(81200) Medical Surgical Supplies & Equipment,(id:903421) Integrated Local Services,NHS SUPPLY CHAIN (MAIDSTONE),id:14760334   ,586.33,
Department of Health,Guys and St Thomas NHS Foundation Trust,28/01/2022,(81200) Medical Surgical Supplies & Equipment,(id:903421) Integrated Local Services,NHS SUPPLY CHAIN (MAIDSTONE),id:14776441   ,133.19,
Department of Health,Guys and St Thomas NHS Foundation Trust,14/01/2022,(50204) Consultants,(id:903421) Integrated Local Services,KING'S COLLEGE HOSPITAL NHS FOUNDATION TRUST,id:14778698   ,4128.05,
Department of Health,Guys and St Thomas NHS Foundation Trust,21/01/2022,(50532) Unqualified Nursing Staff,(id:903421) Integrated Local Services,MSI GROUP LTD,id:14800423,423.28,
Department of Health,Guys and St Thomas NHS Foundation Trust,28/01/2022,(81100) Dressings,(id:5205419) Integrated Local Services,NHS SUPPLY CHAIN (MAIDSTONE),id:14742162,267.84,
Department of Health,Guys and St Thomas NHS Foundation Trust,21/01/2022,(81200) Medical Surgical Supplies & Equipment,(id:5205419) Integrated Local Services,BARD LTD,id:14588494  ,765,
Department of Health,Guys and St Thomas NHS Foundation Trust,14/01/2022,(81230) Medical Surgical Supplies & Equipment,(id:5205419) Integrated Local Services,NHS SUPPLY CHAIN (MAIDSTONE),id:14780246  ,241.56,
Department of Health,Guys and St Thomas NHS Foundation Trust,07/01/2022,(50552) Qualified Nursing Staff,(id:4609420) Integrated Local Services,NURSING 2000 LTD,id:14726937   ,594.22,
Department of Health,Guys and St Thomas NHS Foundation Trust,14/01/2022,(50552) Qualified Nursing Staff,(id:4263423) Integrated Local Services,NURSING 2000 LTD,id:14788690   ,1106.81,
Department of Health,Guys and St Thomas NHS Foundation Trust,14/01/2022,(89270) Establishment,(id:4464419) Integrated Care Management,HJ WHEELER ASSOCIATES LTD,id:14667114   ,3600,
Department of Health,Guys and St Thomas NHS Foundation Trust,21/01/2022,(83500) Furniture & Fittings,(id:4273419) Integrated Care Management,ETC VENUES LIMITED,id:14708437   ,750,
Department of Health,Guys and St Thomas NHS Foundation Trust,07/01/2022,(50562) Qualified Nursing Staff,(id:42518) Evelina Womens Services,MSI GROUP LTD,id:14769088,523.16,
Department of Health,Guys and St Thomas NHS Foundation Trust,14/01/2022,(81200) Medical Surgical Supplies & Equipment,(id:42518) Evelina Womens Services,NHS SUPPLY CHAIN (MAIDSTONE),id:14721243 ,145.5,
Department of Health,Guys and St Thomas NHS Foundation Trust,14/01/2022,(82000) Provisions & Kitchens,(id:42517) Evelina Womens Services,NHS SUPPLY CHAIN (MAIDSTONE),id:14721243  ,150.9,
Department of Health,Guys and St Thomas NHS Foundation Trust,28/01/2022,(82000) Provisions & Kitchens,(id:42517) Evelina Womens Services,NHS SUPPLY CHAIN (MAIDSTONE),id:14742162  ,65.98,
Department of Health,Guys and St Thomas NHS Foundation Trust,14/01/2022,(82800) Bedding & Linen,(id:42517) Evelina Womens Services,NHS SUPPLY CHAIN (MAIDSTONE),id:14780246   ,20.52,
Department of Health,Guys and St Thomas NHS Foundation Trust,14/01/2022,(81200) Medical Surgical Supplies & Equipment,(id:42517) Evelina Womens Services,MERMAID MEDICAL LIMITED,id:14776593 ,7698,
Department of Health,Guys and St Thomas NHS Foundation Trust,14/01/2022,(81200) Medical Surgical Supplies & Equipment,(id:42517) Evelina Womens Services,NHS SUPPLY CHAIN (MAIDSTONE),id:14780246 ,673.34,
Department of Health,Guys and St Thomas NHS Foundation Trust,21/01/2022,(81200) Medical Surgical Supplies & Equipment,(id:42517) Evelina Womens Services,IVF SYNERGY,id:14793419   ,8574,
Department of Health,Guys and St Thomas NHS Foundation Trust,28/01/2022,(81200) Medical Surgical Supplies & Equipment,(id:42517) Evelina Womens Services,FUJIFILM UK LTD,id:14824074    ,576,
Department of Health,Guys and St Thomas NHS Foundation Trust,28/01/2022,(83350) Premises Services,(id:42514) Evelina Womens Services,ASSIST SECURITY LIMITED,id:14823880 ,1800,
Department of Health,Guys and St Thomas NHS Foundation Trust,21/01/2022,(89000) Other - Training courses and conferences,(id:42514) Evelina Womens Services,HEALTHCARE CONFERENCES UK LTD,id:14689214  ,1752,
Department of Health,Guys and St Thomas NHS Foundation Trust,14/01/2022,(81200) Medical Surgical Supplies & Equipment,(id:42513) Evelina Womens Services,NHS SUPPLY CHAIN (MAIDSTONE),id:14721243 ,558.26,
Department of Health,Guys and St Thomas NHS Foundation Trust,14/01/2022,(81200) Medical Surgical Supplies & Equipment,(id:42513) Evelina Womens Services,NHS SUPPLY CHAIN (MAIDSTONE),id:14780246 ,465.25,
Department of Health,Guys and St Thomas NHS Foundation Trust,28/01/2022,(81255) Medical Surgical Supplies & Equipment,(id:42513) Evelina Womens Services,NHS SUPPLY CHAIN (MAIDSTONE),id:14776441 ,13.2,
Department of Health,Guys and St Thomas NHS Foundation Trust,28/01/2022,(81700) Lab Equipment Purchase,(id:42513) Evelina Womens Services,NHS SUPPLY CHAIN (MAIDSTONE),id:14742162 ,3.1,
Department of Health,Guys and St Thomas NHS Foundation Trust,14/01/2022,(81275) Medical Surgical Supplies & Equipment,(id:42513) Evelina Womens Services,NHS SUPPLY CHAIN (MAIDSTONE),id:14780246 ,14.46,
Department of Health,Guys and St Thomas NHS Foundation Trust,14/01/2022,(82700) Uniforms & Clothing,(id:42513) Evelina Womens Services,NHS SUPPLY CHAIN (MAIDSTONE),id:14751854    ,53.52,
Department of Health,Guys and St Thomas NHS Foundation Trust,28/01/2022,(82000) Provisions & Kitchens,(id:42513) Evelina Womens Services,NHS SUPPLY CHAIN (MAIDSTONE),id:14742162  ,378.24,
Department of Health,Guys and St Thomas NHS Foundation Trust,28/01/2022,(82000) Provisions & Kitchens,(id:42513) Evelina Womens Services,NHS SUPPLY CHAIN (MAIDSTONE),id:14776441  ,136.93,
Department of Health,Guys and St Thomas NHS Foundation Trust,28/01/2022,(83400) Office Equipment,(id:42509) Evelina Womens Services,NHS SUPPLY CHAIN (MAIDSTONE),id:14742162  ,22.49,
Department of Health,Guys and St Thomas NHS Foundation Trust,28/01/2022,(81100) Dressings,(id:42509) Evelina Womens Services,NHS SUPPLY CHAIN (MAIDSTONE),id:14776441    ,129.6,
Department of Health,Guys and St Thomas NHS Foundation Trust,07/01/2022,(81200) Medical Surgical Supplies & Equipment,(id:42509) Evelina Womens Services,JOHNSON & JOHNSON MEDICAL LTD,id:14728201,4342.21,
Department of Health,Guys and St Thomas NHS Foundation Trust,21/01/2022,(81200) Medical Surgical Supplies & Equipment,(id:42509) Evelina Womens Services,NHS SUPPLY CHAIN (MAIDSTONE),id:14760334 ,3.4,
Department of Health,Guys and St Thomas NHS Foundation Trust,28/01/2022,(81200) Medical Surgical Supplies & Equipment,(id:42509) Evelina Womens Services,JOHNSON & JOHNSON MEDICAL LTD,id:14768073,2549.74,
Department of Health,Guys and St Thomas NHS Foundation Trust,21/01/2022,(83400) Office Equipment,(id:42506) Evelina Womens Services,NHS SUPPLY CHAIN (MAIDSTONE),id:14760334  ,5.86,
Department of Health,Guys and St Thomas NHS Foundation Trust,28/01/2022,(81700) Lab Equipment Purchase,(id:42506) Evelina Womens Services,NHS SUPPLY CHAIN (MAIDSTONE),id:14742162 ,19.32,
Department of Health,Guys and St Thomas NHS Foundation Trust,14/01/2022,(82000) Provisions & Kitchens,(id:42506) Evelina Womens Services,NHS SUPPLY CHAIN (MAIDSTONE),id:14721243  ,3.54,
Department of Health,Guys and St Thomas NHS Foundation Trust,14/01/2022,(82000) Provisions & Kitchens,(id:42506) Evelina Womens Services,NHS SUPPLY CHAIN (MAIDSTONE),id:14751854  ,18.82,
Department of Health,Guys and St Thomas NHS Foundation Trust,28/01/2022,(81200) Medical Surgical Supplies & Equipment,(id:42486) Evelina Womens Services,NHS SUPPLY CHAIN (MAIDSTONE),id:14742162 ,735.41,
Department of Health,Guys and St Thomas NHS Foundation Trust,14/01/2022,(81550) X Ray Equipment Purchase,(id:42486) Evelina Womens Services,NHS SUPPLY CHAIN (MAIDSTONE),id:14721243    ,33,
Department of Health,Guys and St Thomas NHS Foundation Trust,14/01/2022,(81225) Medical Surgical Supplies & Equipment,(id:42486) Evelina Womens Services,NHS SUPPLY CHAIN (MAIDSTONE),id:14751854 ,30.37,
Department of Health,Guys and St Thomas NHS Foundation Trust,28/01/2022,(81275) Medical Surgical Supplies & Equipment,(id:42486) Evelina Womens Services,THERMO FISHER DIAGNOSTICS LTD,id:14780637,7405.4,
Department of Health,Guys and St Thomas NHS Foundation Trust,21/01/2022,(89640) Non-Healthcare from NHS Trusts,(id:42486) Evelina Womens Services,BARKING HAVERING AND REDBRIDGE UNIVERSITY HOSPITALS NHS TRUST,id:14506495,985.5,
Department of Health,Guys and St Thomas NHS Foundation Trust,28/01/2022,(83400) Office Equipment,(id:42488) Evelina Womens Services,NHS SUPPLY CHAIN (MAIDSTONE),id:14742162  ,40.73,
Department of Health,Guys and St Thomas NHS Foundation Trust,28/01/2022,(81100) Dressings,(id:42488) Evelina Womens Services,NHS SUPPLY CHAIN (MAIDSTONE),id:14776441    ,1.12,
Department of Health,Guys and St Thomas NHS Foundation Trust,14/01/2022,(82800) Bedding & Linen,(id:42488) Evelina Womens Services,NHS SUPPLY CHAIN (MAIDSTONE),id:14721243   ,34.17,
Department of Health,Guys and St Thomas NHS Foundation Trust,28/01/2022,(81700) Lab Equipment Purchase,(id:42488) Evelina Womens Services,NHS SUPPLY CHAIN (MAIDSTONE),id:14742162 ,82.16,
Department of Health,Guys and St Thomas NHS Foundation Trust,21/01/2022,(83500) Furniture & Fittings,(id:42497) Evelina Womens Services,TECHNIBLINDS LTD,id:14799545,500.4,
Department of Health,Guys and St Thomas NHS Foundation Trust,28/01/2022,(83500) Furniture & Fittings,(id:42497) Evelina Womens Services,TECHNIBLINDS LTD,id:14816701,834,
Department of Health,Guys and St Thomas NHS Foundation Trust,14/01/2022,(50562) Qualified Nursing Staff,(id:42497) Evelina Womens Services,CARE PROVIDERS HEALTHCARE,id:14788702   ,491.11,
Department of Health,Guys and St Thomas NHS Foundation Trust,14/01/2022,(82800) Bedding & Linen,(id:42497) Evelina Womens Services,NHS SUPPLY CHAIN (MAIDSTONE),id:14721243   ,51.6,
Department of Health,Guys and St Thomas NHS Foundation Trust,28/01/2022,(82800) Bedding & Linen,(id:42496) Evelina Womens Services,NHS SUPPLY CHAIN (MAIDSTONE),id:14742162   ,17.7,
Department of Health,Guys and St Thomas NHS Foundation Trust,28/01/2022,(81275) Medical Surgical Supplies & Equipment,(id:42496) Evelina Womens Services,NHS SUPPLY CHAIN (MAIDSTONE),id:14742162 ,10.68,
Department of Health,Guys and St Thomas NHS Foundation Trust,21/01/2022,(81700) Lab Equipment Purchase,(id:42496) Evelina Womens Services,NHS SUPPLY CHAIN (MAIDSTONE),id:14760334 ,37.98,
Department of Health,Guys and St Thomas NHS Foundation Trust,14/01/2022,(82600) Uniforms & Clothing,(id:42493) Evelina Womens Services,NHS SUPPLY CHAIN (MAIDSTONE),id:14780246    ,4.21,
Department of Health,Guys and St Thomas NHS Foundation Trust,14/01/2022,(82600) Uniforms & Clothing,(id:42493) Evelina Womens Services,NHS SUPPLY CHAIN (MAIDSTONE),id:14751854    ,4.21,
Department of Health,Guys and St Thomas NHS Foundation Trust,14/01/2022,(81100) Dressings,(id:42493) Evelina Womens Services,NHS SUPPLY CHAIN (MAIDSTONE),id:14721243    ,67,
Department of Health,Guys and St Thomas NHS Foundation Trust,14/01/2022,(81100) Dressings,(id:42493) Evelina Womens Services,NHS SUPPLY CHAIN (MAIDSTONE),id:14780246    ,28.82,
Department of Health,Guys and St Thomas NHS Foundation Trust,28/01/2022,(81100) Dressings,(id:42493) Evelina Womens Services,NHS SUPPLY CHAIN (MAIDSTONE),id:14742162    ,88.13,
Department of Health,Guys and St Thomas NHS Foundation Trust,14/01/2022,(82700) Uniforms & Clothing,(id:42492) Evelina Womens Services,NHS SUPPLY CHAIN (MAIDSTONE),id:14751854    ,275.72,
Department of Health,Guys and St Thomas NHS Foundation Trust,28/01/2022,(81100) Dressings,(id:42492) Evelina Womens Services,NHS SUPPLY CHAIN (MAIDSTONE),id:14776441    ,922.98,
Department of Health,Guys and St Thomas NHS Foundation Trust,14/01/2022,(81225) Medical Surgical Supplies & Equipment,(id:42492) Evelina Womens Services,NHS SUPPLY CHAIN (MAIDSTONE),id:14751854 ,105.94,
Department of Health,Guys and St Thomas NHS Foundation Trust,14/01/2022,(81225) Medical Surgical Supplies & Equipment,(id:42492) Evelina Womens Services,NHS SUPPLY CHAIN (MAIDSTONE),id:14721243 ,30.02,
Department of Health,Guys and St Thomas NHS Foundation Trust,14/01/2022,(81275) Medical Surgical Supplies & Equipment,(id:42492) Evelina Womens Services,NHS SUPPLY CHAIN (MAIDSTONE),id:14721243 ,5.34,
Department of Health,Guys and St Thomas NHS Foundation Trust,14/01/2022,(81700) Lab Equipment Purchase,(id:42492) Evelina Womens Services,NHS SUPPLY CHAIN (MAIDSTONE),id:14721243 ,11.59,
Department of Health,Guys and St Thomas NHS Foundation Trust,14/01/2022,(82000) Provisions & Kitchens,(id:42491) Evelina Womens Services,NHS SUPPLY CHAIN (MAIDSTONE),id:14751854  ,250.47,
Department of Health,Guys and St Thomas NHS Foundation Trust,14/01/2022,(82800) Bedding & Linen,(id:42491) Evelina Womens Services,NHS SUPPLY CHAIN (MAIDSTONE),id:14721243   ,209.18,
Department of Health,Guys and St Thomas NHS Foundation Trust,14/01/2022,(81275) Medical Surgical Supplies & Equipment,(id:42491) Evelina Womens Services,NHS SUPPLY CHAIN (MAIDSTONE),id:14721243 ,105.48,
Department of Health,Guys and St Thomas NHS Foundation Trust,28/01/2022,(81275) Medical Surgical Supplies & Equipment,(id:42491) Evelina Womens Services,NHS SUPPLY CHAIN (MAIDSTONE),id:14776441 ,160.22,
Department of Health,Guys and St Thomas NHS Foundation Trust,14/01/2022,(81100) Dressings,(id:42491) Evelina Womens Services,NHS SUPPLY CHAIN (MAIDSTONE),id:14751854    ,153.64,
Department of Health,Guys and St Thomas NHS Foundation Trust,14/01/2022,(82700) Uniforms & Clothing,(id:42348) Evelina Central,NHS SUPPLY CHAIN (MAIDSTONE),id:14751854  ,165.56,
Department of Health,Guys and St Thomas NHS Foundation Trust,14/01/2022,(82000) Provisions & Kitchens,(id:42348) Evelina Central,NHS SUPPLY CHAIN (MAIDSTONE),id:14751854,84.9,
Department of Health,Guys and St Thomas NHS Foundation Trust,21/01/2022,(83500) Furniture & Fittings,(id:42348) Evelina Central,TECHNIBLINDS LTD,id:14794055   ,500.4,
Department of Health,Guys and St Thomas NHS Foundation Trust,14/01/2022,(82800) Bedding & Linen,(id:42348) Evelina Central,NHS SUPPLY CHAIN (MAIDSTONE),id:14721243 ,145.8,
Department of Health,Guys and St Thomas NHS Foundation Trust,14/01/2022,(81200) Medical Surgical Supplies & Equipment,(id:42348) Evelina Central,NHS SUPPLY CHAIN (MAIDSTONE),id:14751854    ,1334.24,
Department of Health,Guys and St Thomas NHS Foundation Trust,21/01/2022,(81200) Medical Surgical Supplies & Equipment,(id:42348) Evelina Central,NHS SUPPLY CHAIN (MAIDSTONE),id:14760334    ,1156.87,
Department of Health,Guys and St Thomas NHS Foundation Trust,14/01/2022,(81200) Medical Surgical Supplies & Equipment,(id:42331) Evelina Central,NHS SUPPLY CHAIN (MAIDSTONE),id:14751854    ,546.94,
Department of Health,Guys and St Thomas NHS Foundation Trust,14/01/2022,(81700) Lab Equipment Purchase,(id:42331) Evelina Central,NHS SUPPLY CHAIN (MAIDSTONE),id:14780246    ,49.59,
Department of Health,Guys and St Thomas NHS Foundation Trust,14/01/2022,(81700) Lab Equipment Purchase,(id:42331) Evelina Central,NHS SUPPLY CHAIN (MAIDSTONE),id:14751854    ,10.68,
Department of Health,Guys and St Thomas NHS Foundation Trust,28/01/2022,(81400) Medical Surgical Supplies & Equipment,(id:2965419) Evelina Central,NHS SUPPLY CHAIN (MAIDSTONE),id:14776441  ,135.45,
Department of Health,Guys and St Thomas NHS Foundation Trust,07/01/2022,(82600) Uniforms & Clothing,(id:2709419) Evelina Central,RS COMPONENTS LTD,id:14766394 ,1428.01,
Department of Health,Guys and St Thomas NHS Foundation Trust,07/01/2022,(89595) Non-Healthcare from Foundation Trusts,(id:42316) Evelina Central,KING'S COLLEGE HOSPITAL NHS FOUNDATION TRUST,id:14652342   ,3513.31,
Department of Health,Guys and St Thomas NHS Foundation Trust,21/01/2022,(81225) Medical Surgical Supplies & Equipment,(id:590445) Evelina Community Services,NATUS NICOLET UK LTD ( T/A OTOMETRICS UK),id:14792894    ,6375.84,
Department of Health,Guys and St Thomas NHS Foundation Trust,07/01/2022,(81225) Medical Surgical Supplies & Equipment,(id:590550) Evelina Community Services,VIDA GLOBAL (JAMES LECKEY DESIGN LTD),id:14752194   ,3358.8,
Department of Health,Guys and St Thomas NHS Foundation Trust,21/01/2022,(81225) Medical Surgical Supplies & Equipment,(id:590550) Evelina Community Services,SIMPLE STUFF WORKS CIC,id:14793734   ,1089.6,
Department of Health,Guys and St Thomas NHS Foundation Trust,28/01/2022,(82800) Bedding & Linen,(id:590451) Evelina Community Services,NHS SUPPLY CHAIN (MAIDSTONE),id:14742162    ,80.54,
Department of Health,Guys and St Thomas NHS Foundation Trust,14/01/2022,(82000) Provisions & Kitchens,(id:590451) Evelina Community Services,NHS SUPPLY CHAIN (MAIDSTONE),id:14751854   ,37.48,
Department of Health,Guys and St Thomas NHS Foundation Trust,25/01/2022,(53062) Speech Therapists,(id:590451) Evelina Community Services,PRICEWATERHOUSECOOPERS LLP,id:14812575    ,3307.55,
Department of Health,Guys and St Thomas NHS Foundation Trust,28/01/2022,(82000) Provisions & Kitchens,(id:1831419) Evelina Community Services,NHS SUPPLY CHAIN (MAIDSTONE),id:14742162  ,418.92,
Department of Health,Guys and St Thomas NHS Foundation Trust,28/01/2022,(81200) Medical Surgical Supplies & Equipment,(id:590547) Evelina Community Services,NHS SUPPLY CHAIN (MAIDSTONE),id:14776441  ,228,
Department of Health,Guys and St Thomas NHS Foundation Trust,28/01/2022,(81200) Medical Surgical Supplies & Equipment,(id:590449) Evelina Community Services,FISHER & PAYKEL HEALTHCARE LTD,id:14808594,-872.1,
Department of Health,Guys and St Thomas NHS Foundation Trust,28/01/2022,(83610) IT Costs,(id:590548) Evelina Community Services,BASELINE TECHNOLOGIES LTD,id:14791974    ,10200,
Department of Health,Guys and St Thomas NHS Foundation Trust,28/01/2022,(83400) Office Equipment,(id:590446) Evelina Community Services,NHS SUPPLY CHAIN (MAIDSTONE),id:14742162   ,204.87,
Department of Health,Guys and St Thomas NHS Foundation Trust,21/01/2022,(81200) Medical Surgical Supplies & Equipment,(id:590446) Evelina Community Services,INCOM TELECOMMUNICATIONS,id:14801043 ,7.44,
Department of Health,Guys and St Thomas NHS Foundation Trust,07/01/2022,(84500) Establishment,(id:1210419) Evelina Community Services,HARLOW PRINTING LIMITED,id:14766440,984,
Department of Health,Guys and St Thomas NHS Foundation Trust,28/01/2022,(83400) Office Equipment,(id:590539) Evelina Community Services,NHS SUPPLY CHAIN (MAIDSTONE),id:14742162   ,14.08,
Department of Health,Guys and St Thomas NHS Foundation Trust,28/01/2022,(83400) Office Equipment,(id:590539) Evelina Community Services,NHS SUPPLY CHAIN (MAIDSTONE),id:14776441   ,14.08,
Department of Health,Guys and St Thomas NHS Foundation Trust,14/01/2022,(83500) Furniture & Fittings,(id:590418) Evelina Community Services,NHS SUPPLY CHAIN (MAIDSTONE),id:14780246    ,172.8,
Department of Health,Guys and St Thomas NHS Foundation Trust,28/01/2022,(82000) Provisions & Kitchens,(id:590418) Evelina Community Services,NHS SUPPLY CHAIN (MAIDSTONE),id:14742162   ,77.1,
Department of Health,Guys and St Thomas NHS Foundation Trust,21/01/2022,(89270) Establishment,(id:590416) Evelina Community Services,FLINT BISHOP LLP,id:14776337   ,1782.7,
Department of Health,Guys and St Thomas NHS Foundation Trust,14/01/2022,(50562) Qualified Nursing Staff,(id:590416) Evelina Community Services,ARTHUR RAI MEDICAL SERVICES LTD,id:14788568   ,1053.6,
Department of Health,Guys and St Thomas NHS Foundation Trust,21/01/2022,(50562) Qualified Nursing Staff,(id:590416) Evelina Community Services,ARTHUR RAI MEDICAL SERVICES LTD,id:14800417   ,1053.6,
Department of Health,Guys and St Thomas NHS Foundation Trust,21/01/2022,(82800) Bedding & Linen,(id:590422) Evelina Community Services,NHS SUPPLY CHAIN (MAIDSTONE),id:14760334    ,107.82,
Department of Health,Guys and St Thomas NHS Foundation Trust,28/01/2022,(81200) Medical Surgical Supplies & Equipment,(id:2356419) Evelina Medicine & Neonatology,NHS SUPPLY CHAIN (MAIDSTONE),id:14742162  ,1529.25,
Department of Health,Guys and St Thomas NHS Foundation Trust,14/01/2022,(83400) Office Equipment,(id:2356419) Evelina Medicine & Neonatology,NHS SUPPLY CHAIN (MAIDSTONE),id:14780246   ,15.23,
Department of Health,Guys and St Thomas NHS Foundation Trust,28/01/2022,(83400) Office Equipment,(id:2499420) Evelina Medicine & Neonatology,BAXTER HEALTHCARE LTD,id:14829681,743.76,
Department of Health,Guys and St Thomas NHS Foundation Trust,14/01/2022,(81200) Medical Surgical Supplies & Equipment,(id:42350) Evelina Medicine & Neonatology,NHS SUPPLY CHAIN (MAIDSTONE),id:14780246    ,2128.64,
Department of Health,Guys and St Thomas NHS Foundation Trust,28/01/2022,(80150) Drug Costs,(id:42350) Evelina Medicine & Neonatology,NHS SUPPLY CHAIN (MAIDSTONE),id:14742162 ,121.3,
Department of Health,Guys and St Thomas NHS Foundation Trust,28/01/2022,(80150) Drug Costs,(id:42350) Evelina Medicine & Neonatology,NHS SUPPLY CHAIN (MAIDSTONE),id:14776441 ,111.6,
Department of Health,Guys and St Thomas NHS Foundation Trust,21/01/2022,(82000) Provisions & Kitchens,(id:42350) Evelina Medicine & Neonatology,TALAR MADE ORTHOTICS LTD,id:14797783    ,391.66,
Department of Health,Guys and St Thomas NHS Foundation Trust,14/01/2022,(81230) Medical Surgical Supplies & Equipment,(id:42349) Evelina Medicine & Neonatology,NHS SUPPLY CHAIN (MAIDSTONE),id:14721243    ,25.26,
Department of Health,Guys and St Thomas NHS Foundation Trust,13/01/2022,(81700) Lab Equipment Purchase,(id:42336) Evelina Medicine & Neonatology,AMC ACADEMISCH MEDISCH CENTRUM,id:14783057  ,795.18,
Department of Health,Guys and St Thomas NHS Foundation Trust,28/01/2022,(82000) Provisions & Kitchens,(id:42335) Evelina Medicine & Neonatology,GSTT PROCUREMENT CARD,id:14830967  ,17.99,
Department of Health,Guys and St Thomas NHS Foundation Trust,21/01/2022,(84600) Establishment,(id:42335) Evelina Medicine & Neonatology,CLARITY TRAVEL MANAGEMENT,id:14797434 ,60.9,
Department of Health,Guys and St Thomas NHS Foundation Trust,21/01/2022,(84600) Establishment,(id:42335) Evelina Medicine & Neonatology,CLARITY TRAVEL MANAGEMENT,id:14797414 ,95.04,
Department of Health,Guys and St Thomas NHS Foundation Trust,14/01/2022,(82800) Bedding & Linen,(id:42327) Evelina Medicine & Neonatology,NHS SUPPLY CHAIN (MAIDSTONE),id:14751854 ,161.5,
Department of Health,Guys and St Thomas NHS Foundation Trust,21/01/2022,(82800) Bedding & Linen,(id:42327) Evelina Medicine & Neonatology,NHS SUPPLY CHAIN (MAIDSTONE),id:14760334 ,149.13,
Department of Health,Guys and St Thomas NHS Foundation Trust,21/01/2022,(50200) Consultants,(id:42327) Evelina Medicine & Neonatology,KINGS COLLEGE LONDON:03529700,id:14800099    ,8261.4,
Department of Health,Guys and St Thomas NHS Foundation Trust,14/01/2022,(81200) Medical Surgical Supplies & Equipment,(id:42327) Evelina Medicine & Neonatology,NHS SUPPLY CHAIN (MAIDSTONE),id:14721243    ,15325.97,
Department of Health,Guys and St Thomas NHS Foundation Trust,21/01/2022,(81200) Medical Surgical Supplies & Equipment,(id:42327) Evelina Medicine & Neonatology,VYGON (UK) LTD,id:14750210   ,1533.6,
Department of Health,Guys and St Thomas NHS Foundation Trust,21/01/2022,(81200) Medical Surgical Supplies & Equipment,(id:42327) Evelina Medicine & Neonatology,AQUILANT LTD,id:14776969,752.35,
Department of Health,Guys and St Thomas NHS Foundation Trust,21/01/2022,(50203) Consultants,(id:42327) Evelina Medicine & Neonatology,KINGS COLLEGE LONDON:03529700,id:14800114    ,7330.61,
Department of Health,Guys and St Thomas NHS Foundation Trust,28/01/2022,(83400) Office Equipment,(id:42327) Evelina Medicine & Neonatology,NHS SUPPLY CHAIN (MAIDSTONE),id:14742162,283.44,
Department of Health,Guys and St Thomas NHS Foundation Trust,07/01/2022,(81200) Medical Surgical Supplies & Equipment,(id:1196420) Evelina Medicine & Neonatology,DEXCOM INTERNATIONAL LTD,id:14711014 ,1273.5,
Department of Health,Guys and St Thomas NHS Foundation Trust,14/01/2022,(81200) Medical Surgical Supplies & Equipment,(id:1196420) Evelina Medicine & Neonatology,DEXCOM INTERNATIONAL LTD,id:14787950 ,600,
Department of Health,Guys and St Thomas NHS Foundation Trust,14/01/2022,(81200) Medical Surgical Supplies & Equipment,(id:1196420) Evelina Medicine & Neonatology,DEXCOM INTERNATIONAL LTD,id:14787957 ,600,
Department of Health,Guys and St Thomas NHS Foundation Trust,14/01/2022,(81700) Lab Equipment Purchase,(id:3736419) Evelina Medicine & Neonatology,NHS SUPPLY CHAIN (MAIDSTONE),id:14721243  ,1017.07,
Department of Health,Guys and St Thomas NHS Foundation Trust,28/01/2022,(83400) Office Equipment,(id:2496419) Evelina Medicine & Neonatology,NHS SUPPLY CHAIN (MAIDSTONE),id:14776441   ,249.08,
Department of Health,Guys and St Thomas NHS Foundation Trust,28/01/2022,(83400) Office Equipment,(id:2496419) Evelina Medicine & Neonatology,NHS SUPPLY CHAIN (MAIDSTONE),id:14742162   ,305.96,
Department of Health,Guys and St Thomas NHS Foundation Trust,28/01/2022,(82800) Bedding & Linen,(id:2496419) Evelina Medicine & Neonatology,NHS SUPPLY CHAIN (MAIDSTONE),id:14776441    ,46.83,
Department of Health,Guys and St Thomas NHS Foundation Trust,14/01/2022,(82000) Provisions & Kitchens,(id:2496419) Evelina Medicine & Neonatology,NHS SUPPLY CHAIN (MAIDSTONE),id:14751854   ,199.82,
Department of Health,Guys and St Thomas NHS Foundation Trust,14/01/2022,(82000) Provisions & Kitchens,(id:2496419) Evelina Medicine & Neonatology,NHS SUPPLY CHAIN (MAIDSTONE),id:14721243   ,24.88,
Department of Health,Guys and St Thomas NHS Foundation Trust,28/01/2022,(82700) Uniforms & Clothing,(id:2496419) Evelina Medicine & Neonatology,NHS SUPPLY CHAIN (MAIDSTONE),id:14742162,14.99,
Department of Health,Guys and St Thomas NHS Foundation Trust,14/01/2022,(50552) Qualified Nursing Staff,(id:41874) Evelina Medicine & Neonatology,CONTINENTAL NURSE LTD,id:14788084,715.94,
Department of Health,Guys and St Thomas NHS Foundation Trust,21/01/2022,(50552) Qualified Nursing Staff,(id:41874) Evelina Medicine & Neonatology,HAYS HEALTHCARE LTD,id:14800764  ,417.84,
Department of Health,Guys and St Thomas NHS Foundation Trust,14/01/2022,(81200) Medical Surgical Supplies & Equipment,(id:41874) Evelina Medicine & Neonatology,NHS SUPPLY CHAIN (MAIDSTONE),id:14780246    ,140.43,
Department of Health,Guys and St Thomas NHS Foundation Trust,21/01/2022,(81100) Dressings,(id:41874) Evelina Medicine & Neonatology,NHS SUPPLY CHAIN (MAIDSTONE),id:14760334  ,9.74,
Department of Health,Guys and St Thomas NHS Foundation Trust,21/01/2022,(84500) Establishment,(id:41874) Evelina Medicine & Neonatology,ROCHE DIAGNOSTICS LTD,id:14795260,10201.54,
Department of Health,Guys and St Thomas NHS Foundation Trust,14/01/2022,(81200) Medical Surgical Supplies & Equipment,(id:2495419) Evelina Medicine & Neonatology,NHS SUPPLY CHAIN (MAIDSTONE),id:14751854  ,2423.88,
Department of Health,Guys and St Thomas NHS Foundation Trust,07/01/2022,(82600) Uniforms & Clothing,(id:2495419) Evelina Medicine & Neonatology,RS COMPONENTS LTD,id:14766381 ,605.09,
Department of Health,Guys and St Thomas NHS Foundation Trust,28/01/2022,(81100) Dressings,(id:42315) Evelina Medicine & Neonatology,NHS SUPPLY CHAIN (MAIDSTONE),id:14742162  ,128.07,
Department of Health,Guys and St Thomas NHS Foundation Trust,28/01/2022,(83400) Office Equipment,(id:42315) Evelina Medicine & Neonatology,NHS SUPPLY CHAIN (MAIDSTONE),id:14742162,99.94,
Department of Health,Guys and St Thomas NHS Foundation Trust,28/01/2022,(83400) Office Equipment,(id:42058) Evelina Medicine & Neonatology,NHS SUPPLY CHAIN (MAIDSTONE),id:14742162,41.11,
Department of Health,Guys and St Thomas NHS Foundation Trust,28/01/2022,(81200) Medical Surgical Supplies & Equipment,(id:42058) Evelina Medicine & Neonatology,NHS SUPPLY CHAIN (MAIDSTONE),id:14742162    ,103.5,
Department of Health,Guys and St Thomas NHS Foundation Trust,14/01/2022,(82000) Provisions & Kitchens,(id:4082419) Evelina Surgery Theatres & PICU,NHS SUPPLY CHAIN (MAIDSTONE),id:14780246  ,157.96,
Department of Health,Guys and St Thomas NHS Foundation Trust,14/01/2022,(83400) Office Equipment,(id:4082419) Evelina Surgery Theatres & PICU,NHS SUPPLY CHAIN (MAIDSTONE),id:14721243  ,248.28,
Department of Health,Guys and St Thomas NHS Foundation Trust,21/01/2022,(50200) Consultants,(id:42312) Evelina Surgery Theatres & PICU,KINGS COLLEGE LONDON:03529700,id:14800099   ,7720.75,
Department of Health,Guys and St Thomas NHS Foundation Trust,28/01/2022,(50200) Consultants,(id:42312) Evelina Surgery Theatres & PICU,KINGS COLLEGE LONDON:03529700,id:14817319   ,1877.77,
Department of Health,Guys and St Thomas NHS Foundation Trust,07/01/2022,(81200) Medical Surgical Supplies & Equipment,(id:42312) Evelina Surgery Theatres & PICU,IDEAL MEDICAL SOLUTIONS LTD,id:14758874    ,1210.8,
Department of Health,Guys and St Thomas NHS Foundation Trust,07/01/2022,(81200) Medical Surgical Supplies & Equipment,(id:42312) Evelina Surgery Theatres & PICU,ABBOTT MEDICAL UK LTD,id:14750424,534,
Department of Health,Guys and St Thomas NHS Foundation Trust,14/01/2022,(81200) Medical Surgical Supplies & Equipment,(id:42312) Evelina Surgery Theatres & PICU,NHS SUPPLY CHAIN (MAIDSTONE),id:14751854   ,26044.8,
Department of Health,Guys and St Thomas NHS Foundation Trust,14/01/2022,(81200) Medical Surgical Supplies & Equipment,(id:42312) Evelina Surgery Theatres & PICU,NHS SUPPLY CHAIN (MAIDSTONE),id:14721243   ,7248.02,
Department of Health,Guys and St Thomas NHS Foundation Trust,14/01/2022,(81200) Medical Surgical Supplies & Equipment,(id:42312) Evelina Surgery Theatres & PICU,TERUMO UK LTD,id:14784314   ,510,
Department of Health,Guys and St Thomas NHS Foundation Trust,28/01/2022,(81200) Medical Surgical Supplies & Equipment,(id:42312) Evelina Surgery Theatres & PICU,NHS SUPPLY CHAIN (MAIDSTONE),id:14742162   ,11343.6,
Department of Health,Guys and St Thomas NHS Foundation Trust,14/01/2022,(83400) Office Equipment,(id:42351) Evelina Surgery Theatres & PICU,NHS SUPPLY CHAIN (MAIDSTONE),id:14780246    ,10.66,
Department of Health,Guys and St Thomas NHS Foundation Trust,21/01/2022,(81200) Medical Surgical Supplies & Equipment,(id:42351) Evelina Surgery Theatres & PICU,BAXTER HEALTHCARE LTD,id:14798479,2340,
Department of Health,Guys and St Thomas NHS Foundation Trust,14/01/2022,(82600) Uniforms & Clothing,(id:41914) Evelina Surgery Theatres & PICU,NHS SUPPLY CHAIN (MAIDSTONE),id:14780246 ,409.32,
Department of Health,Guys and St Thomas NHS Foundation Trust,28/01/2022,(82000) Provisions & Kitchens,(id:41914) Evelina Surgery Theatres & PICU,NHS SUPPLY CHAIN (MAIDSTONE),id:14776441    ,18.39,
Department of Health,Guys and St Thomas NHS Foundation Trust,14/01/2022,(82800) Bedding & Linen,(id:41914) Evelina Surgery Theatres & PICU,NHS SUPPLY CHAIN (MAIDSTONE),id:14721243,370.4,
Department of Health,Guys and St Thomas NHS Foundation Trust,28/01/2022,(82800) Bedding & Linen,(id:41914) Evelina Surgery Theatres & PICU,NHS SUPPLY CHAIN (MAIDSTONE),id:14776441,67.78,
Department of Health,Guys and St Thomas NHS Foundation Trust,14/01/2022,(81200) Medical Surgical Supplies & Equipment,(id:41914) Evelina Surgery Theatres & PICU,NHS SUPPLY CHAIN (MAIDSTONE),id:14721243   ,633.54,
Department of Health,Guys and St Thomas NHS Foundation Trust,14/01/2022,(50562) Qualified Nursing Staff,(id:41914) Evelina Surgery Theatres & PICU,YOUR WORLD RECRUITMENT LIMITED(YOUR WORLD HEALTHCARE),id:14788626  ,636.88,
Department of Health,Guys and St Thomas NHS Foundation Trust,21/01/2022,(50562) Qualified Nursing Staff,(id:41914) Evelina Surgery Theatres & PICU,MEDICSPRO LTD,id:14800347  ,750.15,
Department of Health,Guys and St Thomas NHS Foundation Trust,07/01/2022,(81100) Dressings,(id:41914) Evelina Surgery Theatres & PICU,ELIS UK LIMITED,id:14736154    ,664.6,
Department of Health,Guys and St Thomas NHS Foundation Trust,14/01/2022,(81100) Dressings,(id:41910) Evelina Surgery Theatres & PICU,NHS SUPPLY CHAIN (MAIDSTONE),id:14721243 ,156.58,
Department of Health,Guys and St Thomas NHS Foundation Trust,14/01/2022,(82600) Uniforms & Clothing,(id:41910) Evelina Surgery Theatres & PICU,NHS SUPPLY CHAIN (MAIDSTONE),id:14751854 ,48,
Department of Health,Guys and St Thomas NHS Foundation Trust,14/01/2022,(81200) Medical Surgical Supplies & Equipment,(id:1196421) Evelina Surgery Theatres & PICU,NUVASIVE UK LTD,id:14773014    ,12178.8,
Department of Health,Guys and St Thomas NHS Foundation Trust,14/01/2022,(81225) Medical Surgical Supplies & Equipment,(id:2498419) Evelina Surgery Theatres & PICU,NHS SUPPLY CHAIN (MAIDSTONE),id:14751854 ,57.6,
Department of Health,Guys and St Thomas NHS Foundation Trust,07/01/2022,(81200) Medical Surgical Supplies & Equipment,(id:431409) Evelina Surgery Theatres & PICU,ARTHREX LTD,id:14750066    ,940.5,
Department of Health,Guys and St Thomas NHS Foundation Trust,14/01/2022,(81200) Medical Surgical Supplies & Equipment,(id:431409) Evelina Surgery Theatres & PICU,NHS SUPPLY CHAIN (MAIDSTONE),id:14780246  ,3246.09,
Department of Health,Guys and St Thomas NHS Foundation Trust,14/01/2022,(81200) Medical Surgical Supplies & Equipment,(id:431409) Evelina Surgery Theatres & PICU,LAVENDER MEDICAL LTD,id:14781636,1914,
Department of Health,Guys and St Thomas NHS Foundation Trust,21/01/2022,(81200) Medical Surgical Supplies & Equipment,(id:431409) Evelina Surgery Theatres & PICU,ORTHOPEDIATRICS EU LIMITED,id:14789840    ,682.56,
Department of Health,Guys and St Thomas NHS Foundation Trust,21/01/2022,(81200) Medical Surgical Supplies & Equipment,(id:431409) Evelina Surgery Theatres & PICU,ORTHOPEDIATRICS EU LIMITED,id:14789855    ,547.2,
Department of Health,Guys and St Thomas NHS Foundation Trust,21/01/2022,(82000) Provisions & Kitchens,(id:431409) Evelina Surgery Theatres & PICU,JOHN FLORENCE LTD,id:14793344    ,882.2,
Department of Health,Guys and St Thomas NHS Foundation Trust,21/01/2022,(82000) Provisions & Kitchens,(id:431409) Evelina Surgery Theatres & PICU,JOHN FLORENCE LTD,id:14793350    ,912.85,
Department of Health,Guys and St Thomas NHS Foundation Trust,21/01/2022,(82000) Provisions & Kitchens,(id:431409) Evelina Surgery Theatres & PICU,JOHN FLORENCE LTD,id:14793346    ,931.38,
Department of Health,Guys and St Thomas NHS Foundation Trust,21/01/2022,(82000) Provisions & Kitchens,(id:431409) Evelina Surgery Theatres & PICU,TALAR MADE ORTHOTICS LTD,id:14797723  ,752.31,
Department of Health,Guys and St Thomas NHS Foundation Trust,21/01/2022,(82000) Provisions & Kitchens,(id:431409) Evelina Surgery Theatres & PICU,TALAR MADE ORTHOTICS LTD,id:14797635  ,43.66,
Department of Health,Guys and St Thomas NHS Foundation Trust,14/01/2022,(81200) Medical Surgical Supplies & Equipment,(id:468410) Evelina Surgery Theatres & PICU,NHS SUPPLY CHAIN (MAIDSTONE),id:14721243  ,12,
Department of Health,Guys and St Thomas NHS Foundation Trust,28/01/2022,(81200) Medical Surgical Supplies & Equipment,(id:468410) Evelina Surgery Theatres & PICU,NHS SUPPLY CHAIN (MAIDSTONE),id:14742162  ,340.2,
Department of Health,Guys and St Thomas NHS Foundation Trust,14/01/2022,(81200) Medical Surgical Supplies & Equipment,(id:468409) Evelina Surgery Theatres & PICU,NHS SUPPLY CHAIN (MAIDSTONE),id:14780246  ,1121.17,
Department of Health,Guys and St Thomas NHS Foundation Trust,21/01/2022,(81200) Medical Surgical Supplies & Equipment,(id:468409) Evelina Surgery Theatres & PICU,T J SMITH & NEPHEW LTD,id:14776896   ,587.9,
Department of Health,Guys and St Thomas NHS Foundation Trust,28/01/2022,(81100) Dressings,(id:468409) Evelina Surgery Theatres & PICU,NHS SUPPLY CHAIN (MAIDSTONE),id:14776441,0.7,
Department of Health,Guys and St Thomas NHS Foundation Trust,14/01/2022,(82800) Bedding & Linen,(id:468409) Evelina Surgery Theatres & PICU,NHS SUPPLY CHAIN (MAIDSTONE),id:14751854    ,43.13,
Department of Health,Guys and St Thomas NHS Foundation Trust,28/01/2022,(83400) Office Equipment,(id:468409) Evelina Surgery Theatres & PICU,NHS SUPPLY CHAIN (MAIDSTONE),id:14776441   ,8.88,
Department of Health,Guys and St Thomas NHS Foundation Trust,14/01/2022,(83500) Furniture & Fittings,(id:2495421) Evelina Surgery Theatres & PICU,NHS SUPPLY CHAIN (MAIDSTONE),id:14780246   ,463.68,
Department of Health,Guys and St Thomas NHS Foundation Trust,14/01/2022,(81200) Medical Surgical Supplies & Equipment,(id:2495421) Evelina Surgery Theatres & PICU,NHS SUPPLY CHAIN (MAIDSTONE),id:14721243 ,113.22,
Department of Health,Guys and St Thomas NHS Foundation Trust,28/01/2022,(81100) Dressings,(id:42347) Evelina Surgery Theatres & PICU,NHS SUPPLY CHAIN (MAIDSTONE),id:14742162 ,1.02,
Department of Health,Guys and St Thomas NHS Foundation Trust,14/01/2022,(81200) Medical Surgical Supplies & Equipment,(id:42347) Evelina Surgery Theatres & PICU,NHS SUPPLY CHAIN (MAIDSTONE),id:14780246   ,252.94,
Department of Health,Guys and St Thomas NHS Foundation Trust,28/01/2022,(81200) Medical Surgical Supplies & Equipment,(id:42347) Evelina Surgery Theatres & PICU,NHS SUPPLY CHAIN (MAIDSTONE),id:14776441   ,492.88,
Department of Health,Guys and St Thomas NHS Foundation Trust,28/01/2022,(82700) Uniforms & Clothing,(id:42339) Evelina Surgery Theatres & PICU,NHS SUPPLY CHAIN (MAIDSTONE),id:14742162 ,31.29,
Department of Health,Guys and St Thomas NHS Foundation Trust,28/01/2022,(82700) Uniforms & Clothing,(id:42339) Evelina Surgery Theatres & PICU,NHS SUPPLY CHAIN (MAIDSTONE),id:14776441 ,15.47,
Department of Health,Guys and St Thomas NHS Foundation Trust,21/01/2022,(82000) Provisions & Kitchens,(id:42339) Evelina Surgery Theatres & PICU,NHS SUPPLY CHAIN (MAIDSTONE),id:14760334    ,104.87,
Department of Health,Guys and St Thomas NHS Foundation Trust,21/01/2022,(82800) Bedding & Linen,(id:42339) Evelina Surgery Theatres & PICU,NHS SUPPLY CHAIN (MAIDSTONE),id:14760334,202.87,
Department of Health,Guys and St Thomas NHS Foundation Trust,28/01/2022,(82800) Bedding & Linen,(id:42339) Evelina Surgery Theatres & PICU,NHS SUPPLY CHAIN (MAIDSTONE),id:14776441,54.48,
Department of Health,Guys and St Thomas NHS Foundation Trust,07/01/2022,(80100) Drug Costs,(id:42339) Evelina Surgery Theatres & PICU,BOC LTD :02107500,id:14725957 ,840,
Department of Health,Guys and St Thomas NHS Foundation Trust,07/01/2022,(81100) Dressings,(id:42339) Evelina Surgery Theatres & PICU,ADVANCED STERILIZATION PRODUCTS (UK) LTD,id:14759654    ,670.8,
Department of Health,Guys and St Thomas NHS Foundation Trust,07/01/2022,(81200) Medical Surgical Supplies & Equipment,(id:42339) Evelina Surgery Theatres & PICU,CHALICE MEDICAL LTD,id:14761194  ,6842.74,
Department of Health,Guys and St Thomas NHS Foundation Trust,07/01/2022,(81200) Medical Surgical Supplies & Equipment,(id:42339) Evelina Surgery Theatres & PICU,INTERSURGICAL LTD,id:14719333    ,1245.84,
Department of Health,Guys and St Thomas NHS Foundation Trust,14/01/2022,(83400) Office Equipment,(id:42339) Evelina Surgery Theatres & PICU,NHS SUPPLY CHAIN (MAIDSTONE),id:14780246    ,461.5,
Department of Health,Guys and St Thomas NHS Foundation Trust,14/01/2022,(83400) Office Equipment,(id:42339) Evelina Surgery Theatres & PICU,NHS SUPPLY CHAIN (MAIDSTONE),id:14721243    ,752.87,
Department of Health,Guys and St Thomas NHS Foundation Trust,14/01/2022,(81225) Medical Surgical Supplies & Equipment,(id:42339) Evelina Surgery Theatres & PICU,NHS SUPPLY CHAIN (MAIDSTONE),id:14721243   ,73.68,
Department of Health,Guys and St Thomas NHS Foundation Trust,28/01/2022,(81225) Medical Surgical Supplies & Equipment,(id:42339) Evelina Surgery Theatres & PICU,NHS SUPPLY CHAIN (MAIDSTONE),id:14776441   ,36.84,
Department of Health,Guys and St Thomas NHS Foundation Trust,14/01/2022,(81275) Medical Surgical Supplies & Equipment,(id:42339) Evelina Surgery Theatres & PICU,NHS SUPPLY CHAIN (MAIDSTONE),id:14780246   ,28.92,
Department of Health,Guys and St Thomas NHS Foundation Trust,21/01/2022,(81700) Lab Equipment Purchase,(id:42339) Evelina Surgery Theatres & PICU,NHS SUPPLY CHAIN (MAIDSTONE),id:14760334   ,27.85,
Department of Health,Guys and St Thomas NHS Foundation Trust,28/01/2022,(89570) Other – Other Operating Expenditure,(id:4897419) Evelina R&D and Charity,THE MEDICAL MEDIATION FOUNDATION,id:14816635 ,3500,
Department of Health,Guys and St Thomas NHS Foundation Trust,28/01/2022,(50200) Consultants,(id:3805419) Evelina R&D and Charity,KINGS COLLEGE LONDON:03529700,id:14817181    ,3200.79,
Department of Health,Guys and St Thomas NHS Foundation Trust,14/01/2022,(81700) Lab Equipment Purchase,(id:43038) Cardiovascular Services,NHS SUPPLY CHAIN (MAIDSTONE),id:14780246 ,14.02,
Department of Health,Guys and St Thomas NHS Foundation Trust,28/01/2022,(82600) Uniforms & Clothing,(id:780420) Cardiovascular Services,NHS SUPPLY CHAIN (MAIDSTONE),id:14742162   ,12.63,
Department of Health,Guys and St Thomas NHS Foundation Trust,28/01/2022,(83400) Office Equipment,(id:780420) Cardiovascular Services,NHS SUPPLY CHAIN (MAIDSTONE),id:14742162 ,125.6,
Department of Health,Guys and St Thomas NHS Foundation Trust,28/01/2022,(82700) Uniforms & Clothing,(id:780420) Cardiovascular Services,NHS SUPPLY CHAIN (MAIDSTONE),id:14742162   ,21.84,
Department of Health,Guys and St Thomas NHS Foundation Trust,28/01/2022,(81275) Medical Surgical Supplies & Equipment,(id:780420) Cardiovascular Services,NHS SUPPLY CHAIN (MAIDSTONE),id:14742162,14.46,
Department of Health,Guys and St Thomas NHS Foundation Trust,07/01/2022,(50552) Qualified Nursing Staff,(id:780420) Cardiovascular Services,GLOBE LOCUMS LTD,id:14768962 ,679.78,
Department of Health,Guys and St Thomas NHS Foundation Trust,07/01/2022,(50522) Unqualified Nursing Staff,(id:780420) Cardiovascular Services,GLOBE LOCUMS LTD,id:14768805    ,286.19,
Department of Health,Guys and St Thomas NHS Foundation Trust,28/01/2022,(82800) Bedding & Linen,(id:780420) Cardiovascular Services,NHS SUPPLY CHAIN (MAIDSTONE),id:14776441  ,123.26,
Department of Health,Guys and St Thomas NHS Foundation Trust,07/01/2022,(81200) Medical Surgical Supplies & Equipment,(id:639421) Cardiovascular Services,MEDTRONIC LTD,id:14710657,1080,
Department of Health,Guys and St Thomas NHS Foundation Trust,07/01/2022,(81200) Medical Surgical Supplies & Equipment,(id:639421) Cardiovascular Services,WL GORE & ASSOCIATES (UK) LTD,id:14712931    ,8388,
Department of Health,Guys and St Thomas NHS Foundation Trust,14/01/2022,(81200) Medical Surgical Supplies & Equipment,(id:639421) Cardiovascular Services,NHS SUPPLY CHAIN (MAIDSTONE),id:14721243,26308.8,
Department of Health,Guys and St Thomas NHS Foundation Trust,28/01/2022,(81200) Medical Surgical Supplies & Equipment,(id:639421) Cardiovascular Services,MEDTRONIC LTD,id:14778337,720,
Department of Health,Guys and St Thomas NHS Foundation Trust,28/01/2022,(81200) Medical Surgical Supplies & Equipment,(id:639421) Cardiovascular Services,BOSTON SCIENTIFIC LTD,id:14775010  ,1920,
Department of Health,Guys and St Thomas NHS Foundation Trust,28/01/2022,(81200) Medical Surgical Supplies & Equipment,(id:639421) Cardiovascular Services,WL GORE & ASSOCIATES (UK) LTD,id:14827494    ,4569.6,
Department of Health,Guys and St Thomas NHS Foundation Trust,28/01/2022,(81200) Medical Surgical Supplies & Equipment,(id:639421) Cardiovascular Services,WL GORE & ASSOCIATES (UK) LTD,id:14819495    ,8388,
Department of Health,Guys and St Thomas NHS Foundation Trust,28/01/2022,(81200) Medical Surgical Supplies & Equipment,(id:639421) Cardiovascular Services,WL GORE & ASSOCIATES (UK) LTD,id:14786466    ,10800,
Department of Health,Guys and St Thomas NHS Foundation Trust,21/01/2022,(81200) Medical Surgical Supplies & Equipment,(id:41952) Cardiovascular Services,LABORIE MEDICAL TECHNOLOGIES UK,id:14795285   ,753.6,
Department of Health,Guys and St Thomas NHS Foundation Trust,28/01/2022,(81400) Medical Surgical Supplies & Equipment,(id:41952) Cardiovascular Services,NHS SUPPLY CHAIN (MAIDSTONE),id:14742162 ,306.87,
Department of Health,Guys and St Thomas NHS Foundation Trust,14/01/2022,(81100) Dressings,(id:41952) Cardiovascular Services,NHS SUPPLY CHAIN (MAIDSTONE),id:14721243    ,2278.36,
Department of Health,Guys and St Thomas NHS Foundation Trust,14/01/2022,(81100) Dressings,(id:41952) Cardiovascular Services,NHS SUPPLY CHAIN (MAIDSTONE),id:14780246    ,1757.45,
Department of Health,Guys and St Thomas NHS Foundation Trust,14/01/2022,(81200) Medical Surgical Supplies & Equipment,(id:41950) Cardiovascular Services,ABBOTT MEDICAL UK LTD,id:14782367   ,540,
Department of Health,Guys and St Thomas NHS Foundation Trust,21/01/2022,(81200) Medical Surgical Supplies & Equipment,(id:41950) Cardiovascular Services,VOLCANO EUROPE BVBA/SPRL,id:14795180,3336,
Department of Health,Guys and St Thomas NHS Foundation Trust,28/01/2022,(81200) Medical Surgical Supplies & Equipment,(id:41950) Cardiovascular Services,NHS SUPPLY CHAIN (MAIDSTONE),id:14776441 ,3454.33,
Department of Health,Guys and St Thomas NHS Foundation Trust,28/01/2022,(81200) Medical Surgical Supplies & Equipment,(id:41950) Cardiovascular Services,NHS SUPPLY CHAIN (MAIDSTONE),id:14742162 ,5682.63,
Department of Health,Guys and St Thomas NHS Foundation Trust,21/01/2022,(81230) Medical Surgical Supplies & Equipment,(id:41950) Cardiovascular Services,COOK UK LTD,id:14705255   ,528,
Department of Health,Guys and St Thomas NHS Foundation Trust,07/01/2022,(81235) Medical Surgical Supplies & Equipment,(id:41950) Cardiovascular Services,BOSTON SCIENTIFIC LTD,id:14724485   ,474,
Department of Health,Guys and St Thomas NHS Foundation Trust,07/01/2022,(81000) Surgical Appliances,(id:41950) Cardiovascular Services,MEDI UK LTD,id:14760374 ,127.13,
Department of Health,Guys and St Thomas NHS Foundation Trust,21/01/2022,(82000) Provisions & Kitchens,(id:41950) Cardiovascular Services,MEDI UK LTD,id:14797814    ,210.83,
Department of Health,Guys and St Thomas NHS Foundation Trust,14/01/2022,(81100) Dressings,(id:41950) Cardiovascular Services,NHS SUPPLY CHAIN (MAIDSTONE),id:14751854    ,150.29,
Department of Health,Guys and St Thomas NHS Foundation Trust,28/01/2022,(81225) Medical Surgical Supplies & Equipment,(id:41950) Cardiovascular Services,NHS SUPPLY CHAIN (MAIDSTONE),id:14742162 ,40.6,
Department of Health,Guys and St Thomas NHS Foundation Trust,21/01/2022,(81200) Medical Surgical Supplies & Equipment,(id:41948) Cardiovascular Services,VASCUTEK LTD,id:14783028  ,642.6,
Department of Health,Guys and St Thomas NHS Foundation Trust,21/01/2022,(81200) Medical Surgical Supplies & Equipment,(id:41948) Cardiovascular Services,VASCUTEK LTD,id:14783974  ,642.6,
Department of Health,Guys and St Thomas NHS Foundation Trust,21/01/2022,(81200) Medical Surgical Supplies & Equipment,(id:41948) Cardiovascular Services,BARD LTD,id:14722407 ,1022.82,
Department of Health,Guys and St Thomas NHS Foundation Trust,14/01/2022,(83400) Office Equipment,(id:41947) Cardiovascular Services,NHS SUPPLY CHAIN (MAIDSTONE),id:14780246  ,67.27,
Department of Health,Guys and St Thomas NHS Foundation Trust,28/01/2022,(50470) Medical Training Grades,(id:4622423) Cardiovascular Services,KINGS COLLEGE LONDON:03529700,id:14817219  ,4398.1,
Department of Health,Guys and St Thomas NHS Foundation Trust,14/01/2022,(81200) Medical Surgical Supplies & Equipment,(id:3923419) Cardiovascular Services,NHS SUPPLY CHAIN (MAIDSTONE),id:14751854    ,365.56,
Department of Health,Guys and St Thomas NHS Foundation Trust,14/01/2022,(82800) Bedding & Linen,(id:3923419) Cardiovascular Services,NHS SUPPLY CHAIN (MAIDSTONE),id:14780246 ,125.28,
Department of Health,Guys and St Thomas NHS Foundation Trust,28/01/2022,(82800) Bedding & Linen,(id:3923419) Cardiovascular Services,NHS SUPPLY CHAIN (MAIDSTONE),id:14742162 ,32.66,
Department of Health,Guys and St Thomas NHS Foundation Trust,28/01/2022,(83400) Office Equipment,(id:3923419) Cardiovascular Services,NHS SUPPLY CHAIN (MAIDSTONE),id:14742162,89.39,
Department of Health,Guys and St Thomas NHS Foundation Trust,14/01/2022,(82000) Provisions & Kitchens,(id:3923419) Cardiovascular Services,NHS SUPPLY CHAIN (MAIDSTONE),id:14721243,353.76,
Department of Health,Guys and St Thomas NHS Foundation Trust,21/01/2022,(82700) Uniforms & Clothing,(id:3923419) Cardiovascular Services,NHS SUPPLY CHAIN (MAIDSTONE),id:14760334  ,31.68,
Department of Health,Guys and St Thomas NHS Foundation Trust,21/01/2022,(81225) Medical Surgical Supplies & Equipment,(id:3923419) Cardiovascular Services,NHS SUPPLY CHAIN (MAIDSTONE),id:14760334    ,5.08,
Department of Health,Guys and St Thomas NHS Foundation Trust,25/01/2022,(54072) Technical Officers,(id:1243420) Cardiovascular Services,PRICEWATERHOUSECOOPERS LLP,id:14812575,1753.79,
Department of Health,Guys and St Thomas NHS Foundation Trust,21/01/2022,(81200) Medical Surgical Supplies & Equipment,(id:1243420) Cardiovascular Services,NHS SUPPLY CHAIN (MAIDSTONE),id:14760334    ,302.88,
Department of Health,Guys and St Thomas NHS Foundation Trust,14/01/2022,(83400) Office Equipment,(id:1243420) Cardiovascular Services,NHS SUPPLY CHAIN (MAIDSTONE),id:14721243,175.99,
